Workbook

Sheet Title Page
A1: U.S. EPA Office of Ground Water and Drinking Water
A2: Work Breakdown Structure (WBS) Model for REVERSE OSMOSIS/NANOFILTRATION Treatment
A3: Release Date: March 2023
A4: · The primary purpose of this model is to assist EPA in estimating national compliance costs.
A5: · As such, the costs are intended to be representative of the central tendency of typical facilities.
A6: · The default settings, however, do not account for all of the site-specific factors that could affect the cost of any given individual facility or project.
A7: · Still, other uses of the model might be reasonable if sufficient care is taken by the user to account for site- or project-specific factors.
A8: · The model results are point estimates shown to the nearest $1, but this precision is not meant to imply that the results are accurate to $1.
A9: · Instead, users should review all documentation, modify inputs/assumptions as appropriate to their specific purpose, and form their own informed opinions about the accuracy and suitability of the results.
A10: · Use of this model requires Excel 2007 or later.
A11: · The model should be opened as Read-only, so that any changes you make are saved under a new file name.
A12: · To function properly, macros ("active content") must be enabled. If a security warning appears, click "options" and "enable this content."
A13: · For further information see the following document distributed with this file:
A14: USEPA. 2023. Work Breakdown Structure-Based Cost Model for REVERSE OSMOSIS/NANOFILTRATION Drinking Water Treatment. Office of Water.
A15: · To begin using the model, go to the INPUT sheet.

Sheet Index
A1: INDEX
A2: This page provides an index to all user-adjustable inputs and assumptions. Click on a variable name to go directly to the adjustable cells.
A4: User-adjustable Input or Assumption | B4: Variable Name and Link
A5: 16-18" membrane element weight (for disposal cost) | B5: elem_wt_16
A6: 4" membrane element weight (for disposal cost) | B6: elem_wt_4
A7: 8" membrane element weight (for disposal cost) | B7: elem_wt_8
A8: Absolute tolerance for permeate flow difference | B8: perm_flow_abs_tol
A9: Access space for element replacement | B9: element_extra_space
A10: Access space for other equipment | B10: space_other_equip
A11: Access space per pump | B11: space_pumps
A12: Acid for pretreatment | B12: pretreat_acid_I
A13: Acid used in acidic cleaning cycle | B13: clean_acid
A14: Additional freeboard | B14: sec_cont_freeboard
A15: Additional redundant cartridge filter per x MGD inflow | B15: addl_redund_cart_per_flow
A16: Additional sampling ports | B16: add_ports
A17: Administrative LOE as a percent of average technical labor | B17: Clerical_percent
A18: Air conditioning EER | B18: EER
A19: Annual cooling degree days | B19: cool_DD
A20: Annual heating degree days | B20: heat_DD
A21: Antiscalant | B21: use_antiscalant_I
A22: Antiscalant density | B22: anti_density
A23: Antiscalant dose for pretreatment | B23: anti_dose_conc
A24: Apply POTW discharge base charge (i.e., $/month) | B24: POTW_base_fee
A25: Apply POTW discharge TSS charge (i.e., $/lb of TSS over limit below) | B25: POTW_TSS_fee
A26: Apply POTW discharge volume charge (i.e., $/1000 gallons) | B26: POTW_volume_fee
A27: Average annual pan evaporation rate | B27: pan_evap
A28: Average annual precipitation | B28: precip
A29: Average Flow (including bypass) | B29: average_flow_I
A30: Average recovery per element, as fraction of spec | B30: avg_Y_el_targ_frac
A31: Boost vs. throttle, stages 1-2 | B31: P_adj_method_12
A32: Boost vs. throttle, stages 2-3 | B32: P_adj_method_23
A33: Buffer space around other sides of buildings, Non-fire buffer | B33: non_fire_buffer
A34: Building height | B34: Building_height
A35: Bypass pipe length multiplier | B35: bp_pipe_mult
A36: Bypass pump efficiency | B36: bp_pump_eff
A37: Bypass pump head | B37: bp_pump_head
A38: Change in cleaning interval with SDI | B38: cleaning_freq_change
A39: Characteristics of solids and spent membranes for disposal | B39: solids_haz_I
A40: Chemical pipe length multiplier | B40: chem_pipe_mult
A41: Chemical resistant coating coverage | B41: sec_cont_coating_cvg
A42: Chemical tank mixer horsepower | B42: cmix_hp_per
A43: Chemical used in high-pH cleaning cycle | B43: clean_high_pH
A44: Citric acid density | B44: citric_density
A45: City Index for capital costs | B45: city_index
A46: City Index for O&M costs | B46: OM_City_Index
A47: Cleaning interval | B47: clean_interval_override
A48: Cleaning Temperature | B48: cleaning_temp
A49: Clearance space beneath the ceiling | B49: ceiling_clearance
A50: Complete cleaning cycle length | B50: cleaning_cycle
A51: Component level | B51: component_level_I
A52: Computer workstations per x operators | B52: workstation_ratio
A53: Concentrated strength of caustic (% by weight) | B53: caustic_strength
A54: Concentrated strength of H2SO4 (% by weight) | B54: acid_strength_H2SO4
A55: Concentrated strength of HCl (% by weight) | B55: acid_strength_HCl
A56: Concrete pad thickness | B56: pad_thick
A57: Concrete pad thickness for area below pressure vessels | B57: pad_vessels
A58: Concrete pad thickness for small systems | B58: pad_thick_small
A59: Concrete thickness for basins | B59: conc_thick
A60: Conductivity meters on influent and treated water line | B60: inout_cond_meter
A61: Conductivity meters per rack | B61: cond_rack
A62: Cooling table for buildings 500 square feet or greater | B62: cooling_table
A63: Cooling table for buildings less than 500 ft2 | B63: cooling_table_shed
A64: Cooling ventilation/infiltration load | B64: cool_viload
A65: Cost estimating method | B65: curve
A66: Days of winter (i.e., days of storage during periods with no net evaporation) | B66: winter_days
A67: Depth of injection well | B67: injection_well_depth
A68: Design Flow (including bypass) | B68: design_flow_I
A69: Design flux | B69: design_flux
A70: Dilution of high pH proprietary cleaners, by volume | B70: proprietary_dilution_highpH
A71: Dilution of low pH proprietary cleaners, by volume | B71: proprietary_dilution_lowpH
A72: Discharge option for reject/cleaning solution | B72: res_s2_opt_I
A73: Disposal method for non-hazardous evaporation pond solids | B73: solids_method
A74: Distance to direct discharge point or deep well injection | B74: add_res_pipe_length_direct
A75: Distance to recycle point or evaporation pond | B75: add_res_pipe_length
A76: Drive controllers per acid pretreatment metering pump | B76: S_cm_pump
A77: Drive controllers per antiscalant pump | B77: S_anti_pump
A78: Drive controllers per booster pump | B78: S_booster_pump
A79: Drive controllers per bypass pump | B79: S_bypass_pump
A80: Drive controllers per chemical pump for cleaning system | B80: S_chem_pump
A81: Drive controllers per eductor | B81: S_eductor
A82: Drive controllers per feed pump | B82: S_feed_pump
A83: Drive controllers per mixer | B83: S_mix
A84: Drive controllers per residuals pump | B84: S_res_pump
A85: Drive controllers per slurry pump system | B85: S_slurry
A86: Dry chemical storage height | B86: storage_height
A87: Electric resistance heating efficiency | B87: resist_eff
A88: Electrical enclosure | B88: electric_encl
A89: Ethernet modules | B89: plc_ethernet
A90: Evaporation pond dike cross-sectional area | B90: dike_xsection
A91: Evaporation pond freeboard | B91: ep_freeboard
A92: Evaporation pond safety factor | B92: ep_safety_factor
A93: Evaporation pond solids density | B93: ht_solids_density
A94: Evaporation pond solids density | B94: ep_solids_density
A95: Evaporation pond solids removal frequency | B95: dredging_freq
A96: Evaporation ratio | B96: evap_ratio
A97: Extra rack height, in addition to that for PVs | B97: extra_rack_height
A98: Extra rack length, in addition to length of elements | B98: extra_rack_length
A99: Extra rack width, in addition to that for PVs | B99: extra_rack_width
A100: Feed and concentrate port diameter, 16-18" pressure vessel | B100: feed_port_diam_16
A101: Feed and concentrate port diameter, 4" pressure vessel | B101: feed_port_diam_4
A102: Feed and concentrate port diameter, 8" pressure vessel | B102: feed_port_diam_8
A103: Feed temperature | B103: T_feed
A104: Fire truck buffer requirements | B104: fire_buffer
A105: Flow equalization for reject/cleaning solution | B105: res_s1_opt_I
A106: Flow meters for influent and treated water line | B106: tot_fm_in
A107: Flow meters for residuals line | B107: tot_fm_res
A108: Flow meters per cleaning pump | B108: fm_clean
A109: Flow meters per membrane rack, concentrate line | B109: fm_rack_conc
A110: Flow meters per membrane rack, feed side | B110: fm_rack_feed
A111: Flow meters per membrane rack, permeate side | B111: fm_rack_perm
A112: Flow rate for rapid recirculation phase, per PV, 16-18" elements | B112: high_circ_flow_PV_16
A113: Flow rate for rapid recirculation phase, per PV, 4" elements | B113: high_circ_flow_PV_4
A114: Flow rate for rapid recirculation phase, per PV, 8" elements | B114: high_circ_flow_PV_8
A115: Flow rate to drain cleaning solution and flush system, as fraction of high-rate flow | B115: drain_rate_frac
A116: Flow speed in injection well | B116: injection_well_flow_speed
A117: For instruments (includes calibration) | B117: uloe_inst_maint
A118: Head loss sensors per cartridge filter | B118: headloss_cart
A119: Head loss sensors per rack | B119: head_rack
A120: Heat pump cooling EER | B120: hp_EER
A121: Heat pump heating coefficient of performance | B121: COP
A122: Heating Oil Heat Content | B122: diesel_heat_content
A123: Heating table for buildings 500 square feet or greater | B123: heating_table
A124: Heating table for buildings less than 500 ft2 | B124: heating_table_shed
A125: Heating ventilation/infiltration load | B125: heat_viload
A126: High/Low alarms per chemical storage tank | B126: chem_alarm_cst
A127: High/Low alarms per holding tank or basin | B127: alarm_res
A128: High/Low alarms per pretreatment chemical tank | B128: chem_alarm_pre
A129: Holding basin depth to volume ratio | B129: hbasin_ratio
A130: Holding basin freeboard | B130: hbasin_freeboard
A131: Holding lagoon dike cross-sectional area | B131: ldike_xsection
A132: Holding lagoon freeboard | B132: hl_freeboard
A133: Holding system capacity safety factor | B133: res_cap_factor
A134: Hours for manual removal of holding tank solids | B134: uloe_solids
A135: I/O Port Table | B135: port_table
A136: Immersion heater heat-up time | B136: cleaning_heat_time
A137: Include a separate day tank if daily volume is x or greater | B137: day_tank_needed
A138: Include buildings? | B138: include_buildings_I
A139: Include HVAC? | B139: include_HVAC_I
A140: Include land? | B140: include_land_I
A141: Include mixers for chemical tanks | B141: include_cmix
A142: Include redundant train? | B142: redundancy_I
A143: Include secondary containment | B143: include_sec_cont
A144: Influent and treated water pipe length multiplier | B144: in_out_pipe_mult
A145: Injection well pump head | B145: well_pump_psi
A146: Labor hours per cartridge filter | B146: hrs_filter
A147: Labor hours per month for auto prescreens | B147: monthly_labor_auto_screen
A148: Labor hours per week for simplex prescreens | B148: labor_simplex_screen
A149: Level switch/alarms per cleaning makeup tank | B149: level_switch_clean_tank
A150: Life of cartridge filters for high SDI | B150: cart_life_short
A151: Life of cartridge filters for low SDI | B151: cart_life_long
A152: Lighting power per sf, high-quality buildings | B152: lighting_power_high
A153: Lighting power per sf, low-quality buildings and sheds | B153: lighting_power_low
A154: Lighting power per sf, mid-quality buildings | B154: lighting_power_mid
A155: Losses between booster pump and pressure vessels | B155: boost_headloss
A156: Losses between pump and pressure vessels | B156: influent_headloss
A157: Mangerial LOE as a percent of average technical labor | B157: Manager_percent
A158: Markup for assembly of rack | B158: rack_assembly_markup
A159: Max flux for 1 < SDI < 3 | B159: flux_max_SDI3_GW
A160: Max flux for 1 < SDI < 3 | B160: flux_max_SDI3_SW
A161: Max flux for 3 < SDI < 5 | B161: flux_max_SDI5_GW
A162: Max flux for 3 < SDI < 5 | B162: flux_max_SDI5_SW
A163: Max flux for SDI < 1 | B163: flux_max_SDI1_GW
A164: Max flux for SDI < 1 | B164: flux_max_SDI1_SW
A165: Max permeate flow per rack, 16-18" elements | B165: max_flow_rack_16
A166: Max permeate flow per rack, 4" elements | B166: max_flow_rack_4
A167: Max permeate flow per rack, 8" elements | B167: max_flow_rack_8
A168: Maximum access space per tank for large systems | B168: max_space_tanks_large
A169: Maximum access space per tank for small systems | B169: max_space_tanks_small
A170: Maximum BaSO4 saturation with antiscalant | B170: max_baso4_antiscalant
A171: Maximum BaSO4 saturation without antiscalant | B171: max_baso4_no_antiscalant
A172: Maximum CaF2 saturation with antiscalant | B172: max_caf2_antiscalant
A173: Maximum CaF2 saturation without antiscalant | B173: max_caf2_no_antiscalant
A174: Maximum CaSO4 saturation with antiscalant | B174: max_caso4_antiscalant
A175: Maximum CaSO4 saturation without antiscalant | B175: max_caso4_no_antiscalant
A176: Maximum cleaning interval | B176: cleaning_freq_max
A177: Maximum curb thickness | B177: sec_cont_max_thick
A178: Maximum evaporation pond cell area | B178: max_ep_cell_area
A179: Maximum extra rack length for short pressure vessels | B179: short_PV_extra_length_max
A180: Maximum flow into injection well | B180: injection_well_max_flow
A181: Maximum hazardous waste shipment size | B181: max_haz_ship
A182: Maximum holding basin size | B182: max_hbasin_size
A183: Maximum holding lagoon cell area | B183: max_hl_cell_area
A184: Maximum lagoon depth | B184: max_hl_depth
A185: Maximum liquid hazardous waste shipment size | B185: max_lhaz_ship
A186: Maximum LSI with antiscalant | B186: max_lsi_antiscalant
A187: Maximum LSI without antiscalant | B187: max_lsi_no_antiscalant
A188: Maximum number of elements per vessel, 16-18" elements | B188: el_per_vess_max_16
A189: Maximum number of elements per vessel, 4" and 8" elements | B189: el_per_vess_max_8
A190: Maximum number of pressure iterations | B190: max_iter_pressure
A191: Maximum number of pressure vessel rows per rack | B191: pv_rows_max
A192: Maximum pump size for wellhead pumps | B192: max_well_pump_size
A193: Maximum radioactive (non-hazardous) waste shipment size | B193: max_rad_ship
A194: Maximum radioactive hazardous waste shipment size | B194: max_hazrad_ship
A195: Maximum recovery for NF | B195: recov_max_nf
A196: Maximum recovery for RO | B196: recov_max_ro
A197: Maximum SDI for "low SDI" cartridge filter life | B197: cart_life_sdi_cutover
A198: Maximum SiO2 concentration with antiscalant | B198: max_sio2_conc_antiscalant
A199: Maximum SiO2 saturation without antiscalant | B199: max_sio2_sat_no_antiscalant
A200: Maximum SrSO4 saturation with antiscalant | B200: max_srso4_antiscalant
A201: Maximum SrSO4 saturation without antiscalant | B201: max_srso4_no_antiscalant
... 149 more rows

Sheet INPUT
A1: REVERSE OSMOSIS/NANOFILTRATION SYSTEM DESIGN AND COST INPUT
E3: STEP 1 | H3: =IF(water_index>7,"Note: There is no standard design for this water.","") ->  | I3: Feed water analyses may be reviewed and entered on the Water Specs sheet.
E4: Select Feed Water
I5: Click here to go to the Water Specs sheet.
E6: For information: | G6: Water type: | H6: =CHOOSE(feed_water_type,"Ground","Surface") -> Ground
G7: Feed SDI: | H7: =IF(ISERROR(water_index),"",feed_sdi) -> 2.8
G8: Untreated feed pH: | H8: =IF(ISERROR(water_index),"",TEXT(feed_pH,"0.00")) -> 8.00
G9: Untreated feed TDS: | H9: =IF(ISERROR(water_index),"",treated_feed_tds) -> 3550.632268
G10: Untreated feed LSI: | H10: =IF(ISERROR(water_index),"",feed_LSI) -> 0.5422726463
G11: Untreated feed CaSO4 saturation: | H11: =IF(ISERROR(water_index),"",feed_caso4_sat_pct) -> 0.07154966384
G12: Untreated feed BaSO4 saturation: | H12: =IF(ISERROR(water_index),"",feed_baso4_sat_pct) -> 6.762443769
G13: Untreated feed SrSO4 saturation: | H13: =IF(ISERROR(water_index),"",feed_srso4_sat_pct) -> 0.3275636973
G14: Untreated feed CaF2 saturation: | H14: =IF(ISERROR(water_index),"",feed_caf2_sat_pct) -> 0.4584458164
G15: Untreated feed SiO2 saturation: | H15: =IF(ISERROR(water_index),"",feed_sio2_sat_pct) -> 0.1623561119
B17: Used? | C17: Valid input? | D17: Invalid reason? | E17: STEP 2: | H17: =IF('Standard Inputs'!AB9,"<- Using this design",IF('Standard Inputs'!AC9,"<- You modified this design","")) ->  | I17: The standard design buttons are for EPA's use in estimating national costs, but other users might find them useful as a starting point. See documentation for more information
E18: Select one of the eight standard designs at right OR select "CLEAR FOR MANUAL ENTRY" | H18: =IF('Standard Inputs'!AB10,"<- Using this design",IF('Standard Inputs'!AC10,"<- You modified this design","")) -> 
H19: =IF('Standard Inputs'!AB11,"<- Using this design",IF('Standard Inputs'!AC11,"<- You modified this design","")) -> 
H20: =IF('Standard Inputs'!AB12,"<- Using this design",IF('Standard Inputs'!AC12,"<- You modified this design","")) -> <- Using this design
H21: =IF('Standard Inputs'!AB13,"<- Using this design",IF('Standard Inputs'!AC13,"<- You modified this design","")) -> 
H22: =IF('Standard Inputs'!AB14,"<- Using this design",IF('Standard Inputs'!AC14,"<- You modified this design","")) -> 
H23: =IF('Standard Inputs'!AB15,"<- Using this design",IF('Standard Inputs'!AC15,"<- You modified this design","")) -> 
H24: =IF('Standard Inputs'!AB16,"<- Using this design",IF('Standard Inputs'!AC16,"<- You modified this design","")) -> 
H25: =IF(OR('Standard Inputs'!AB9:AC16),"","Using a manual design") -> 
C27: =AND($C28,C41) -> TRUE | E27: STEP 3:
C28: =AND(C76,C87,C93,C102,C111) -> TRUE | E28: (Optional for standard designs) | G28: =IF(tune_in_prog,"Input Complete -- Computation In Progress",IF(inputs_ok,IF(C41,IF('Standard Inputs'!Z91,"Input Complete -- Results Ready","Input Complete -- Press 'Generate Results'"),"Design unsuccessful -- modify flux or recovery goal"),"Input Incomplete -- Check for Error Messages Below")) -> Input Complete -- Results Ready
E29: Enter or change values in the gold and blue cells below, under "Manual Inputs"
I32: ="Resulting Costs (in year "&TEXT(current_year_cl,0)&" dollars, see OUTPUT sheet for details)" -> Resulting Costs (in year 2021 dollars, see OUTPUT sheet for details)
E33: STEP 4: | I33: ="Direct Capital Cost: " & IF(input_status<>"input complete -- results ready",input_status,IF(missing_cost,"Missing cost!",IF(cost_buildup_error,"Cost buildup error!",IF(ISERROR(direct_cost),"Calculation error!",TEXT(direct_cost,"$0,0"))))) -> Direct Capital Cost: $1,769,446
E34: =IF(inputs_ok,IF('Standard Inputs'!Z91,"Results are ready--no need to click button","Click here to generate results -->"),"Check inputs, then click here to generate results -->") -> Results are ready--no need to click button | I34: ="Total Capital Cost: " & IF(input_status<>"input complete -- results ready",input_status,IF(missing_cost,"Missing cost!",IF(cost_buildup_error,"Cost buildup error!",IF(ISERROR(system_cost),"Calculation error!",TEXT(system_cost,"$0,0"))))) -> Total Capital Cost: $3,030,948
I35: ="Annualized Capital Cost: "&IF(input_status<>"Input Complete -- Results Ready",input_status,IF(missing_cost,"Missing Price!",IF(cost_buildup_error,"Cost buildup error!",IF(ISERROR(Annualized_Capital_Cost),"Calculation error!",TEXT(Annualized_Capital_Cost,"$0,0")&" per year"&" (over "&useful_life&" years at "&discount_rate*100&"%)")))) -> Annualized Capital Cost: $247,697 per year (over 28.7 years at 7%)
I36: ="Annual O&M Cost: "&IF(input_status<>"input complete -- results ready",input_status,IF(ISERROR(OM_cost),"Calculation error!",TEXT(OM_cost,"$0,0")&" per year")) -> Annual O&M Cost: $223,836 per year
I37: ="Total Annualized Cost: "&IF(input_status<>"input complete -- results ready",input_status,IF(missing_cost,"Missing Price!",IF(cost_buildup_error,"Cost buildup error!",IF(ISERROR(Annualized_Cost),"Calculation error!",TEXT(Annualized_Cost,"$0,0")&" per year ("&TEXT(TAC_pct_cap,"0%")&" capital, "&TEXT(TAC_pct_OM,"0%")&" O&M)")))) -> Total Annualized Cost: $471,534 per year (53% capital, 47% O&M)
I38: =IF(missing_cost,"A price is not available for at least one required component. See Use? column on OUTPUT sheet.",IF(cost_buildup_error,"There is an Excel error in the price for at least one component. Please see the Use? column on OUTPUT sheet.","")) -> 
E39: Design results: | G39: =IF(inputs_ok,IF(inputs_are_current,calc_result,"Inputs have changed. Please rerun the system design."),"Inputs are incomplete. Please check for error messages below.") -> Calculation completed OK.
C41: =AND(inputs_ok,OR(comp_in_prog,calc_result="Calculation completed OK.")) -> TRUE
E43: Recovery: | G43: =recovery_rate -> 0.745979295
E44: Permeate TDS: | G44: =perm_tds_sys -> 32.71422577 | H44: ppm
E45: Permeate TDS at 180 degrees C: | G45: =perm_tds_sys_180c -> 31.95305643 | H45: ppm | I45: TDS is typically measured at 180 degrees C for regulatory compliance purposes. At this temperature approximately half of the bicarbonate is converted to carbon dioxide.
E46: Permeate CO2 concentration: | G46: =perm_gas_concs -> 67.57226511 | H46: ppm
E47: Salt rejection: | G47: =salt_rej_sys -> 0.9907863661
E48: Blended TDS: | G48: =IF(bp_pct=0,"no blending",blend_TDS) -> no blending | H48: =IF(bp_pct=0,"","ppm") -> 
E49: Blended TDS at 180 degrees C: | G49: =IF(bp_pct=0,"no blending",blend_TDS_180c) -> no blending | H49: =IF(bp_pct=0,"","ppm") -> 
E51: Feed pressure: | G51: =P_feed_try -> 262.9410347 | H51: psi
E52: Stage 2 boost pressure: | G52: =P_boost_2_try -> 0 | H52: psi
E53: Stage 3 boost pressure: | G53: =P_boost_3_try -> 0 | H53: psi
E54: Stage 1 throttle pressure: | G54: =P_throttle_1_try -> 0 | H54: psi
E55: Stage 2 throttle pressure: | G55: =P_throttle_2_try -> 0 | H55: psi
E56: Pump energy: | G56: =pump_energy -> 323.7387976 | H56: MWh/yr
E58: Concentrate LSI: | G58: =conc_LSI_sys -> 0.3664740565
E59: Concentrate CaSO4 saturation: | G59: =conc_CaSO4_sat_sys -> 0.4371323387
E60: Concentrate BaSO4 saturation: | G60: =conc_BaSO4_sat_sys -> 35.65342464
E61: Concentrate SrSO4 saturation: | G61: =conc_SrSO4_sat_sys -> 1.385207803
E62: Concentrate CaF2 saturation: | G62: =conc_CaF2_sat_sys -> 14.19579526
E63: Concentrate SiO2 saturation: | G63: =conc_SiO2_sat_sys -> 0.7029719224
C64: =(scaling_recommend=1) -> TRUE | D64: =CHOOSE(scaling_recommend,"OK","Saturation too high; use basic antiscalant.","Saturation too high; use premium antiscalant.","Saturation too high; decrease recovery and rerun.") -> OK | G64: =IF(C64,"Scaling OK.",D64) -> Scaling OK.
E66: MANUAL INPUTS
E67: Cells in gold are required; cells in blue are optional
H68: Select Units
C69: =AND(df_units<>"",design_flow_I>0) -> TRUE | D69: =IF(C69,"OK","Flow inputs incomplete") -> OK | E69: Design Flow (including bypass) | F69: design_flow_I | G69: 0.74 | H69: MGD
C70: =AND(af_units<>"",average_flow_I>0,average_flow<=design_flow,average_flow>=design_flow*min_avg_flow) -> TRUE | D70: =IF(C70,"OK",IF(average_flow>design_flow,"The average flow should not be greater than design flow",IF(average_flow<design_flow*min_avg_flow,"The average flow must be at least " & min_avg_flow & " times design flow","Flow inputs incomplete"))) -> OK | E70: Average Flow (including bypass) | F70: average_flow_I | G70: 0.251 | H70: MGD
C71: =IF(ISERROR(max_temp),FALSE,AND(T_feed>0,T_feed<max_temp)) -> TRUE | D71: =IF(C71,"OK",IF(ISERROR(max_temp),"Please choose a membrane element","Feed temperature must be between 0 and " & TEXT(max_temp,"0") & " degrees C")) -> OK | E71: Feed temperature | F71: T_feed | G71: 15 | H71: deg C
E72: Include redundant train? | F72: redundancy_I | G72: no | H72: <-- pick one
E73: For information:
E74: Treatment system design flow | G74: =IF(ISERROR(design_flow),"",IF(df_units="gpm",design_flow_rate, design_flow)) -> 0.74 | H74: =IF(df_units="","",df_units) -> MGD | I74: ="Current bypass percentage is "&TEXT(bp_pct,"0%")&". It may be revised in the Critical Design Assumptions." -> Current bypass percentage is 0%. It may be revised in the Critical Design Assumptions.
E75: Bypass design flow | G75: =IF(ISERROR(design_flow),"",IF(df_units="gpm",bp_flow_rate, bp_flow_rate*60*24/10^6)) -> 0 | H75: =IF(df_units="","",df_units) -> MGD | I75: Click here to go to the bypass setting on the Critical Design Assumptions sheet.
C76: =AND(C69,C70,C71) -> TRUE | D76: =IF(C76,"OK",IF(NOT(C69),D69,IF(NOT(C70),D70,D71))) -> OK | G76: =IF(C76,"System size inputs OK",D76) -> System size inputs OK
C78: =IF(OR(ISERROR(element_index),ISERROR(water_index)),FALSE,OR(max_feed_SDI=0,max_feed_SDI>=feed_sdi)) -> TRUE | D78: =IF(C78,"OK",IF(LEN(element_I)=0,"Please choose a membrane element.",IF(ISERROR(element_index),"Invalid element--please choose another.",IF(ISERROR(water_index),"Invalid feed water--please choose another.","Maximum feed SDI for this element is " & TEXT(max_feed_SDI,"0.0") & ".")))) -> OK | E78: Membrane element | F78: element_I | G78: 8 inch Brackish Water RO | H78: <-- pick one
C79: =IF(ISBLANK(op_trains_I),TRUE,IF(ISERROR(op_trains_I),FALSE,IF(NOT(ISNUMBER(op_trains_I)),FALSE,IF(op_trains_I<=0,FALSE,IF(ISERROR(total_area_op),FALSE,TRUE))))) -> TRUE | D79: =IF(ISBLANK(op_trains_I),"OK",IF(OR(ISERROR(op_trains_I),NOT(ISNUMBER(op_trains_I))),"Please enter a positive number of trains or clear the cell.",IF(op_trains_I<=0,"Please enter a positive number of trains or clear the cell.",IF(ISERROR(total_area_op),"Cannot stage successfully. Please adjust the number of trains, recovery rate, or target flux.","OK")))) -> OK | E79: Number of operating RO trains | F79: op_trains_I | H79: trains | I79: If this cell is blank, the model determines the number of trains based on a minimum number of trains and a maximum permeate flow per train. Does not include redundancy.
C80: =IF(C78,AND(target_recovery>0,target_recovery<100,n_stages<=3),TRUE) -> TRUE | D80: =IF(C80,"OK",IF(OR(target_recovery<=0,target_recovery>=1),"Target recovery must be between 0% and 100%.","Can't achieve target recovery in three stages. Decrease recovery or increase the allowable recovery per element.")) -> OK | E80: Target recovery rate | F80: target_recovery | G80: 0.75 | I80: =IF(ISERROR(element_index),"","Typical " & sys_element_type & " recovery is " & min_sys_recovery*100 & "-" & max_sys_recovery*100 & "%." & IF(design_flow<0.5," Small systems may use lower recoveries.","")) -> Typical RO recovery is 50-85%.
C81: =IF(ISERROR(water_index),FALSE,AND(design_flux<=flux_max,design_flux>=flux_min)) -> TRUE | D81: =IF(C81,"OK",IF(ISERROR(water_index),"Please choose a feed water.",IF(design_flux>flux_max,"Flux must be below "&flux_max&" gfd.","Flux must be greater than "&flux_min&" gfd."))) -> OK | E81: Design flux | F81: design_flux | G81: 16 | H81: gfd | I81: =IF(ISERROR(water_index),"","Flux should be between " & TEXT(flux_min,"0") & " and " & TEXT(flux_max,"0") & " gfd, based on feed SDI. You may change these limits by following the link below.") -> Flux should be between 16 and 20 gfd, based on feed SDI. You may change these limits by following the link below.
E82: For information: Element area | G82: =IF(ISERROR(sys_element_area_I),"",sys_element_area_I) -> 400 | H82: square feet | I82: Click here to go to the flux limits on the Critical Design Assumptions sheet.
E83: ="Total system area"&IF(ISERROR(redundancy),"",IF(redundancy=1," (before redundancy)","")) -> Total system area | G83: =IF(OR(ISERROR(total_area_op),ISERROR(redundancy)),"",TEXT(total_area_op,"0,000")) -> 48,000 | H83: square feet | I83: ="Note:" & " Decreasing the target recovery rate or increasing the design flux will decrease salt passage of the system." -> Note: Decreasing the target recovery rate or increasing the design flux will decrease salt passage of the system.
E84: ="Number of trains"&IF(ISERROR(redundancy),"",IF(redundancy=1," (before redundancy)","")) -> Number of trains | G84: =IF(ISERROR(op_trains),"",op_trains) -> 2 | H84: trains
E85: Train configuration | G85: =IF(OR(ISERROR(n_stages),ISERROR(train_config),ISERROR(nves_1)),"",IF(n_stages>1,train_config,nves_1)) -> 7:3 | H85: =IF(OR(ISERROR(n_stages),ISERROR(train_config),ISERROR(nves_1)),"",IF(n_stages>1,"","vessels in parallel")) -> 
E86: Number of elements per vessel | G86: =IF(ISERROR(el_per_vess),"",IF(el_per_vess>0,el_per_vess,"")) -> 6 | H86: elements/vessel
C87: =AND(C78,C80,C81,C79) -> TRUE | D87: =IF(C87,"OK",IF(NOT(C78),D78,IF(NOT(C80),D80,IF(NOT(C81),D81,D79)))) -> OK | H87: =IF(C87,"Train design inputs OK.",D87) -> Train design inputs OK.
C89: =(LEN(pretreat_acid_I)>0) -> TRUE | D89: =IF(C89,"OK","Choose an acid pretreatment option.") -> OK | E89: Acid for pretreatment | F89: pretreat_acid_I | G89: H2SO4 | H89: <-- pick one
B90: =(pretreat_acid<>0) -> TRUE | C90: =IF(B90,AND(LEN(treated_feed_pH)>0,treated_feed_pH>=min_feed_pH,treated_feed_pH<feed_pH),TRUE) -> TRUE | D90: =IF(C90,"OK",IF(LEN(treated_feed_pH)=0,"Enter the pH of the feed after acid addition.",IF(treated_feed_pH<min_feed_pH,"Minimum feed pH for this element is "& TEXT(min_feed_pH,"0.0")&".","The treated feed pH must be less than the original feed pH."))) -> OK | E90: Treated feed pH | F90: treated_feed_pH | G90: 6.5 | H90: =IF(B90,"S.U.","not required") -> S.U.
C91: =IF(LEN(use_antiscalant_I)>0,NOT(ISERROR(use_antiscalant)),FALSE) -> TRUE | D91: =IF(C91,"OK",IF(LEN(use_antiscalant_I)>0,"Choose an antiscalant option from the dropdown.","Choose an antiscalant option.")) -> OK | E91: Antiscalant | F91: use_antiscalant_I | G91: Premium (sulfate, silica) | H91: <-- pick one
E92: For information: | G92: =IF(AND(pretreat_acid>0,C89,C90),"pH adjustment requires " & TEXT(acid_dose,"0") & " mg/L " & pretreat_acid_I & ", at " & TEXT(CHOOSE(pretreat_acid,acid_strength_HCl,acid_strength_H2SO4),"0%") & " strength.","") -> pH adjustment requires 94 mg/L H2SO4, at 78% strength.
C93: =AND(C89,C90,C91) -> TRUE | D93: =IF(NOT(C89),D89,IF(NOT(C90),D90,IF(NOT(C91),D91,"OK"))) -> OK | G93: =IF(C93,"Pretreatment inputs OK",D93) -> Pretreatment inputs OK
C95: =IF(ISBLANK(clean_interval_override),TRUE,IF(ISNUMBER(clean_interval_override),AND(clean_interval_override<=cleaning_freq_max,clean_interval_override>0),FALSE)) -> TRUE | D95: =IF(C95,"OK",IF(ISNUMBER(clean_interval_override),IF(clean_interval_override>cleaning_freq_max,"Cleaning must take place at least every " & cleaning_freq_max & " months.","Cleaning interval must be greater than zero."),"Cleaning interval must be between 0 and " & cleaning_freq_max & " months.")) -> OK | E95: Cleaning interval | F95: clean_interval_override | H95: months | I95: If left blank, the model will estimate a cleaning interval based on the feed water SDI.
E96: For information: | G96: =IF(ISERROR(water_index),"","Default cleaning interval is " & default_cleaning_interval & " months, based on feed SDI.") -> Default cleaning interval is 8.8 months, based on feed SDI.
C97: =C95 -> TRUE | D97: =IF(C97,"OK",D95) -> OK | G97: =IF(C97,"Cleaning input OK",D97) -> Cleaning input OK
C99: =IF(ISERROR(res_s2_opt),FALSE,OR(res_s2_opt<=4, res_s2_opt=6)) -> TRUE | D99: =IF(C99,"OK",IF(ISERROR(res_s2_opt),"Please choose a residuals discharge option.",CHOOSE(res_s2_opt,"OK","OK","OK","OK","Concentrate recycling is not currently implemented.","OK"))) -> OK | E99: Discharge option for reject/cleaning solution | F99: res_s2_opt_I | G99: direct discharge / ocean outfall | H99: <--pick one | I99: =IF(C99,CHOOSE(res_s2_opt,"","","To accurately estimate evaporation pond area, please check the climate parameters on the Critical Design Assumptions sheet. Please also review the climate assumptions on the O&M Assumptions and Indirect Assumptions sheets.","","Note: Simulation and feed pressure determination do not take recycling into account.","",""),"") -> 
B100: =IF(ISERROR(res_s2_opt),FALSE,(res_s2_opt<>3)) -> TRUE | C100: =IF(NOT(B100),TRUE,IF(ISERROR(res_s1_opt),FALSE,NOT(AND(OR(res_s2_opt=5,res_s2_opt=6),res_s1_opt=4)))) -> TRUE | D100: =IF(C100,"OK",IF(ISERROR(res_s1_opt),"Please choose a flow equalization option.","Flow equalization is required.")) -> OK | E100: Flow equalization for reject/cleaning solution | F100: res_s1_opt_I | G100: no flow equalization | H100: =IF(B100,"<--pick one","not required") -> <--pick one | I100: =IF(ISERROR(res_s2_opt),"",IF(res_s2_opt=3,"Click here to go to the evaporation pond climate parameters.","")) -> 
C101: =NOT(ISERROR(solids_haz)) -> TRUE | D101: =IF(C101,"OK","Solids characteristics required.") -> OK | E101: ="Characteristics of "&IF(ISERROR(res_s2_opt),"solids",IF(res_s2_opt=3,"solids","spent membranes"))&" for disposal" -> Characteristics of spent membranes for disposal | F101: solids_haz_I | G101: non-hazardous | H101: <--pick one | I101: =IF(res_s2_opt=3,"Applies to both spent membranes and evaporation pond solids","") -> 
C102: =AND(C99:C101) -> TRUE | D102: =IF(NOT(C99),D99,IF(NOT(C100),D100,D101)) -> OK | G102: =IF(C102,"Residuals inputs OK" & IF(res_s2_opt=5," (see note about recycling)",""),D102) -> Residuals inputs OK
C104: =NOT(ISERROR(component_level)) -> TRUE | D104: =IF(C104,"OK","Invalid component level input") -> OK | E104: Component level | F104: component_level_I | G104: high cost | H104: <-- pick or leave blank | I104: If blank, the model will use low-cost components.
C105: =NOT(ISERROR(manual)) -> TRUE | D105: =IF(C105,"OK","Invalid system automation input") -> OK | E105: System automation | F105: manual_I | H105: <-- pick or leave blank | I105: If blank, the system will be fully automated.
E106: Include buildings? | F106: include_buildings_I | H106: <-- pick or leave blank | I106: Leave blank to include buildings
E107: Include HVAC? | F107: include_HVAC_I | H107: <-- pick or leave blank | I107: Leave blank to allow model to pick based on component level and building type
E108: Include land? | F108: include_land_I | H108: <-- pick or leave blank | I108: Leave blank to include land
E109: For information: Component Level | G109: =IF(component_level=2,"high cost",IF(component_level=1,"mid cost","low cost")) -> high cost
E110: Automation | G110: =IF(manual=1,"manual",IF(manual=2,"semi-automated",IF(manual=3,"fully automated"))) -> fully automated
C111: =AND(C104:C105) -> TRUE | D111: =IF(NOT(C104),D104,IF(NOT(C105),D105,"OK")) -> OK | G111: =IF(C111,"Automation and component level inputs OK",D111) -> Automation and component level inputs OK

Sheet OUTPUT
A1: OUTPUT SUMMARY
B2: Parameter | C2: Value | D2: Units
B3: Technology | C3: =sys_element_type -> RO
B4: System Size Category | C4: =IF(design_flow<1,"small","large") -> small
B5: Design Flow | C5: =design_flow -> 0.74 | D5: MGD
B6: Average Flow | C6: =average_flow -> 0.251 | D6: MGD
B7: Design flux | C7: =design_flux -> 16 | D7: gfd
B8: Feed water | C8: =INDEX(water_names,water_index,1) -> Low Qual GW
B9: Total membrane area | C9: =total_area -> 48000 | D9: ft^2
B10: Recovery | C10: =recovery_rate -> 0.745979295
B11: Train configuration | C11: =IF(n_stages>1,train_config,nves_1 & " vessels in parallel") -> 7:3
B12: Elements/vessel | C12: =el_per_vess -> 6
B13: Feed pressure | C13: =P_feed_try -> 262.9410347 | D13: psi
B14: Feed/booster pump energy | C14: =pump_energy -> 323.7387976 | D14: MWh/yr
B15: Salt rejection | C15: =salt_rej_sys -> 0.9907863661
B16: Component level | C16: =IF(component_level=2,"high cost",IF(component_level=1,"mid cost","low cost")) -> high cost
B17: System automation | C17: =IF(manual=1,"manual",IF(manual=2,"semi-automated",IF(manual=3,"fully automated"))) -> fully automated
B18: ="Resulting Costs (in year "&TEXT(current_year_cl,0)&" dollars)" -> Resulting Costs (in year 2021 dollars)
B19: Direct Capital Cost | C19: =IF(input_status<>"input complete -- results ready","Action required",IF(missing_cost,"Missing cost!",IF(cost_buildup_error,"Error in buildup!",direct_cost))) -> 1769446.198 | D19: Details | E19: =IF(input_status<>"input complete -- results ready",IF(input_complete,"Press Generate Results","Check INPUT sheet for errors"),IF(missing_cost,"A price is not available for at least one required component. See Use? column below.",IF(cost_buildup_error,"There is an Excel error in the price for at least one component. See Use? column below.",""))) -> 
B20: Add-on Cost | C20: =IF(input_status<>"input complete -- results ready","Action required",IF(missing_cost,"Missing cost!",IF(cost_buildup_error,"Error in buildup!",addon_cost))) -> 39757.21517 | D20: Details
B21: Indirect Capital Cost | C21: =IF(input_status<>"input complete -- results ready","Action required",IF(missing_cost,"Missing cost!",IF(cost_buildup_error,"Error in buildup!",C390))) -> 1221744.687 | D21: Details
B22: Total Capital Cost | C22: =IF(input_status<>"input complete -- results ready","Action required",IF(missing_cost,"Missing cost!",IF(cost_buildup_error,"Error in buildup!",system_cost))) -> 3030948.101 | D22: Details
B23: ="Annualized Capital Cost "&IF(OR(input_status<>"input complete -- results ready",missing_cost,cost_buildup_error),"","(per year over "&useful_life&" years at "&discount_rate*100&"%)") -> Annualized Capital Cost (per year over 28.7 years at 7%) | C23: =IF(input_status<>"input complete -- results ready","Action required",Annualized_Capital_Cost) -> 247697.3231 | D23: Details
B24: Annual O&M Cost (per year) | C24: =IF(input_status<>"input complete -- results ready","Action required",OM_cost) -> 223836.3997 | D24: Details
B25: ="Total Annualized Cost (per year"&IF(OR(input_status<>"input complete -- results ready",ISERROR(OR(TAC_pct_cap,TAC_pct_OM))),"",", "&TEXT(TAC_pct_cap,"0%")&" capital, "&TEXT(TAC_pct_OM,"0%")&" O&M")&")" -> Total Annualized Cost (per year, 53% capital, 47% O&M) | C25: =IF(input_status<>"input complete -- results ready","Action required",IF(missing_cost,"Missing cost!",IF(cost_buildup_error,"Error in buildup!",Annualized_Cost))) -> 471533.7228 | D25: Details
B26: Annualized cost per 1,000 gallons average flow | C26: =IF(input_status<>"input complete -- results ready","Action required",IF(missing_cost,"Missing cost!",IF(cost_buildup_error,"Error in buildup!",C466))) -> 5.146905232
B27: Annualized cost per household per year | C27: =IF(input_status<>"input complete -- results ready","Action required",IF(missing_cost,"Missing cost!",IF(cost_buildup_error,"Error in buildup!",C467))) -> 631.9013799
A30: Direct Capital Cost Details (items in italics, without a 1 in the "Use?" column, represent alternate costs and are excluded from total)
A31: WBS # | B31: Item | C31: Design Quanitity | E31: Design Size | G31: Size used in estimate | I31: Unit Cost | J31: Total Cost | K31: Useful Life | L31: Use? | M31: Full Line Item Name | N31: Priority selection | W31: Useful Life
N32: Small (<1 mgd) | Q32: Medium (1-10 mgd) | T32: Large (>10 mgd)
N33: Low | O33: Mid | P33: High | Q33: Low | R33: Mid | S33: High | T33: Low | U33: Mid | V33: High | W33: Count? | X33: Depreciation | Y33: Buildings
A34: 1 | B34: Membrane Process | W34: =IF(ISERROR(K34*L34),0,IF(K34<1,0,L34)) -> 0 | X34: =IF(W34,J34/K34,0) -> 0
A35: 1.1 | B35: Membrane Elements | C35: =total_elements -> 120 | D35: units | E35: NA | G35: NA | I35: =element_cost -> 749.20125 | J35: =IF(I35="contact vendor","contact vendor",C35*I35) -> 89904.15 | K35: N/A | L35: 1 | M35: =$B$34&" - "&B35 -> Membrane Process - Membrane Elements | N35: 1 | O35: 1 | P35: 1 | Q35: 1 | R35: 1 | S35: 1 | T35: 1 | U35: 1 | V35: 1 | W35: 0 | X35: 0
A36: 1.2 | B36: RO Pressure Vessels | C36: =total_PVs -> 20 | D36: units | E36: =PV_rating -> 450 | F36: psi | G36: =PV_rating -> 450 | H36: psi | I36: =pv_cost -> 1464.2385 | J36: =IF(I36="contact vendor","contact vendor",C36*I36) -> 29284.77001 | K36: =IF(C36=0,"NA",VLOOKUP(PV_rating,CHOOSE(element_class,pv4_base_cost_cl,pv8_base_cost_cl,pv1618_base_cost_cl),IF(ss_cat="large",4,5))) -> 17 | L36: 1 | M36: =$B$34&" - "&B36 -> Membrane Process - RO Pressure Vessels | N36: 1 | O36: 1 | P36: 1 | Q36: 1 | R36: 1 | S36: 1 | T36: 1 | U36: 1 | V36: 1 | W36: 1 | X36: 1722.63353
A37: 1.3 | B37: Feed Line Connectors | W37: 0 | X37: 0
A38: 1.3.1 | B38: Victaulic, Painted | C38: =conn_feed_total -> 40 | D38: units | E38: =IF(C38=0,"NA",conn_feed_diam) -> 1.5 | F38: =IF(C38=0,"","in. diam") -> in. diam | G38: =IF(C38=0,"NA",VLOOKUP(conn_feed_diam, pv_conn_paint_cost_cl, 2)) -> 1.5 | H38: =IF(C38=0,"","in. diam") -> in. diam | I38: =IF(C38=0,"NA",VLOOKUP(conn_feed_diam, pv_conn_paint_cost_cl, 3)) -> 126.525 | J38: =IF(OR(I38="contact vendor",I38="NA"),"--",C38*I38) -> 5061 | K38: =IF(C38=0,"NA",VLOOKUP(conn_feed_diam,pv_conn_paint_cost_cl,IF(ss_cat="large",4,5))) -> 20 | L38: 0 | M38: =$B$34&" - "&$B$37&" - "&B38 -> Membrane Process - Feed Line Connectors - Victaulic, Painted | N38: 1 | O38: 2 | P38: 2 | Q38: 1 | R38: 2 | S38: 2 | T38: 1 | U38: 2 | V38: 2 | W38: 0 | X38: 0
A39: 1.3.1 | B39: Victaulic, Galvanized | C39: =conn_feed_total -> 40 | D39: units | E39: =IF(C39=0,"NA",conn_feed_diam) -> 1.5 | F39: =IF(C39=0,"","in. diam") -> in. diam | G39: =IF(C39=0,"NA",VLOOKUP(conn_feed_diam, pv_conn_paint_cost_cl, 2)) -> 1.5 | H39: =IF(C39=0,"","in. diam") -> in. diam | I39: =IF(C39=0,"NA",VLOOKUP(conn_feed_diam, pv_conn_galv_cost_cl, 3)) -> 159.8625 | J39: =IF(OR(I39="contact vendor",I39="NA"),"--",C39*I39) -> 6394.5 | K39: =IF(C39=0,"NA",VLOOKUP(conn_feed_diam,pv_conn_galv_cost_cl,IF(ss_cat="large",4,5))) -> 20 | L39: 1 | M39: =$B$34&" - "&$B$37&" - "&B39 -> Membrane Process - Feed Line Connectors - Victaulic, Galvanized | N39: 2 | O39: 1 | P39: 1 | Q39: 2 | R39: 1 | S39: 1 | T39: 2 | U39: 1 | V39: 1 | W39: 1 | X39: 319.725
A40: 1.4 | B40: Permeate Line Connectors | W40: 0 | X40: 0
A41: 1.4.1 | B41: Victaulic, Painted | C41: =conn_perm_total -> 0 | D41: units | E41: =IF(C41=0,"NA",conn_perm_diam) -> NA | F41: =IF(C41=0,"","in. diam") ->  | G41: =IF(C41=0,"NA",VLOOKUP(conn_perm_diam, pv_conn_paint_cost_cl, 2)) -> NA | H41: =IF(C41=0,"","in. diam") ->  | I41: =IF(C41=0,"NA",VLOOKUP(conn_perm_diam, pv_conn_paint_cost_cl, 3)) -> NA | J41: =IF(OR(I41="contact vendor",I41="NA"),"--",C41*I41) -> -- | K41: =IF(C41=0,"NA",VLOOKUP(conn_feed_diam,pv_conn_paint_cost_cl,IF(ss_cat="large",4,5))) -> NA | M41: =$B$34&" - "&$B$40&" - "&B41 -> Membrane Process - Permeate Line Connectors - Victaulic, Painted | N41: 1 | O41: 2 | P41: 2 | Q41: 1 | R41: 2 | S41: 2 | T41: 1 | U41: 2 | V41: 2 | W41: 0 | X41: 0
A42: 1.4.1 | B42: Victaulic, Galvanized | C42: =conn_perm_total -> 0 | D42: units | E42: =IF(C42=0,"NA",conn_perm_diam) -> NA | G42: =IF(C42=0,"NA",VLOOKUP(conn_perm_diam, pv_conn_galv_cost_cl, 2)) -> NA | H42: =IF(C42=0,"","in. diam") ->  | I42: =IF(C42=0,"NA",VLOOKUP(conn_perm_diam, pv_conn_galv_cost_cl, 3)) -> NA | J42: =IF(OR(I42="contact vendor",I42="NA"),"--",C42*I42) -> -- | K42: =IF(C42=0,"NA",VLOOKUP(conn_feed_diam,pv_conn_galv_cost_cl,IF(ss_cat="large",4,5))) -> NA | M42: =$B$34&" - "&$B$40&" - "&B42 -> Membrane Process - Permeate Line Connectors - Victaulic, Galvanized | N42: 2 | O42: 1 | P42: 1 | Q42: 2 | R42: 1 | S42: 1 | T42: 2 | U42: 1 | V42: 1 | W42: 0 | X42: 0
A43: 1.5 | B43: Piping On Rack | W43: 0 | X43: 0
A44: 1.5.1 | B44: Feed - Stainless Steel | C44: =feed_pipe_len -> 80 | D44: lf | E44: =feed_hdr_diam -> 6 | F44: in. diam | G44: =feed_hdr_diam -> 6 | H44: =IF(E44=0,"","in. diam") -> in. diam | I44: =IF(curve=1,ss_pipe_eq_feed_rack,VLOOKUP(feed_hdr_diam,ss_pipe_cost_cl,3)) -> 258.5553958 | J44: =IF(OR(I44="contact vendor",I44="NA"),"--",C44*I44) -> 20684.43167 | K44: =IF(C44=0,"NA",VLOOKUP(E44,ss_pipe_cost_cl,IF(ss_cat="large",4,5))) -> 40 | L44: 1 | M44: =$B$34&" - "&$B$43&" - "&B44 -> Membrane Process - Piping On Rack - Feed - Stainless Steel | N44: 1 | O44: 1 | P44: 1 | Q44: 1 | R44: 1 | S44: 1 | T44: 1 | U44: 1 | V44: 1 | W44: 1 | X44: 517.1107916
A45: 1.5.2 | B45: Permeate - PVC | C45: =perm_pipe_len -> 80 | D45: lf | E45: =perm_hdr_diam -> 4 | F45: in. diam | G45: =perm_hdr_diam -> 4 | H45: =IF(E45=0,"","in. diam") -> in. diam | I45: =IF(curve=1,pvc_pipe_eq_perm_rack,VLOOKUP(perm_hdr_diam,pvc_pipe_cost_cl,3)) -> 6.185340873 | J45: =IF(OR(I45="contact vendor",I45="NA"),"--",C45*I45) -> 494.8272698 | K45: =IF(C45=0,"NA",VLOOKUP(E45,pvc_pipe_cost_cl,IF(ss_cat="large",4,5))) -> 17 | L45: 1 | M45: =$B$34&" - "&$B$43&" - "&B45 -> Membrane Process - Piping On Rack - Permeate - PVC | N45: 1 | O45: 1 | P45: 1 | Q45: 1 | R45: 1 | S45: 1 | T45: 1 | U45: 1 | V45: 1 | W45: 1 | X45: 29.10748646
A46: 1.5.3 | B46: Concentrate - Stainless Steel | C46: =conc_pipe_len -> 80 | D46: lf | E46: =conc_hdr_diam -> 4 | F46: in. diam | G46: =conc_hdr_diam -> 4 | H46: =IF(E46=0,"","in. diam") -> in. diam | I46: =IF(curve=1,ss_pipe_eq_conc_rack,VLOOKUP(conc_hdr_diam,ss_pipe_cost_cl,3)) -> 185.0043147 | J46: =IF(OR(I46="contact vendor",I46="NA"),"--",C46*I46) -> 14800.34518 | K46: =IF(C46=0,"NA",VLOOKUP(E46,ss_pipe_cost_cl,IF(ss_cat="large",4,5))) -> 40 | L46: 1 | M46: =$B$34&" - "&$B$43&" - "&B46 -> Membrane Process - Piping On Rack - Concentrate - Stainless Steel | N46: 1 | O46: 1 | P46: 1 | Q46: 1 | R46: 1 | S46: 1 | T46: 1 | U46: 1 | V46: 1 | W46: 1 | X46: 370.0086295
A47: 1.6 | B47: Vessel Support Rack - Steel Beams | C47: =total_beam_length -> 512.8056436 | D47: lf | E47: NA | G47: NA | I47: =VLOOKUP(0,pv_rack_member_cost_cl,3) -> 38.5 | J47: =IF(I47="contact vendor","contact vendor",C47*I47) -> 19743.01728 | K47: =VLOOKUP(0,pv_rack_member_cost_cl,IF(ss_cat="large",4,5)) -> 20 | L47: 1 | M47: =$B$34&" - "&B47 -> Membrane Process - Vessel Support Rack - Steel Beams | N47: 1 | O47: 1 | P47: 1 | Q47: 1 | R47: 1 | S47: 1 | T47: 1 | U47: 1 | V47: 1 | W47: 1 | X47: 987.1508639
A48: 1.7 | B48: Markup for Rack Assembly | C48: =total_racks -> 2 | D48: units | E48: NA | G48: NA | I48: =J48/C48 -> 27711.14364 | J48: =rack_assembly_markup*(SUMPRODUCT(J36:J43,L36:L43)+J47*L47) -> 55422.28729 | K48: =Rack_cost_for_UL/Rack_depreciation -> 23.16472375 | L48: 1 | M48: =$B$34&" - "&B48 -> Membrane Process - Markup for Rack Assembly | N48: 1 | O48: 1 | P48: 1 | Q48: 1 | R48: 1 | S48: 1 | T48: 1 | U48: 1 | V48: 1 | W48: 1 | X48: 2392.529602
A49: 2 | B49: Tanks, Basins, and Lagoons | W49: 0 | X49: 0
A50: 2.1 | B50: Pretreatment Acid Storage Tanks | W50: 0 | X50: 0
A51: 2.1.1 | B51: Plastic (HXLPE) | C51: =acid_tanks -> 1 | D51: units | E51: =IF(C51=0,"NA",acid_tank_size) -> 581 | F51: =IF(C51=0,"","gal") -> gal | G51: =IF(C51=0,"NA",IF(curve=1,acid_tank_size,VLOOKUP(acid_tank_size,pl_cst_cost_cl,2))) -> 581 | H51: =IF(C51=0,"","gal") -> gal | I51: =IF(C51=0,"NA",IF(curve=1,pl_cst_eq_acid,VLOOKUP(acid_tank_size,pl_cst_cost_cl,3))) -> 1428.58816 | J51: =IF(OR(I51="contact vendor",I51="NA"),"--",C51*I51) -> 1428.58816 | K51: =IF(C51=0,"NA",VLOOKUP(acid_tank_size,pl_cst_cost_cl,IF(ss_cat="large",4,5))) -> 7 | L51: 0 | M51: =$B$50&" - "&B51 -> Pretreatment Acid Storage Tanks - Plastic (HXLPE) | N51: 1 | O51: 2 | P51: 2 | Q51: 1 | R51: 2 | S51: 2 | T51: 1 | U51: 2 | V51: 2 | W51: 0 | X51: 0
A52: 2.1.1 | B52: Fiberglass | C52: =acid_tanks -> 1 | D52: units | E52: =IF(C52=0,"NA",acid_tank_size) -> 581 | F52: =IF(C52=0,"","gal") -> gal | G52: =IF(C52=0,"NA",IF(curve=1,acid_tank_size,VLOOKUP(acid_tank_size,fg_cst_cost_cl,2))) -> 581 | H52: =IF(C52=0,"","gal") -> gal | I52: =IF(C52=0,"NA",IF(curve=1,fg_cst_eq_acid,VLOOKUP(acid_tank_size,fg_cst_cost_cl,3))) -> 8669.56105 | J52: =IF(OR(I52="contact vendor",I52="NA"),"--",C52*I52) -> 8669.56105 | K52: =IF(C52=0,"NA",VLOOKUP(acid_tank_size,fg_cst_cost_cl,IF(ss_cat="large",4,5))) -> 7 | L52: 1 | M52: =$B$50&" - "&B52 -> Pretreatment Acid Storage Tanks - Fiberglass | N52: 2 | O52: 1 | P52: 1 | Q52: 2 | R52: 1 | S52: 1 | T52: 2 | U52: 1 | V52: 1 | W52: 1 | X52: 1238.508721
A53: 2.1.2 | B53: Secondary Containment - Concrete Curbing | C53: =IF(OR(include_sec_cont=0,acid_tanks=0),0,acid_st_curb_concrete) -> 5 | D53: cy | E53: NA | G53: NA | I53: =IF(C53=0,"NA",VLOOKUP(0,conc_basin_cost_cl,3)) -> 739.6055887 | J53: =IF(C53=0,"--",IF(I53="contact vendor","--",C53*I53)) -> 3698.027944 | K53: =IF(C53=0,"NA",VLOOKUP(0,conc_basin_cost_cl,IF(ss_cat="large",4,5))) -> 37 | L53: 1 | M53: =$B$50&" - "&B53 -> Pretreatment Acid Storage Tanks - Secondary Containment - Concrete Curbing | N53: 1 | O53: 1 | P53: 1 | Q53: 1 | R53: 1 | S53: 1 | T53: 1 | U53: 1 | V53: 1 | W53: =IF(ISERROR(K53*L53),0,IF(K53<1,0,L53)) -> 1 | X53: =IF(W53,J53/K53,0) -> 99.94670118
A54: 2.1.3 | B54: Secondary Containment - Chemical Resistant Coating | C54: =IF(OR(include_sec_cont=0,acid_tanks=0),0,acid_st_coating_gal) -> 2 | D54: gal | E54: NA | G54: NA | I54: =IF(C54=0,"NA",VLOOKUP(0,conc_coating_cost_cl,3)) -> 389.13 | J54: =IF(C54=0,"--",IF(I54="contact vendor","--",C54*I54)) -> 778.26 | K54: =IF(C54=0,"NA",VLOOKUP(0,conc_coating_cost_cl,IF(ss_cat="large",4,5))) -> 10 | L54: 1 | M54: Pretreatment Acid Storage Tanks - Secondary Containment - Chemical Resistant Coating | N54: 1 | O54: 1 | P54: 1 | Q54: 1 | R54: 1 | S54: 1 | T54: 1 | U54: 1 | V54: 1 | W54: 1 | X54: 77.826
A55: 2.2 | B55: Pretreatment Acid Day Tanks | W55: =IF(ISERROR(K55*L55),0,IF(K55<1,0,L55)) -> 0 | X55: =IF(W55,J55/K55,0) -> 0
A56: 2.2.1 | B56: Plastic/XLPE | C56: =acid_day_tanks -> 1 | D56: units | E56: =IF(C56=0,"NA",acid_day_tank_vol) -> 58 | F56: =IF(C56=0,"","gal") -> gal | G56: =IF(C56=0,"NA",IF(curve=1,acid_day_tank_vol,VLOOKUP(acid_day_tank_vol,pl_cst_cost_cl,2))) -> 58 | H56: =IF(C56=0,"","gal") -> gal | I56: =IF(C56=0,"NA",IF(curve=1,pl_acid_day_eq,VLOOKUP(acid_day_tank_vol,pl_cst_cost_cl,3))) -> 776.7326086 | J56: =IF(C56=0,"--",IF(I56="contact vendor","--",C56*I56)) -> 776.7326086 | K56: =IF(C56=0,"NA",VLOOKUP(acid_day_tank_vol,pl_cst_cost_cl,IF(ss_cat="large",4,5))) -> 7 | L56: 0 | M56: =$B$55&" - "&B56 -> Pretreatment Acid Day Tanks - Plastic/XLPE | N56: 1 | O56: 2 | P56: 2 | Q56: 1 | R56: 2 | S56: 2 | T56: 1 | U56: 2 | V56: 2 | W56: =IF(ISERROR(K56*L56),0,IF(K56<1,0,L56)) -> 0 | X56: =IF(W56,J56/K56,0) -> 0
A57: 2.2.1 | B57: Fiberglass | C57: =acid_day_tanks -> 1 | D57: units | E57: =IF(C57=0,"NA",acid_day_tank_vol) -> 58 | F57: =IF(C57=0,"","gal") -> gal | G57: =IF(C57=0,"NA",IF(curve=1,acid_day_tank_vol,VLOOKUP(acid_day_tank_vol,fg_cst_cost_cl,2))) -> 58 | H57: =IF(C57=0,"","gal") -> gal | I57: =IF(C57=0,"NA",IF(curve=1,fg_acid_day_eq,VLOOKUP(acid_day_tank_vol,fg_cst_cost_cl,3))) -> 2433.369392 | J57: =IF(C57=0,"--",IF(I57="contact vendor","--",C57*I57)) -> 2433.369392 | K57: =IF(C57=0,"NA",VLOOKUP(acid_day_tank_vol,fg_cst_cost_cl,IF(ss_cat="large",4,5))) -> 7 | L57: 1 | M57: =$B$55&" - "&B57 -> Pretreatment Acid Day Tanks - Fiberglass | N57: 2 | O57: 1 | P57: 1 | Q57: 2 | R57: 1 | S57: 1 | T57: 2 | U57: 1 | V57: 1 | W57: =IF(ISERROR(K57*L57),0,IF(K57<1,0,L57)) -> 1 | X57: =IF(W57,J57/K57,0) -> 347.6241988
A58: 2.2.2 | B58: Secondary Containment - Concrete Curbing | C58: =IF(OR(include_sec_cont=0,acid_day_tanks=0),0,acid_dt_curb_concrete) -> 1 | D58: cy | E58: NA | G58: NA | I58: =IF(C58=0,"NA",VLOOKUP(0,conc_basin_cost_cl,3)) -> 739.6055887 | J58: =IF(C58=0,"--",IF(I58="contact vendor","--",C58*I58)) -> 739.6055887 | K58: =IF(C58=0,"NA",VLOOKUP(0,conc_basin_cost_cl,IF(ss_cat="large",4,5))) -> 37 | L58: 1 | M58: =$B$55&" - "&B58 -> Pretreatment Acid Day Tanks - Secondary Containment - Concrete Curbing | N58: 1 | O58: 1 | P58: 1 | Q58: 1 | R58: 1 | S58: 1 | T58: 1 | U58: 1 | V58: 1 | W58: =IF(ISERROR(K58*L58),0,IF(K58<1,0,L58)) -> 1 | X58: =IF(W58,J58/K58,0) -> 19.98934024
A59: 2.2.3 | B59: Secondary Containment - Chemical Resistant Coating | C59: =IF(OR(include_sec_cont=0,acid_day_tanks=0),0,acid_dt_coating_gal) -> 1 | D59: gal | E59: NA | G59: NA | I59: =IF(C59=0,"NA",VLOOKUP(0,conc_coating_cost_cl,3)) -> 389.13 | J59: =IF(C59=0,"--",IF(I59="contact vendor","--",C59*I59)) -> 389.13 | K59: =IF(C59=0,"NA",VLOOKUP(0,conc_coating_cost_cl,IF(ss_cat="large",4,5))) -> 10 | L59: 1 | M59: =$B$55&" - "&B59 -> Pretreatment Acid Day Tanks - Secondary Containment - Chemical Resistant Coating | N59: 1 | O59: 1 | P59: 1 | Q59: 1 | R59: 1 | S59: 1 | T59: 1 | U59: 1 | V59: 1 | W59: 1 | X59: 38.913
A60: 2.3 | B60: Pretreatment Antiscalant Tanks | W60: =IF(ISERROR(K60*L60),0,IF(K60<1,0,L60)) -> 0 | X60: =IF(W60,J60/K60,0) -> 0
A61: 2.3.1 | B61: Plastic (XLPE) | C61: =anti_tanks -> 1 | D61: units | E61: =IF(C61=0,"NA",anti_tank_size) -> 32 | F61: =IF(C61=0,"","gal") -> gal | G61: =IF(C61=0,"NA",IF(curve=1,anti_tank_size,VLOOKUP(anti_tank_size,pl_cst_cost_cl,2))) -> 32 | H61: =IF(C61=0,"","gal") -> gal | I61: =IF(C61=0,"NA",IF(curve=1,pl_cst_eq_anti,VLOOKUP(anti_tank_size,pl_cst_cost_cl,3))) -> 747.0365781 | J61: =IF(OR(I61="contact vendor",I61="NA"),"--",C61*I61) -> 747.0365781 | K61: =IF(C61=0,"NA",VLOOKUP(anti_tank_size,pl_cst_cost_cl,IF(ss_cat="large",4,5))) -> 7 | L61: 0 | M61: =$B$60&" - "&B61 -> Pretreatment Antiscalant Tanks - Plastic (XLPE) | N61: 1 | O61: 2 | P61: 3 | Q61: 1 | R61: 2 | S61: 3 | T61: 1 | U61: 2 | V61: 3 | W61: =IF(ISERROR(K61*L61),0,IF(K61<1,0,L61)) -> 0 | X61: =IF(W61,J61/K61,0) -> 0
A62: 2.3.1 | B62: Fiberglass | C62: =anti_tanks -> 1 | D62: units | E62: =IF(C62=0,"NA",anti_tank_size) -> 32 | F62: =IF(C62=0,"","gal") -> gal | G62: =IF(C62=0,"NA",IF(curve=1,anti_tank_size,VLOOKUP(anti_tank_size,fg_cst_cost_cl,2))) -> 32 | H62: =IF(C62=0,"","gal") -> gal | I62: =IF(C62=0,"NA",IF(curve=1,fg_cst_eq_anti,VLOOKUP(anti_tank_size,fg_cst_cost_cl,3))) -> 1753.071369 | J62: =IF(OR(I62="contact vendor",I62="NA"),"--",C62*I62) -> 1753.071369 | K62: =IF(C62=0,"NA",VLOOKUP(anti_tank_size,fg_cst_cost_cl,IF(ss_cat="large",4,5))) -> 7 | L62: 0 | M62: =$B$60&" - "&B62 -> Pretreatment Antiscalant Tanks - Fiberglass | N62: 2 | O62: 1 | P62: 2 | Q62: 2 | R62: 1 | S62: 2 | T62: 2 | U62: 1 | V62: 2 | W62: =IF(ISERROR(K62*L62),0,IF(K62<1,0,L62)) -> 0 | X62: =IF(W62,J62/K62,0) -> 0
A63: 2.3.1 | B63: Stainless Steel | C63: =anti_tanks -> 1 | D63: units | E63: =IF(C63=0,"NA",anti_tank_size) -> 32 | F63: =IF(C63=0,"","gal") -> gal | G63: =IF(C63=0,"NA",IF(curve=1,anti_tank_size,VLOOKUP(anti_tank_size,ss_cst_cost_cl,2))) -> 32 | H63: =IF(C63=0,"","gal") -> gal | I63: =IF(C63=0,"NA",IF(curve=1,ss_cst_eq_anti,VLOOKUP(anti_tank_size,ss_cst_cost_cl,3))) -> 714.1400896 | J63: =IF(OR(I63="contact vendor",I63="NA"),"--",C63*I63) -> 714.1400896 | K63: =IF(C63=0,"NA",VLOOKUP(anti_tank_size,ss_cst_cost_cl,IF(ss_cat="large",4,5))) -> 30 | L63: 1 | M63: =$B$60&" - "&B63 -> Pretreatment Antiscalant Tanks - Stainless Steel | N63: 3 | O63: 3 | P63: 1 | Q63: 3 | R63: 3 | S63: 1 | T63: 3 | U63: 3 | V63: 1 | W63: =IF(ISERROR(K63*L63),0,IF(K63<1,0,L63)) -> 1 | X63: =IF(W63,J63/K63,0) -> 23.80466965
A64: 2.3.2 | B64: Secondary Containment - Concrete Curbing | C64: =IF(OR(include_sec_cont=0,anti_tanks=0),0,anti_st_curb_concrete) -> 1 | D64: cy | E64: NA | G64: NA | I64: =IF(C64=0,"NA",VLOOKUP(0,conc_basin_cost_cl,3)) -> 739.6055887 | J64: =IF(C64=0,"--",IF(I64="contact vendor","--",C64*I64)) -> 739.6055887 | K64: =IF(C64=0,"NA",VLOOKUP(0,conc_basin_cost_cl,IF(ss_cat="large",4,5))) -> 37 | L64: 1 | M64: =$B$60&" - "&B64 -> Pretreatment Antiscalant Tanks - Secondary Containment - Concrete Curbing | N64: 1 | O64: 1 | P64: 1 | Q64: 1 | R64: 1 | S64: 1 | T64: 1 | U64: 1 | V64: 1 | W64: =IF(ISERROR(K64*L64),0,IF(K64<1,0,L64)) -> 1 | X64: =IF(W64,J64/K64,0) -> 19.98934024
A65: 2.3.3 | B65: Secondary Containment - Chemical Resistant Coating | C65: =IF(OR(include_sec_cont=0,anti_tanks=0),0,anti_st_coating_gal) -> 1 | D65: gal | E65: NA | G65: NA | I65: =IF(C65=0,"NA",VLOOKUP(0,conc_coating_cost_cl,3)) -> 389.13 | J65: =IF(C65=0,"--",IF(I65="contact vendor","--",C65*I65)) -> 389.13 | K65: =IF(C65=0,"NA",VLOOKUP(0,conc_coating_cost_cl,IF(ss_cat="large",4,5))) -> 10 | L65: 1 | M65: Pretreatment Antiscalant Tanks - Secondary Containment - Chemical Resistant Coating | N65: 1 | O65: 1 | P65: 1 | Q65: 1 | R65: 1 | S65: 1 | T65: 1 | U65: 1 | V65: 1 | W65: 1 | X65: 38.913
A66: 2.4 | B66: Pretreatment Antiscalant Day Tanks | W66: =IF(ISERROR(K66*L66),0,IF(K66<1,0,L66)) -> 0 | X66: =IF(W66,J66/K66,0) -> 0
A67: 2.4.1 | B67: Plastic/XLPE | C67: =anti_day_tanks -> 0 | D67: units | E67: =IF(C67=0,"NA",anti_day_tank_vol) -> NA | F67: =IF(C67=0,"","gal") ->  | G67: =IF(C67=0,"NA",IF(curve=1,anti_day_tank_vol,VLOOKUP(anti_day_tank_vol,pl_cst_cost_cl,2))) -> NA | H67: =IF(C67=0,"","gal") ->  | I67: =IF(C67=0,"NA",IF(curve=1,pl_anti_day_eq,VLOOKUP(anti_day_tank_vol,pl_cst_cost_cl,3))) -> NA | J67: =IF(C67=0,"--",IF(I67="contact vendor","--",C67*I67)) -> -- | K67: =IF(C67=0,"NA",VLOOKUP(anti_day_tank_vol,pl_cst_cost_cl,IF(ss_cat="large",4,5))) -> NA | M67: =$B$66&" - "&B67 -> Pretreatment Antiscalant Day Tanks - Plastic/XLPE | N67: 1 | O67: 2 | P67: 3 | Q67: 1 | R67: 2 | S67: 3 | T67: 1 | U67: 2 | V67: 3 | W67: =IF(ISERROR(K67*L67),0,IF(K67<1,0,L67)) -> 0 | X67: =IF(W67,J67/K67,0) -> 0
A68: 2.4.1 | B68: Fiberglass | C68: =anti_day_tanks -> 0 | D68: units | E68: =IF(C68=0,"NA",anti_day_tank_vol) -> NA | F68: =IF(C68=0,"","gal") ->  | G68: =IF(C68=0,"NA",IF(curve=1,anti_day_tank_vol,VLOOKUP(anti_day_tank_vol,fg_cst_cost_cl,2))) -> NA | H68: =IF(C68=0,"","gal") ->  | I68: =IF(C68=0,"NA",IF(curve=1,fg_anti_day_eq,VLOOKUP(anti_day_tank_vol,fg_cst_cost_cl,3))) -> NA | J68: =IF(C68=0,"--",IF(I68="contact vendor","--",C68*I68)) -> -- | K68: =IF(C68=0,"NA",VLOOKUP(anti_day_tank_vol,fg_cst_cost_cl,IF(ss_cat="large",4,5))) -> NA | M68: =$B$66&" - "&B68 -> Pretreatment Antiscalant Day Tanks - Fiberglass | N68: 2 | O68: 1 | P68: 2 | Q68: 2 | R68: 1 | S68: 2 | T68: 2 | U68: 1 | V68: 2 | W68: =IF(ISERROR(K68*L68),0,IF(K68<1,0,L68)) -> 0 | X68: =IF(W68,J68/K68,0) -> 0
A69: 2.4.1 | B69: Stainless Steel | C69: =anti_day_tanks -> 0 | D69: units | E69: =IF(C69=0,"NA",anti_day_tank_vol) -> NA | F69: =IF(C69=0,"","gal") ->  | G69: =IF(C69=0,"NA",IF(curve=1,anti_day_tank_vol,VLOOKUP(anti_day_tank_vol,ss_cst_cost_cl,2))) -> NA | H69: =IF(C69=0,"","gal") ->  | I69: =IF(C69=0,"NA",IF(curve=1,ss_anti_day_eq,VLOOKUP(anti_day_tank_vol,ss_cst_cost_cl,3))) -> NA | J69: =IF(C69=0,"--",IF(I69="contact vendor","--",C69*I69)) -> -- | K69: =IF(C69=0,"NA",VLOOKUP(anti_day_tank_vol,ss_cst_cost_cl,IF(ss_cat="large",4,5))) -> NA | M69: =$B$66&" - "&B69 -> Pretreatment Antiscalant Day Tanks - Stainless Steel | N69: 3 | O69: 3 | P69: 1 | Q69: 3 | R69: 3 | S69: 1 | T69: 3 | U69: 3 | V69: 1 | W69: =IF(ISERROR(K69*L69),0,IF(K69<1,0,L69)) -> 0 | X69: =IF(W69,J69/K69,0) -> 0
A70: 2.4.2 | B70: Secondary Containment - Concrete Curbing | C70: =IF(OR(include_sec_cont=0,anti_day_tanks=0),0,anti_dt_curb_concrete) -> 0 | D70: cy | E70: NA | G70: NA | I70: =IF(C70=0,"NA",VLOOKUP(0,conc_basin_cost_cl,3)) -> NA | J70: =IF(C70=0,"--",IF(I70="contact vendor","--",C70*I70)) -> -- | K70: =IF(C70=0,"NA",VLOOKUP(0,conc_basin_cost_cl,IF(ss_cat="large",4,5))) -> NA | M70: =$B$66&" - "&B70 -> Pretreatment Antiscalant Day Tanks - Secondary Containment - Concrete Curbing | N70: 1 | O70: 1 | P70: 1 | Q70: 1 | R70: 1 | S70: 1 | T70: 1 | U70: 1 | V70: 1 | W70: =IF(ISERROR(K70*L70),0,IF(K70<1,0,L70)) -> 0 | X70: =IF(W70,J70/K70,0) -> 0
A71: 2.4.3 | B71: Secondary Containment - Chemical Resistant Coating | C71: =IF(OR(include_sec_cont=0,anti_day_tanks=0),0,anti_dt_coating_gal) -> 0 | D71: gal | E71: NA | G71: NA | I71: =IF(C71=0,"NA",VLOOKUP(0,conc_coating_cost_cl,3)) -> NA | J71: =IF(C71=0,"--",IF(I71="contact vendor","--",C71*I71)) -> -- | K71: =IF(C71=0,"NA",VLOOKUP(0,conc_coating_cost_cl,IF(ss_cat="large",4,5))) -> NA | M71: =$B$66&" - "&B71 -> Pretreatment Antiscalant Day Tanks - Secondary Containment - Chemical Resistant Coating | N71: 1 | O71: 1 | P71: 1 | Q71: 1 | R71: 1 | S71: 1 | T71: 1 | U71: 1 | V71: 1 | W71: 0 | X71: 0
A72: 2.5 | B72: Mixers for Antiscalant Storage Tanks | W72: =IF(ISERROR(K72*L72),0,IF(K72<1,0,L72)) -> 0 | X72: =IF(W72,J72/K72,0) -> 0
A73: 2.5.1 | B73: Portable | C73: =cmixers -> 0 | D73: units | E73: =IF(C73=0,"NA",cmix_size) -> NA | F73: =IF(C73=0,"","hp") ->  | G73: =IF(C73=0,"NA",VLOOKUP(cmix_size,port_mix_cost_cl,2)) -> NA | H73: =IF(C73=0,"","hp") ->  | I73: =IF(C73=0,"NA",VLOOKUP(cmix_size,port_mix_cost_cl,3)) -> NA | J73: =IF(C73=0,"--",IF(I73="contact vendor","--",C73*I73)) -> -- | K73: =IF(C73=0,"NA",VLOOKUP(cmix_size,port_mix_cost_cl,IF(ss_cat="large",4,5))) -> NA | M73: =$B$72&" - "&B73 -> Mixers for Antiscalant Storage Tanks - Portable | N73: 3 | O73: 3 | P73: 3 | Q73: 3 | R73: 3 | S73: 3 | T73: 3 | U73: 3 | V73: 3 | W73: 0 | X73: 0
A74: 2.5.1 | B74: Mounted | C74: =cmixers -> 0 | D74: units | E74: =IF(C74=0,"NA",cmix_size) -> NA | F74: =IF(C74=0,"","hp") ->  | G74: =IF(C74=0,"NA",IF(curve=1,cmix_size,VLOOKUP(cmix_size,mount_mix_cost_cl,2))) -> NA | H74: =IF(C74=0,"","hp") ->  | I74: =IF(C74=0,"NA",IF(curve=1,cmount_mix_eq,VLOOKUP(cmix_size,mount_mix_cost_cl,3))) -> NA | J74: =IF(C74=0,"--",IF(I74="contact vendor","--",C74*I74)) -> -- | K74: =IF(C74=0,"NA",VLOOKUP(cmix_size,mount_mix_cost_cl,IF(ss_cat="large",4,5))) -> NA | M74: =$B$72&" - "&B74 -> Mixers for Antiscalant Storage Tanks - Mounted | N74: 1 | O74: 1 | P74: 1 | Q74: 1 | R74: 1 | S74: 1 | T74: 1 | U74: 1 | V74: 1 | W74: 0 | X74: 0
A75: 2.5.1 | B75: Impeller | C75: =cmixers -> 0 | D75: units | E75: =IF(C75=0,"NA",cmix_size) -> NA | F75: =IF(C75=0,"","hp") ->  | G75: =IF(C75=0,"NA",IF(curve=1,cmix_size,VLOOKUP(cmix_size,imp_mix_cost_cl,2))) -> NA | H75: =IF(C75=0,"","hp") ->  | I75: =IF(C75=0,"NA",IF(curve=1,cimp_mix_eq,VLOOKUP(cmix_size,imp_mix_cost_cl,3))) -> NA | J75: =IF(C75=0,"--",IF(I75="contact vendor","--",C75*I75)) -> -- | K75: =IF(C75=0,"NA",VLOOKUP(cmix_size,imp_mix_cost_cl,IF(ss_cat="large",4,5))) -> NA | M75: =$B$72&" - "&B75 -> Mixers for Antiscalant Storage Tanks - Impeller | N75: 2 | O75: 2 | P75: 2 | Q75: 2 | R75: 2 | S75: 2 | T75: 2 | U75: 2 | V75: 2 | W75: 0 | X75: 0
A76: 2.6 | B76: Mixers for Antiscalant Day Tanks | W76: 0 | X76: 0
A77: 2.6.1 | B77: Portable | C77: =dmixers -> 0 | D77: units | E77: =IF(C77=0,"NA",dmix_size) -> NA | F77: =IF(C77=0,"","hp") ->  | G77: =IF(C77=0,"NA",VLOOKUP(dmix_size,port_mix_cost_cl,2)) -> NA | H77: =IF(C77=0,"","hp") ->  | I77: =IF(C77=0,"NA",VLOOKUP(dmix_size,port_mix_cost_cl,3)) -> NA | J77: =IF(C77=0,"--",IF(I77="contact vendor","--",C77*I77)) -> -- | K77: =IF(C77=0,"NA",VLOOKUP(dmix_size,port_mix_cost_cl,IF(ss_cat="large",4,5))) -> NA | M77: =$B$76&" - "&B77 -> Mixers for Antiscalant Day Tanks - Portable | N77: 3 | O77: 3 | P77: 3 | Q77: 3 | R77: 3 | S77: 3 | T77: 3 | U77: 3 | V77: 3 | W77: 0 | X77: 0
A78: 2.6.1 | B78: Mounted | C78: =dmixers -> 0 | D78: units | E78: =IF(C78=0,"NA",dmix_size) -> NA | F78: =IF(C78=0,"","hp") ->  | G78: =IF(C78=0,"NA",IF(curve=1,dmix_size,VLOOKUP(dmix_size,mount_mix_cost_cl,2))) -> NA | H78: =IF(C78=0,"","hp") ->  | I78: =IF(C78=0,"NA",IF(curve=1,dmount_mix_eq,VLOOKUP(dmix_size,mount_mix_cost_cl,3))) -> NA | J78: =IF(C78=0,"--",IF(I78="contact vendor","--",C78*I78)) -> -- | K78: =IF(C78=0,"NA",VLOOKUP(dmix_size,mount_mix_cost_cl,IF(ss_cat="large",4,5))) -> NA | M78: =$B$76&" - "&B78 -> Mixers for Antiscalant Day Tanks - Mounted | N78: 1 | O78: 1 | P78: 1 | Q78: 1 | R78: 1 | S78: 1 | T78: 1 | U78: 1 | V78: 1 | W78: 0 | X78: 0
A79: 2.6.1 | B79: Impeller | C79: =dmixers -> 0 | D79: units | E79: =IF(C79=0,"NA",dmix_size) -> NA | F79: =IF(C79=0,"","hp") ->  | G79: =IF(C79=0,"NA",IF(curve=1,dmix_size,VLOOKUP(dmix_size,imp_mix_cost_cl,2))) -> NA | H79: =IF(C79=0,"","hp") ->  | I79: =IF(C79=0,"NA",IF(curve=1,dimp_mix_eq,VLOOKUP(dmix_size,imp_mix_cost_cl,3))) -> NA | J79: =IF(C79=0,"--",IF(I79="contact vendor","--",C79*I79)) -> -- | K79: =IF(C79=0,"NA",VLOOKUP(dmix_size,imp_mix_cost_cl,IF(ss_cat="large",4,5))) -> NA | M79: =$B$76&" - "&B79 -> Mixers for Antiscalant Day Tanks - Impeller | N79: 2 | O79: 2 | P79: 2 | Q79: 2 | R79: 2 | S79: 2 | T79: 2 | U79: 2 | V79: 2 | W79: 0 | X79: 0
A80: 2.7 | B80: Cleaning Solution Makeup Tanks | W80: =IF(ISERROR(K80*L80),0,IF(K80<1,0,L80)) -> 0 | X80: =IF(W80,J80/K80,0) -> 0
A81: 2,7,1 | B81: Plastic (XLPE) | C81: =total_chem_tanks -> 2 | D81: units | E81: =chem_tank_vol -> 384 | F81: gal | G81: =IF(curve=1,chem_tank_vol,VLOOKUP(chem_tank_vol,pl_cst_cost_cl,2)) -> 384 | H81: gal | I81: =IF(curve=1,pl_makeup_eq,VLOOKUP(chem_tank_vol,pl_cst_cost_cl,3)) -> 1170.859779 | J81: =IF(I81="contact vendor","--",C81*I81) -> 2341.719558 | K81: =VLOOKUP(chem_tank_vol,pl_cst_cost_cl,IF(ss_cat="large",4,5)) -> 7 | L81: 0 | M81: =$B$80&" - "&B81 -> Cleaning Solution Makeup Tanks - Plastic (XLPE) | N81: 1 | O81: 2 | P81: 3 | Q81: 1 | R81: 2 | S81: 3 | T81: 1 | U81: 2 | V81: 3 | W81: 0 | X81: 0
A82: 2,7,1 | B82: Fiberglass | C82: =total_chem_tanks -> 2 | D82: units | E82: =chem_tank_vol -> 384 | F82: gal | G82: =IF(curve=1,chem_tank_vol,VLOOKUP(chem_tank_vol,fg_cst_cost_cl,2)) -> 384 | H82: gal | I82: =IF(curve=1,fg_makeup_eq,VLOOKUP(chem_tank_vol,fg_cst_cost_cl,3)) -> 6899.773624 | J82: =IF(I82="contact vendor","--",C82*I82) -> 13799.54725 | K82: =VLOOKUP(chem_tank_vol,fg_cst_cost_cl,IF(ss_cat="large",4,5)) -> 7 | L82: 0 | M82: =$B$80&" - "&B82 -> Cleaning Solution Makeup Tanks - Fiberglass | N82: 2 | O82: 1 | P82: 2 | Q82: 2 | R82: 1 | S82: 2 | T82: 2 | U82: 1 | V82: 2 | W82: 0 | X82: 0
A83: 2,7,1 | B83: Stainless Steel | C83: =total_chem_tanks -> 2 | D83: units | E83: =chem_tank_vol -> 384 | F83: gal | G83: =IF(curve=1,chem_tank_vol,VLOOKUP(chem_tank_vol,ss_cst_cost_cl,2)) -> 384 | H83: gal | I83: =IF(curve=1,ss_makeup_eq,VLOOKUP(chem_tank_vol,ss_cst_cost_cl,3)) -> 4373.78769 | J83: =IF(I83="contact vendor","--",C83*I83) -> 8747.57538 | K83: =VLOOKUP(chem_tank_vol,ss_cst_cost_cl,IF(ss_cat="large",4,5)) -> 30 | L83: 1 | M83: =$B$80&" - "&B83 -> Cleaning Solution Makeup Tanks - Stainless Steel | N83: 3 | O83: 3 | P83: 1 | Q83: 3 | R83: 3 | S83: 1 | T83: 3 | U83: 3 | V83: 1 | W83: 1 | X83: 291.585846
A84: 2.8 | B84: Cleaning Chemical Storage Tanks | W84: 0 | X84: 0
A85: 2.8.1 | B85: Acid - Plastic (XLPE) | C85: =clean_acid_store_tanks -> 1 | D85: units | E85: =IF(C85=0,"NA",clean_acid_store_tank_size) -> 10 | F85: =IF(C85=0,"","gal") -> gal | G85: =IF(C85=0,"NA",IF(curve=1,clean_acid_store_tank_size,VLOOKUP(clean_acid_store_tank_size,pl_cst_cost_cl,2))) -> 10 | H85: =IF(C85=0,"","gal") -> gal | I85: =IF(C85=0,"NA",IF(curve=1,pl_clncst_eq_acid,VLOOKUP(clean_acid_store_tank_size,pl_cst_cost_cl,3))) -> 722.1096398 | J85: =IF(OR(I85="contact vendor",I85="NA"),"--",C85*I85) -> 722.1096398 | K85: =IF(C85=0,"NA",VLOOKUP(clean_acid_store_tank_size,pl_cst_cost_cl,IF(ss_cat="large",4,5))) -> 7 | L85: 0 | M85: =$B$84&" - "&B85 -> Cleaning Chemical Storage Tanks - Acid - Plastic (XLPE) | N85: 1 | O85: 2 | P85: 2 | Q85: 1 | R85: 2 | S85: 2 | T85: 1 | U85: 2 | V85: 2 | W85: 0 | X85: 0
A86: 2.8.1 | B86: Acid - Fiberglass | C86: =clean_acid_store_tanks -> 1 | D86: units | E86: =IF(C86=0,"NA",clean_acid_store_tank_size) -> 10 | F86: gal | G86: =IF(C86=0,"NA",IF(curve=1,clean_acid_store_tank_size,VLOOKUP(clean_acid_store_tank_size,fg_cst_cost_cl,2))) -> 10 | H86: gal | I86: =IF(C86=0,"NA",IF(curve=1,fg_clncst_eq_acid,VLOOKUP(clean_acid_store_tank_size,fg_cst_cost_cl,3))) -> 923.1488617 | J86: =IF(OR(I86="contact vendor",I86="NA"),"--",C86*I86) -> 923.1488617 | K86: =IF(C86=0,"NA",VLOOKUP(clean_acid_store_tank_size,fg_cst_cost_cl,IF(ss_cat="large",4,5))) -> 7 | L86: 1 | M86: Cleaning Chemical Storage Tanks - Acid - Fiberglass | N86: 2 | O86: 1 | P86: 1 | Q86: 2 | R86: 1 | S86: 1 | T86: 2 | U86: 1 | V86: 1 | W86: 1 | X86: 131.8784088
A87: 2.8.2 | B87: Acid - Secondary Containment - Concrete Curbing | C87: =IF(OR(include_sec_cont=0,clean_acid_store_tanks=0),0,acid_tank_curb_concrete) -> 1 | D87: cy | E87: NA | G87: NA | I87: =IF(C87=0,"NA",VLOOKUP(0,conc_basin_cost_cl,3)) -> 739.6055887 | J87: =IF(C87=0,"--",IF(I87="contact vendor","--",C87*I87)) -> 739.6055887 | K87: =IF(C87=0,"NA",VLOOKUP(0,conc_basin_cost_cl,IF(ss_cat="large",4,5))) -> 37 | L87: 1 | M87: Cleaning Chemical Storage Tanks - Acid - Secondary Containment - Concrete Curbing | N87: 1 | O87: 1 | P87: 1 | Q87: 1 | R87: 1 | S87: 1 | T87: 1 | U87: 1 | V87: 1 | W87: 1
A88: 2.8.3 | B88: Acid - Secondary Containment - Chemical Resistant Coating | C88: =IF(OR(include_sec_cont=0,clean_acid_store_tanks=0),0,acid_tank_coating_gal) -> 1 | D88: gal | E88: NA | G88: NA | I88: =IF(C88=0,"NA",VLOOKUP(0,conc_coating_cost_cl,3)) -> 389.13 | J88: =IF(C88=0,"--",IF(I88="contact vendor","--",C88*I88)) -> 389.13 | K88: =IF(C88=0,"NA",VLOOKUP(0,conc_coating_cost_cl,IF(ss_cat="large",4,5))) -> 10 | L88: 1 | M88: Cleaning Chemical Storage Tanks - Acid - Secondary Containment - Chemical Resistant Coating | N88: 1 | O88: 1 | P88: 1 | Q88: 1 | R88: 1 | S88: 1 | T88: 1 | U88: 1 | V88: 1 | W88: =IF(ISERROR(K88*L88),0,IF(K88<1,0,L88)) -> 1
A89: 2.8.4 | B89: High pH - Plastic (XLPE) | C89: =clean_caustic_store_tanks -> 1 | D89: units | E89: =IF(C89=0,"NA",clean_caustic_store_tank_size) -> 10 | F89: gal | G89: =IF(C89=0,"NA",IF(curve=1,clean_caustic_store_tank_size,VLOOKUP(clean_caustic_store_tank_size,pl_cst_cost_cl,2))) -> 10 | H89: gal | I89: =IF(C89=0,"NA",IF(curve=1,pl_clncst_eq_caustic,VLOOKUP(clean_caustic_store_tank_size,pl_cst_cost_cl,3))) -> 722.1096398 | J89: =IF(OR(I89="contact vendor",I89="NA"),"--",C89*I89) -> 722.1096398 | K89: =IF(C89=0,"NA",VLOOKUP(clean_caustic_store_tank_size,pl_cst_cost_cl,IF(ss_cat="large",4,5))) -> 7 | L89: 0 | M89: Cleaning Chemical Storage Tanks - High pH - Plastic (XLPE) | N89: 1 | O89: 2 | P89: 3 | Q89: 1 | R89: 2 | S89: 3 | T89: 1 | U89: 2 | V89: 3 | W89: =IF(ISERROR(K89*L89),0,IF(K89<1,0,L89)) -> 0 | X89: =IF(W89,J89/K89,0) -> 0
A90: 2.8.4 | B90: High pH - Fiberglass | C90: =clean_caustic_store_tanks -> 1 | D90: units | E90: =IF(C90=0,"NA",clean_caustic_store_tank_size) -> 10 | F90: gal | G90: =IF(C90=0,"NA",IF(curve=1,clean_caustic_store_tank_size,VLOOKUP(clean_caustic_store_tank_size,fg_cst_cost_cl,2))) -> 10 | H90: gal | I90: =IF(C90=0,"NA",IF(curve=1,fg_clncst_eq_caustic,VLOOKUP(clean_caustic_store_tank_size,fg_cst_cost_cl,3))) -> 923.1488617 | J90: =IF(OR(I90="contact vendor",I90="NA"),"--",C90*I90) -> 923.1488617 | K90: =IF(C90=0,"NA",VLOOKUP(clean_caustic_store_tank_size,fg_cst_cost_cl,IF(ss_cat="large",4,5))) -> 7 | L90: 0 | M90: Cleaning Chemical Storage Tanks - High pH - Fiberglass | N90: 2 | O90: 1 | P90: 2 | Q90: 2 | R90: 1 | S90: 2 | T90: 2 | U90: 1 | V90: 2 | W90: =IF(ISERROR(K90*L90),0,IF(K90<1,0,L90)) -> 0 | X90: =IF(W90,J90/K90,0) -> 0
A91: 2.8.4 | B91: High pH - Stainless Steel | C91: =clean_caustic_store_tanks -> 1 | D91: units | E91: =IF(C91=0,"NA",clean_caustic_store_tank_size) -> 10 | F91: =IF(C91=0,"","gal") -> gal | G91: =IF(C91=0,"NA",IF(curve=1,clean_caustic_store_tank_size,VLOOKUP(clean_caustic_store_tank_size,ss_cst_cost_cl,2))) -> 10 | H91: =IF(C91=0,"","gal") -> gal | I91: =IF(C91=0,"NA",IF(curve=1,ss_clncst_eq_caustic,VLOOKUP(clean_caustic_store_tank_size,ss_cst_cost_cl,3))) -> 305.7487627 | J91: =IF(OR(I91="contact vendor",I91="NA"),"--",C91*I91) -> 305.7487627 | K91: =IF(C91=0,"NA",VLOOKUP(clean_caustic_store_tank_size,ss_cst_cost_cl,IF(ss_cat="large",4,5))) -> 30 | L91: 1 | M91: Cleaning Chemical Storage Tanks - High pH - Stainless Steel | N91: 3 | O91: 3 | P91: 1 | Q91: 3 | R91: 3 | S91: 1 | T91: 3 | U91: 3 | V91: 1 | W91: =IF(ISERROR(K91*L91),0,IF(K91<1,0,L91)) -> 1 | X91: =IF(W91,J91/K91,0) -> 10.19162542
A92: 2.8.5 | B92: High pH - Secondary Containment - Concrete Curbing | C92: =IF(OR(include_sec_cont=0,clean_caustic_store_tanks=0),0,caustic_curb_concrete) -> 2 | D92: cy | E92: NA | G92: NA | I92: =IF(C92=0,"NA",VLOOKUP(0,conc_basin_cost_cl,3)) -> 739.6055887 | J92: =IF(C92=0,"--",IF(I92="contact vendor","--",C92*I92)) -> 1479.211177 | K92: =IF(C92=0,"NA",VLOOKUP(0,conc_basin_cost_cl,IF(ss_cat="large",4,5))) -> 37 | L92: 1 | M92: Cleaning Chemical Storage Tanks - High pH - Secondary Containment - Concrete Curbing | N92: 1 | O92: 1 | P92: 1 | Q92: 1 | R92: 1 | S92: 1 | T92: 1 | U92: 1 | V92: 1 | W92: =IF(ISERROR(K92*L92),0,IF(K92<1,0,L92)) -> 1 | X92: =IF(W92,J92/K92,0) -> 39.97868047
A93: 2.8.6 | B93: High pH - Secondary Containment - Chemical Resistant Coating | C93: =IF(OR(include_sec_cont=0,clean_caustic_store_tanks=0),0,caustic_coating_gal) -> 1 | D93: gal | E93: NA | G93: NA | I93: =IF(C93=0,"NA",VLOOKUP(0,conc_coating_cost_cl,3)) -> 389.13 | J93: =IF(C93=0,"--",IF(I93="contact vendor","--",C93*I93)) -> 389.13 | K93: =IF(C93=0,"NA",VLOOKUP(0,conc_coating_cost_cl,IF(ss_cat="large",4,5))) -> 10 | L93: 1 | M93: Cleaning Chemical Storage Tanks - High pH - Secondary Containment - Chemical Resistant Coating | N93: 1 | O93: 1 | P93: 1 | Q93: 1 | R93: 1 | S93: 1 | T93: 1 | U93: 1 | V93: 1 | W93: 1 | X93: 38.913
A94: 2.8.7 | B94: High pH - Heat Tracing | C94: =IF(clean_high_pH=1,clean_caustic_store_tanks,0) -> 0 | D94: units | E94: =IF(C94=0,"NA",clean_caustic_store_tank_size) -> NA | G94: =IF(C94=0,"NA",IF(curve=1,clean_caustic_store_tank_size,VLOOKUP(clean_caustic_store_tank_size,cst_heat_cost_cl,2))) -> NA | I94: =IF(C94=0,0,IF(curve=1,cst_heat_eq,VLOOKUP(clean_caustic_store_tank_size,cst_heat_cost_cl,3))) -> 0 | J94: =IF(I94="contact vendor","--",C94*I94) -> 0 | K94: =IF(C94=0,"NA",VLOOKUP(E94,cst_heat_cost_cl,IF(ss_cat="large",4,5))) -> NA | M94: Cleaning Chemical Storage Tanks - High pH - Heat Tracing | N94: 1 | O94: 1 | P94: 1 | Q94: 1 | R94: 1 | S94: 1 | T94: 1 | U94: 1 | V94: 1 | W94: =IF(ISERROR(K94*L94),0,IF(K94<1,0,L94)) -> 0 | X94: =IF(W94,J94/K94,0) -> 0
A95: 2.8.8 | B95: High pH - Insulation | C95: =IF(clean_high_pH=1,clean_caustic_store_tanks,0) -> 0 | D95: units | E95: =IF(C94=0,"NA",clean_caustic_store_tank_size) -> NA | G95: =IF(C95=0,"NA",IF(curve=1,clean_caustic_store_tank_size,VLOOKUP(clean_caustic_store_tank_size,cst_insul_cost_cl,2))) -> NA | I95: =IF(C95=0,0,IF(curve=1,cst_insul_eq,VLOOKUP(clean_caustic_store_tank_size,cst_insul_cost_cl,3))) -> 0 | J95: =IF(I95="contact vendor","--",C95*I95) -> 0 | K95: =IF(C95=0,"NA",VLOOKUP(E95,cst_insul_cost_cl,IF(ss_cat="large",4,5))) -> NA | M95: Cleaning Chemical Storage Tanks - High pH - Insulation | N95: 1 | O95: 1 | P95: 1 | Q95: 1 | R95: 1 | S95: 1 | T95: 1 | U95: 1 | V95: 1 | W95: 0 | X95: 0
A96: 2.9 | B96: Residuals Holding Tanks | W96: 0 | X96: 0
A97: 2.9.1 | B97: Steel Tanks | C97: =htanks -> 0 | D97: units | E97: =IF(C97=0,"NA",htank_vol) -> NA | F97: =IF(C97=0,"","gal") ->  | G97: =IF(htanks=0,"NA",IF(curve=1,htank_vol,VLOOKUP(htank_vol,st_bwt_cost_cl,2))) -> NA | H97: =IF(C97=0,"","gal") ->  | I97: =IF(htanks=0,0,IF(curve=1,st_ht_eq,VLOOKUP(htank_vol,st_bwt_cost_cl,3))) -> 0 | J97: =IF(I97="contact vendor","--",C97*I97) -> 0 | K97: =IF(htanks=0,"NA",VLOOKUP(htank_vol,st_bwt_cost_cl,IF(ss_cat="large",4,5))) -> NA | M97: =$B$96&" - "&B97 -> Residuals Holding Tanks - Steel Tanks | N97: 3 | O97: 3 | P97: 1 | Q97: 3 | R97: 3 | S97: 1 | T97: 3 | U97: 3 | V97: 1 | W97: 0 | X97: 0
A98: 2.9.1 | B98: Fiberglass Tanks | C98: =htanks -> 0 | D98: units | E98: =IF(C98=0,"NA",htank_vol) -> NA | F98: =IF(C98=0,"","gal") ->  | G98: =IF(htanks=0,"NA",IF(curve=1,htank_vol,VLOOKUP(htank_vol,fg_bwt_cost_cl,2))) -> NA | H98: =IF(C98=0,"","gal") ->  | I98: =IF(htanks=0,0,IF(curve=1,fg_ht_eq,VLOOKUP(htank_vol,fg_bwt_cost_cl,3))) -> 0 | J98: =IF(I98="contact vendor","--",C98*I98) -> 0 | K98: =IF(htanks=0,"NA",VLOOKUP(htank_vol,fg_bwt_cost_cl,IF(ss_cat="large",4,5))) -> NA | M98: =$B$96&" - "&B98 -> Residuals Holding Tanks - Fiberglass Tanks | N98: 2 | O98: 1 | P98: 2 | Q98: 2 | R98: 1 | S98: 2 | T98: 2 | U98: 1 | V98: 2 | W98: 0 | X98: 0
A99: 2.9.1 | B99: Plastic/HDPE Tanks | C99: =htanks -> 0 | D99: units | E99: =IF(C99=0,"NA",htank_vol) -> NA | F99: =IF(C99=0,"","gal") ->  | G99: =IF(htanks=0,"NA",IF(curve=1,htank_vol,VLOOKUP(htank_vol,hdpe_bwt_cost_cl,2))) -> NA | H99: =IF(C99=0,"","gal") ->  | I99: =IF(htanks=0,0,IF(curve=1,hdpe_ht_eq,VLOOKUP(htank_vol,hdpe_bwt_cost_cl,3))) -> 0 | J99: =IF(I99="contact vendor","--",C99*I99) -> 0 | K99: =IF(htanks=0,"NA",VLOOKUP(htank_vol,hdpe_bwt_cost_cl,IF(ss_cat="large",4,5))) -> NA | M99: =$B$96&" - "&B99 -> Residuals Holding Tanks - Plastic/HDPE Tanks | N99: 1 | O99: 2 | P99: 3 | Q99: 1 | R99: 2 | S99: 3 | T99: 1 | U99: 2 | V99: 3 | W99: 0 | X99: 0
A100: 2.10 | B100: Residuals Holding Basins | W100: 0 | X100: 0
A101: 2.10.1 | B101: Concrete | C101: =hbasins -> 0 | D101: units | E101: =IF(C101=0,"NA",hbasin_vol) -> NA | F101: =IF(C101=0,"","gal") ->  | G101: =IF(C101=0,"NA",hbasin_vol) -> NA | H101: =IF(C101=0,"","gal") ->  | I101: =IF(hbasins=0,0,hbasin_conc_vol/hbasins*VLOOKUP(0,conc_basin_cost_cl,3)) -> 0 | J101: =IF(I101="contact vendor","--",C101*I101) -> 0 | K101: =IF(hbasins=0,"NA",VLOOKUP(0,conc_basin_cost_cl,IF(ss_cat="large",4,5))) -> NA | M101: =$B$100&" - "&B101 -> Residuals Holding Basins - Concrete | N101: 1 | O101: 1 | P101: 1 | Q101: 1 | R101: 1 | S101: 1 | T101: 1 | U101: 1 | V101: 1 | W101: 0 | X101: 0
A102: 2.10.2 | B102: Aluminum Railing | C102: =hbasin_railing -> 0 | D102: lf | E102: NA | G102: NA | I102: =IF(hbasins=0,0,VLOOKUP(B102,metal_cost_cl,3)) -> 0 | J102: =IF(I102="contact vendor","--",C102*I102) -> 0 | K102: =IF(hbasins=0,"NA",VLOOKUP(B102,metal_cost_cl,IF(ss_cat="large",4,5))) -> NA | M102: =$B$100&" - "&B102 -> Residuals Holding Basins - Aluminum Railing | N102: 1 | O102: 1 | P102: 1 | Q102: 1 | R102: 1 | S102: 1 | T102: 1 | U102: 1 | V102: 1 | W102: 0 | X102: 0
A103: 2.10.3 | B103: Aluminum Stairs | C103: =IF(hbasins=0,0,risers*hbasins) -> 0 | D103: risers | E103: NA | G103: NA | I103: =IF(hbasins=0,0,VLOOKUP(B103,metal_cost_cl,3)) -> 0 | J103: =IF(I103="contact vendor","--",C103*I103) -> 0 | K103: =IF(hbasins=0,"NA",VLOOKUP(B103,metal_cost_cl,IF(ss_cat="large",4,5))) -> NA | M103: =$B$100&" - "&B103 -> Residuals Holding Basins - Aluminum Stairs | N103: 1 | O103: 1 | P103: 1 | Q103: 1 | R103: 1 | S103: 1 | T103: 1 | U103: 1 | V103: 1 | W103: 0 | X103: 0
A104: 2.10.4 | B104: Excavation | C104: =IF(hbasins=0,0,1) -> 0 | D104: units | E104: =IF(C104=0,"NA",hbasin_excavation_vol) -> NA | F104: =IF(C104=0,"","cy") ->  | G104: =IF(C104=0,"NA",hbasin_excavation_vol) -> NA | H104: =IF(C104=0,"","cy") ->  | I104: =IF(hbasins=0,0,VLOOKUP(0,excavate_cost_cl,3)) -> 0 | J104: =IF(hbasins=0,0,IF(I104="contact vendor","--",E104*I104)) -> 0 | K104: =IF(C104=0,"NA",VLOOKUP(0,conc_basin_cost_cl,IF(ss_cat="large",4,5))) -> NA | M104: =$B$100&" - "&B104 -> Residuals Holding Basins - Excavation | N104: 1 | O104: 1 | P104: 1 | Q104: 1 | R104: 1 | S104: 1 | T104: 1 | U104: 1 | V104: 1 | W104: 0 | X104: 0
A105: 2.10.5 | B105: Backfill and Compaction | C105: =IF(hbasins=0,0,1) -> 0 | D105: units | E105: =IF(C105=0,"NA",hbasin_backfill_vol) -> NA | F105: =IF(C105=0,"","cy") ->  | G105: =IF(C105=0,"NA",hbasin_backfill_vol) -> NA | H105: =IF(C105=0,"","cy") ->  | I105: =IF(hbasins=0,0,VLOOKUP(0,backfill_cost_cl,3)) -> 0 | J105: =IF(hbasins=0,0,IF(I105="contact vendor","--",E105*I105)) -> 0 | K105: =IF(C105=0,"NA",VLOOKUP(0,conc_basin_cost_cl,IF(ss_cat="large",4,5))) -> NA | M105: =$B$100&" - "&B105 -> Residuals Holding Basins - Backfill and Compaction | N105: 1 | O105: 1 | P105: 1 | Q105: 1 | R105: 1 | S105: 1 | T105: 1 | U105: 1 | V105: 1 | W105: 0 | X105: 0
A106: 2.11 | B106: Residuals Holding Lagoons | W106: 0 | X106: 0
A107: 2.11.1 | B107: Excavation | C107: =hlagoons -> 0 | D107: cells | E107: =IF(C107=0,"NA",hl_excavation_vol/hlagoons) -> NA | F107: =IF(C107=0,"","cy") ->  | G107: =IF(C107=0,"NA",hl_excavation_vol/hlagoons) -> NA | H107: =IF(C107=0,"","cy") ->  | I107: =IF(C107=0,"NA",VLOOKUP(0,excavate_cost_cl,3)) -> NA | J107: =IF(C107=0,"--",IF(I107="contact vendor","--",E107*I107)) -> -- | K107: =IF(C107=0,"NA",VLOOKUP(0,ep_liner_cost_cl,IF(ss_cat="large",4,5))) -> NA | M107: =$B$106&" - "&B107 -> Residuals Holding Lagoons - Excavation | N107: 1 | O107: 1 | P107: 1 | Q107: 1 | R107: 1 | S107: 1 | T107: 1 | U107: 1 | V107: 1 | W107: 0 | X107: 0
A108: 2.11.2 | B108: Backfill | C108: =hlagoons -> 0 | D108: cells | E108: =IF(C108=0,"NA",hl_backfill_vol/hlagoons) -> NA | F108: =IF(C108=0,"","cy") ->  | G108: =IF(C108=0,"NA",hl_backfill_vol/hlagoons) -> NA | H108: =IF(C108=0,"","cy") ->  | I108: =IF(C108=0,"NA",VLOOKUP(0,backfill_cost_cl,3)) -> NA | J108: =IF(C108=0,"--",IF(I108="contact vendor","--",E108*I108)) -> -- | K108: =IF(C108=0,"NA",VLOOKUP(0,ep_liner_cost_cl,IF(ss_cat="large",4,5))) -> NA | M108: =$B$106&" - "&B108 -> Residuals Holding Lagoons - Backfill | N108: 1 | O108: 1 | P108: 1 | Q108: 1 | R108: 1 | S108: 1 | T108: 1 | U108: 1 | V108: 1 | W108: 0 | X108: 0
A109: 2.11.3 | B109: Liner | C109: =hlagoons -> 0 | D109: cells | E109: =IF(C109=0,"NA",hl_liner_area/hlagoons) -> NA | F109: =IF(C109=0,"","sf") ->  | G109: =IF(C109=0,"NA",hl_liner_area/hlagoons) -> NA | H109: =IF(C109=0,"","sf") ->  | I109: =IF(C109=0,"NA",VLOOKUP(0,ep_liner_cost_cl,3)) -> NA | J109: =IF(C109=0,"--",IF(I109="contact vendor","--",E109*I109)) -> -- | K109: =IF(C109=0,"NA",VLOOKUP(0,ep_liner_cost_cl,IF(ss_cat="large",4,5))) -> NA | M109: =$B$106&" - "&B109 -> Residuals Holding Lagoons - Liner | N109: 1 | O109: 1 | P109: 1 | Q109: 1 | R109: 1 | S109: 1 | T109: 1 | U109: 1 | V109: 1 | W109: 0 | X109: 0
A110: 2.11.4 | B110: Dike Construction | C110: =hlagoons -> 0 | D110: cells | E110: =IF(C110=0,"NA",hl_dike_volume/hlagoons) -> NA | F110: =IF(C110=0,"","cy") ->  | G110: =IF(C110=0,"NA",hl_dike_volume/hlagoons) -> NA | H110: =IF(C110=0,"","cy") ->  | I110: =IF(C110=0,"NA",ep_dike_construct_cl) -> NA | J110: =IF(C110=0,"--",IF(I110="contact vendor","--",E110*I110)) -> -- | K110: =IF(C110=0,"NA",VLOOKUP(0,ep_liner_cost_cl,IF(ss_cat="large",4,5))) -> NA | M110: =$B$106&" - "&B110 -> Residuals Holding Lagoons - Dike Construction | N110: 1 | O110: 1 | P110: 1 | Q110: 1 | R110: 1 | S110: 1 | T110: 1 | U110: 1 | V110: 1 | W110: 0 | X110: 0
A111: 3 | B111: Piping (not associated with racks) | W111: =IF(ISERROR(K111*L111),0,IF(K111<1,0,L111)) -> 0 | X111: =IF(W111,J111/K111,0) -> 0
A112: 3.1 | B112: Influent and Treated Water Piping | W112: 0 | X112: 0
A113: 3.1.1 | B113: Ductile Iron | C113: =in_out_pipe_length -> 100 | D113: lf | E113: =in_out_pipe_diam -> 6 | F113: in. diam | G113: =IF(curve=1,in_out_pipe_diam,VLOOKUP(in_out_pipe_diam,di_pipe_cost_cl,2)) -> 6 | H113: in. diam | I113: =IF(curve=1,di_pipe_eq_in_out,VLOOKUP(in_out_pipe_diam,di_pipe_cost_cl,3)) -> 99.79453954 | J113: =IF(OR(I113="contact vendor",I113="NA"),"--",C113*I113) -> 9979.453954 | K113: =IF(C113=0,"NA",VLOOKUP(E113,di_pipe_cost_cl,IF(ss_cat="large",4,5))) -> 35 | L113: 0 | M113: =$B$112&" "&" - "&B113 -> Influent and Treated Water Piping - Ductile Iron | N113: 3 | O113: 3 | P113: 3 | Q113: 3 | R113: 3 | S113: 3 | T113: 3 | U113: 3 | V113: 3 | W113: 0 | X113: 0
A114: 3.1.1 | B114: CPVC | C114: =in_out_pipe_length -> 100 | D114: lf | E114: =in_out_pipe_diam -> 6 | F114: in. diam | G114: =IF(curve=1,in_out_pipe_diam,VLOOKUP(in_out_pipe_diam,cpvc_pipe_cost_cl,2)) -> 6 | H114: in. diam | I114: =IF(curve=1,cpvc_pipe_eq_in_out,VLOOKUP(in_out_pipe_diam,cpvc_pipe_cost_cl,3)) -> 46.60778335 | J114: =IF(OR(I114="contact vendor",I114="NA"),"--",C114*I114) -> 4660.778335 | K114: =IF(C114=0,"NA",VLOOKUP(E114,cpvc_pipe_cost_cl,IF(ss_cat="large",4,5))) -> 17 | L114: 0 | M114: =$B$112&" "&" - "&B114 -> Influent and Treated Water Piping - CPVC | N114: 2 | O114: 1 | P114: 4 | Q114: 2 | R114: 1 | S114: 4 | T114: 2 | U114: 1 | V114: 4 | W114: 0 | X114: 0
A115: 3.1.1 | B115: PVC | C115: =in_out_pipe_length -> 100 | D115: lf | E115: =in_out_pipe_diam -> 6 | F115: in. diam | G115: =IF(curve=1,in_out_pipe_diam,VLOOKUP(in_out_pipe_diam,pvc_pipe_cost_cl,2)) -> 6 | H115: in. diam | I115: =IF(curve=1,pvc_pipe_eq_in_out,VLOOKUP(in_out_pipe_diam,pvc_pipe_cost_cl,3)) -> 9.729435441 | J115: =IF(OR(I115="contact vendor",I115="NA"),"--",C115*I115) -> 972.9435441 | K115: =IF(C115=0,"NA",VLOOKUP(E115,pvc_pipe_cost_cl,IF(ss_cat="large",4,5))) -> 17 | L115: 0 | M115: =$B$112&" "&" - "&B115 -> Influent and Treated Water Piping - PVC | N115: 1 | O115: 2 | P115: 5 | Q115: 1 | R115: 2 | S115: 5 | T115: 1 | U115: 2 | V115: 5 | W115: 0 | X115: 0
A116: 3.1.1 | B116: Stainless Steel | C116: =in_out_pipe_length -> 100 | D116: lf | E116: =in_out_pipe_diam -> 6 | F116: in. diam | G116: =IF(curve=1,in_out_pipe_diam,VLOOKUP(in_out_pipe_diam,ss_pipe_cost_cl,2)) -> 6 | H116: in. diam | I116: =IF(curve=1,ss_pipe_eq_in_out,VLOOKUP(in_out_pipe_diam,ss_pipe_cost_cl,3)) -> 258.5553958 | J116: =IF(OR(I116="contact vendor",I116="NA"),"--",C116*I116) -> 25855.53958 | K116: =IF(C116=0,"NA",VLOOKUP(E116,ss_pipe_cost_cl,IF(ss_cat="large",4,5))) -> 40 | L116: 1 | M116: =$B$112&" "&" - "&B116 -> Influent and Treated Water Piping - Stainless Steel | N116: 5 | O116: 5 | P116: 1 | Q116: 5 | R116: 5 | S116: 1 | T116: 5 | U116: 5 | V116: 1 | W116: 1 | X116: 646.3884895
A117: 3.1.1 | B117: Steel | C117: =in_out_pipe_length -> 100 | D117: lf | E117: =in_out_pipe_diam -> 6 | F117: in. diam | G117: =IF(curve=1,in_out_pipe_diam,VLOOKUP(in_out_pipe_diam,st_pipe_cost_cl,2)) -> 6 | H117: in. diam | I117: =IF(curve=1,st_pipe_eq_in_out,VLOOKUP(in_out_pipe_diam,st_pipe_cost_cl,3)) -> 108.7170227 | J117: =IF(OR(I117="contact vendor",I117="NA"),"--",C117*I117) -> 10871.70227 | K117: =IF(C117=0,"NA",VLOOKUP(E117,st_pipe_cost_cl,IF(ss_cat="large",4,5))) -> 33 | L117: 0 | M117: =$B$112&" "&" - "&B117 -> Influent and Treated Water Piping - Steel | N117: 4 | O117: 4 | P117: 2 | Q117: 4 | R117: 4 | S117: 2 | T117: 4 | U117: 4 | V117: 2 | W117: 0 | X117: 0
A118: 3.2 | B118: Cleaning System Piping | W118: 0 | X118: 0
A119: 3.2.1 | B119: CPVC | C119: =clean_pipe_length -> 50 | D119: lf | E119: =clean_pipe_diam -> 4 | F119: in. diam | G119: =IF(curve=1,clean_pipe_diam,VLOOKUP(clean_pipe_diam,cpvc_pipe_cost_cl,2)) -> 4 | H119: in. diam | I119: =IF(curve=1,cpvc_pipe_eq_clean,VLOOKUP(clean_pipe_diam,cpvc_pipe_cost_cl,3)) -> 24.91563282 | J119: =IF(OR(I119="contact vendor",I119="NA"),"--",C119*I119) -> 1245.781641 | K119: =VLOOKUP(clean_pipe_diam,cpvc_pipe_cost_cl,IF(ss_cat="large",4,5)) -> 17 | L119: 0 | M119: =$B$118&" - "&B119 -> Cleaning System Piping - CPVC | N119: 2 | O119: 1 | P119: 2 | Q119: 2 | R119: 1 | S119: 2 | T119: 2 | U119: 1 | V119: 2 | W119: 0 | X119: 0
A120: 3.2.1 | B120: PVC | C120: =clean_pipe_length -> 50 | D120: lf | E120: =clean_pipe_diam -> 4 | F120: in. diam | G120: =IF(curve=1,clean_pipe_diam,VLOOKUP(clean_pipe_diam,pvc_pipe_cost_cl,2)) -> 4 | H120: in. diam | I120: =IF(curve=1,pvc_pipe_eq_clean,VLOOKUP(clean_pipe_diam,pvc_pipe_cost_cl,3)) -> 6.185340873 | J120: =IF(OR(I120="contact vendor",I120="NA"),"--",C120*I120) -> 309.2670437 | K120: =VLOOKUP(clean_pipe_diam,pvc_pipe_cost_cl,IF(ss_cat="large",4,5)) -> 17 | L120: 0 | M120: =$B$118&" - "&B120 -> Cleaning System Piping - PVC | N120: 1 | O120: 2 | P120: 3 | Q120: 1 | R120: 2 | S120: 3 | T120: 1 | U120: 2 | V120: 3 | W120: 0 | X120: 0
A121: 3.2.1 | B121: Stainless Steel | C121: =clean_pipe_length -> 50 | D121: lf | E121: =clean_pipe_diam -> 4 | F121: in. diam | G121: =IF(curve=1,clean_pipe_diam,VLOOKUP(clean_pipe_diam,ss_pipe_cost_cl,2)) -> 4 | H121: in. diam | I121: =IF(curve=1,ss_pipe_eq_clean,VLOOKUP(clean_pipe_diam,ss_pipe_cost_cl,3)) -> 185.0043147 | J121: =IF(OR(I121="contact vendor",I121="NA"),"--",C121*I121) -> 9250.215737 | K121: =VLOOKUP(clean_pipe_diam,ss_pipe_cost_cl,IF(ss_cat="large",4,5)) -> 40 | L121: 1 | M121: =$B$118&" - "&B121 -> Cleaning System Piping - Stainless Steel | N121: 3 | O121: 3 | P121: 1 | Q121: 3 | R121: 3 | S121: 1 | T121: 3 | U121: 3 | V121: 1 | W121: 1 | X121: 231.2553934
A122: 3.3 | B122: Residuals Piping | W122: 0 | X122: 0
A123: 3.3.1 | B123: CPVC | C123: =res_pipe_length -> 5050 | D123: lf | E123: =res_pipe_diam -> 4 | F123: in. diam | G123: =IF(curve=1,res_pipe_diam,VLOOKUP(res_pipe_diam,cpvc_pipe_cost_cl,2)) -> 4 | H123: in. diam | I123: =IF(curve=1,cpvc_pipe_eq_res,VLOOKUP(res_pipe_diam,cpvc_pipe_cost_cl,3)) -> 24.91563282 | J123: =IF(OR(I123="contact vendor",I123="NA"),"--",C123*I123) -> 125823.9457 | K123: =VLOOKUP(res_pipe_diam,cpvc_pipe_cost_cl,IF(ss_cat="large",4,5)) -> 17 | L123: 0 | M123: =$B$122&" "&" - "&B123 -> Residuals Piping - CPVC | N123: 2 | O123: 1 | P123: 2 | Q123: 2 | R123: 1 | S123: 2 | T123: 2 | U123: 1 | V123: 2 | W123: 0 | X123: 0
A124: 3.3.1 | B124: PVC | C124: =res_pipe_length -> 5050 | D124: lf | E124: =res_pipe_diam -> 4 | F124: in. diam | G124: =IF(curve=1,res_pipe_diam,VLOOKUP(res_pipe_diam,pvc_pipe_cost_cl,2)) -> 4 | H124: in. diam | I124: =IF(curve=1,pvc_pipe_eq_res,VLOOKUP(res_pipe_diam,pvc_pipe_cost_cl,3)) -> 6.185340873 | J124: =IF(OR(I124="contact vendor",I124="NA"),"--",C124*I124) -> 31235.97141 | K124: =VLOOKUP(res_pipe_diam,pvc_pipe_cost_cl,IF(ss_cat="large",4,5)) -> 17 | L124: 0 | M124: Residuals Piping - PVC | N124: 1 | O124: 2 | P124: 3 | Q124: 1 | R124: 2 | S124: 3 | T124: 1 | U124: 2 | V124: 3 | W124: 0 | X124: 0
A125: 3.3.1 | B125: Stainless Steel | C125: =res_pipe_length -> 5050 | D125: lf | E125: =res_pipe_diam -> 4 | F125: in. diam | G125: =IF(curve=1,res_pipe_diam,VLOOKUP(res_pipe_diam,ss_pipe_cost_cl,2)) -> 4 | H125: in. diam | I125: =IF(curve=1,ss_pipe_eq_res,VLOOKUP(res_pipe_diam,ss_pipe_cost_cl,3)) -> 185.0043147 | J125: =IF(OR(I125="contact vendor",I125="NA"),"--",C125*I125) -> 934271.7895 | K125: =VLOOKUP(res_pipe_diam,ss_pipe_cost_cl,IF(ss_cat="large",4,5)) -> 40 | L125: 0 | M125: Residuals Piping - Stainless Steel | N125: 0 | O125: 0 | P125: 0 | Q125: 0 | R125: 0 | S125: 0 | T125: 0 | U125: 0 | V125: 0 | W125: 0 | X125: 0
A126: 3.3.1 | B126: Steel | C126: =res_pipe_length -> 5050 | D126: lf | E126: =res_pipe_diam -> 4 | F126: in. diam | G126: =IF(curve=1,res_pipe_diam,VLOOKUP(res_pipe_diam,st_pipe_cost_cl,2)) -> 4 | H126: in. diam | I126: =IF(curve=1,st_pipe_eq_res,VLOOKUP(res_pipe_diam,st_pipe_cost_cl,3)) -> 74.75161383 | J126: =IF(OR(I126="contact vendor",I126="NA"),"--",C126*I126) -> 377495.6498 | K126: =VLOOKUP(res_pipe_diam,st_pipe_cost_cl,IF(ss_cat="large",4,5)) -> 33 | L126: 1 | M126: Residuals Piping - Steel | N126: 3 | O126: 3 | P126: 1 | Q126: 3 | R126: 3 | S126: 1 | T126: 3 | U126: 3 | V126: 1 | W126: 1 | X126: 11439.26212
A127: 3.3.2 | B127: Excavation | C127: =res_trench_vol -> 4729.496681 | D127: cy | E127: NA | G127: NA | I127: =IF(C127=0,"NA",VLOOKUP(0,excavate_cost_cl,3)) -> 30.88 | J127: =IF(OR(I127="contact vendor",C127=0),"--",C127*I127) -> 146046.8575 | K127: =IF(I127="NA","N/A",IF(L123=1,K123,IF(L124=1,K124,IF(L125=1,K125,IF(L126=1,K126,"N/A"))))) -> 33 | L127: 1 | M127: Residuals Piping - Excavation | N127: 1 | O127: 1 | P127: 1 | Q127: 1 | R127: 1 | S127: 1 | T127: 1 | U127: 1 | V127: 1 | W127: 1 | X127: 4425.662349
A128: 3.3.3 | B128: Bedding | C128: =res_pipe_bedding_vol -> 155.9563147 | D128: cy | E128: NA | G128: NA | I128: =IF(C128=0,"NA",VLOOKUP(0,bedding_cost_cl,3)) -> 45.35 | J128: =IF(OR(I128="contact vendor",C128=0),"--",C128*I128) -> 7072.618871 | K128: =IF(I128="NA","N/A",IF(L123=1,K123,IF(L124=1,K124,IF(L125=1,K125,IF(L126=1,K126,"N/A"))))) -> 33 | L128: 1 | M128: Residuals Piping - Bedding | N128: 1 | O128: 1 | P128: 1 | Q128: 1 | R128: 1 | S128: 1 | T128: 1 | U128: 1 | V128: 1 | W128: 1 | X128: 214.321784
A129: 3.3.4 | B129: Backfill and Compaction | C129: =res_trench_vol -> 4729.496681 | D129: cy | E129: NA | G129: NA | I129: =IF(C129=0,"NA",VLOOKUP(0,backfill_cost_cl,3)) -> 18.65 | J129: =IF(OR(I129="contact vendor",C129=0),"--",C129*I129) -> 88205.1131 | K129: =IF(I129="NA","N/A",IF(L123=1,K123,IF(L124=1,K124,IF(L125=1,K125,IF(L126=1,K126,"N/A"))))) -> 33 | L129: 1 | M129: Residuals Piping - Backfill and Compaction | N129: 1 | O129: 1 | P129: 1 | Q129: 1 | R129: 1 | S129: 1 | T129: 1 | U129: 1 | V129: 1 | W129: 1 | X129: 2672.882215
A130: 3.3.5 | B130: Thrust Blocks | C130: =res_block_vol -> 38.13865633 | D130: cy | E130: NA | G130: NA | I130: =IF(C130=0,"NA",VLOOKUP(0,conc_basin_cost_cl,3)) -> 739.6055887 | J130: =IF(OR(I130="contact vendor",C130=0),"--",C130*I130) -> 28207.56337 | K130: =IF(I130="NA","N/A",IF(L123=1,K123,IF(L124=1,K124,IF(L125=1,K125,IF(L126=1,K126,"N/A"))))) -> 33 | L130: 1 | M130: Residuals Piping - Thrust Blocks | N130: 1 | O130: 1 | P130: 1 | Q130: 1 | R130: 1 | S130: 1 | T130: 1 | U130: 1 | V130: 1 | W130: 1 | X130: 854.7746474
A131: 3.4 | B131: Bypass Piping | W131: 0 | X131: 0
A132: 3.4.1 | B132: CPVC | C132: =bp_pipe_length -> 0 | D132: lf | E132: =IF(C132=0,"NA",bp_pipe_diam) -> NA | F132: =IF(C132=0,"","in. diam") ->  | G132: =IF(C132=0,"NA",IF(curve=1,bp_pipe_diam,VLOOKUP(bp_pipe_diam,cpvc_pipe_cost_cl,2))) -> NA | H132: =IF(C132=0,"","in. diam") ->  | I132: =IF(C132=0,"NA",IF(curve=1,cpvc_pipe_eq_bp,VLOOKUP(bp_pipe_diam,cpvc_pipe_cost_cl,3))) -> NA | J132: =IF(OR(I132="contact vendor",I132="NA"),"--",C132*I132) -> -- | K132: =IF(C132=0,"NA",VLOOKUP(bp_pipe_diam,cpvc_pipe_cost_cl,IF(ss_cat="large",4,5))) -> NA | M132: =$B$131&" "&" - "&B132 -> Bypass Piping - CPVC | N132: 2 | O132: 1 | P132: 3 | Q132: 2 | R132: 1 | S132: 3 | T132: 2 | U132: 1 | V132: 3 | W132: 0 | X132: 0
A133: 3.4.1 | B133: PVC | C133: =bp_pipe_length -> 0 | D133: lf | E133: =IF(C133=0,"NA",bp_pipe_diam) -> NA | F133: =IF(C133=0,"","in. diam") ->  | G133: =IF(C133=0,"NA",IF(curve=1,bp_pipe_diam,VLOOKUP(bp_pipe_diam,pvc_pipe_cost_cl,2))) -> NA | H133: =IF(C133=0,"","in. diam") ->  | I133: =IF(C133=0,"NA",IF(curve=1,pvc_pipe_eq_bp,VLOOKUP(bp_pipe_diam,pvc_pipe_cost_cl,3))) -> NA | J133: =IF(OR(I133="contact vendor",I133="NA"),"--",C133*I133) -> -- | K133: =IF(C133=0,"NA",VLOOKUP(bp_pipe_diam,pvc_pipe_cost_cl,IF(ss_cat="large",4,5))) -> NA | M133: =$B$131&" "&" - "&B133 -> Bypass Piping - PVC | N133: 1 | O133: 2 | P133: 4 | Q133: 1 | R133: 2 | S133: 4 | T133: 1 | U133: 2 | V133: 4 | W133: 0 | X133: 0
A134: 3.4.1 | B134: Stainless Steel | C134: =bp_pipe_length -> 0 | D134: lf | E134: =IF(C134=0,"NA",bp_pipe_diam) -> NA | F134: =IF(C134=0,"","in. diam") ->  | G134: =IF(C134=0,"NA",IF(curve=1,bp_pipe_diam,VLOOKUP(bp_pipe_diam,ss_pipe_cost_cl,2))) -> NA | H134: =IF(C134=0,"","in. diam") ->  | I134: =IF(C134=0,"NA",IF(curve=1,ss_pipe_eq_bp,VLOOKUP(bp_pipe_diam,ss_pipe_cost_cl,3))) -> NA | J134: =IF(OR(I134="contact vendor",I134="NA"),"--",C134*I134) -> -- | K134: =IF(C134=0,"NA",VLOOKUP(bp_pipe_diam,ss_pipe_cost_cl,IF(ss_cat="large",4,5))) -> NA | M134: =$B$131&" "&" - "&B134 -> Bypass Piping - Stainless Steel | N134: 4 | O134: 4 | P134: 1 | Q134: 4 | R134: 4 | S134: 1 | T134: 4 | U134: 4 | V134: 1 | W134: 0 | X134: 0
A135: 3.4.1 | B135: Steel | C135: =bp_pipe_length -> 0 | D135: lf | E135: =IF(C135=0,"NA",bp_pipe_diam) -> NA | F135: =IF(C135=0,"","in. diam") ->  | G135: =IF(C135=0,"NA",IF(curve=1,bp_pipe_diam,VLOOKUP(bp_pipe_diam,st_pipe_cost_cl,2))) -> NA | H135: =IF(C135=0,"","in. diam") ->  | I135: =IF(C135=0,"NA",IF(curve=1,st_pipe_eq_bp,VLOOKUP(bp_pipe_diam,st_pipe_cost_cl,3))) -> NA | J135: =IF(OR(I135="contact vendor",I135="NA"),"--",C135*I135) -> -- | K135: =IF(C135=0,"NA",VLOOKUP(bp_pipe_diam,st_pipe_cost_cl,IF(ss_cat="large",4,5))) -> NA | M135: =$B$131&" "&" - "&B135 -> Bypass Piping - Steel | N135: 3 | O135: 3 | P135: 2 | Q135: 3 | R135: 3 | S135: 2 | T135: 3 | U135: 3 | V135: 2 | W135: =IF(ISERROR(K135*L135),0,IF(K135<1,0,L135)) -> 0 | X135: =IF(W135,J135/K135,0) -> 0
A136: 4 | B136: Valves | W136: 0 | X136: 0
A137: 4.1 | B137: Motor/Air Operated (on/off) | W137: 0 | X137: 0
A138: 4.1.1 | B138: Pretreatment acid - Polypropylene/PVC | C138: =tot_pretreat_acid_MOVs -> 4 | D138: units | E138: =IF(C138=0,"NA",pretreat_acid_valve_size) -> 0.5 | F138: =IF(C138=0,"","in. diam") -> in. diam | G138: =IF(C138=0,"NA",IF(curve=1,pretreat_acid_valve_size,VLOOKUP(pretreat_acid_valve_size,pp_mov_cost_cl,2))) -> 0.5 | H138: =IF(C138=0,"","in. diam") -> in. diam | I138: =IF(C138=0,"NA",IF(curve=1,pp_mov_eq_acid,VLOOKUP(pretreat_acid_valve_size,pp_mov_cost_cl,3))) -> 656.0631953 | J138: =IF(OR(I138="contact vendor",I138="NA"),"--",C138*I138) -> 2624.252781 | K138: =IF(C138=0,"NA",VLOOKUP(pretreat_acid_valve_size,pp_mov_cost_cl,IF(ss_cat="large",4,5))) -> 20 | L138: 0 | M138: =$B$137&" "&$B$136&" - "&B138 -> Motor/Air Operated (on/off) Valves - Pretreatment acid - Polypropylene/PVC | N138: 1 | O138: 2 | P138: 2 | Q138: 1 | R138: 2 | S138: 2 | T138: 1 | U138: 2 | V138: 2 | W138: 0 | X138: 0
A139: 4.1.1 | B139: Pretreatment acid - Stainless Steel | C139: =tot_pretreat_acid_MOVs -> 4 | D139: units | E139: =IF(C139=0,"NA",pretreat_acid_valve_size) -> 0.5 | F139: in. diam | G139: =IF(C139=0,"NA",IF(curve=1,pretreat_acid_valve_size,VLOOKUP(pretreat_acid_valve_size,ss_mov_cost_cl,2))) -> 0.5 | H139: in. diam | I139: =IF(C139=0,"NA",IF(curve=1,ss_mov_eq_acid,VLOOKUP(pretreat_acid_valve_size,ss_mov_cost_cl,3))) -> 1419.488948 | J139: 5677.95579 | K139: =IF(C139=0,"NA",VLOOKUP(pretreat_acid_valve_size,ss_mov_cost_cl,IF(ss_cat="large",4,5))) -> 20 | L139: 1 | M139: =$B$137&" "&$B$136&" - "&B139 -> Motor/Air Operated (on/off) Valves - Pretreatment acid - Stainless Steel | N139: 2 | O139: 1 | P139: 1 | Q139: 2 | R139: 1 | S139: 1 | T139: 2 | U139: 1 | V139: 1 | W139: 1 | X139: 283.8977895
A140: 4.1.2 | B140: Antiscalant - Polypropylene/PVC | C140: =tot_antiscalant_MOVs -> 4 | D140: units | E140: =IF(C140=0,"NA",antiscalant_valve_size) -> 0.5 | F140: in. diam | G140: =IF(C140=0,"NA",IF(curve=1,antiscalant_valve_size,VLOOKUP(antiscalant_valve_size,pp_mov_cost_cl,2))) -> 0.5 | H140: in. diam | I140: =IF(C140=0,"NA",IF(curve=1,pp_mov_eq_anti,VLOOKUP(antiscalant_valve_size,pp_mov_cost_cl,3))) -> 656.0631953 | J140: 2624.252781 | K140: =IF(C140=0,"NA",VLOOKUP(antiscalant_valve_size,pp_mov_cost_cl,IF(ss_cat="large",4,5))) -> 20 | L140: 0 | M140: Motor/Air Operated (on/off) Valves - Antiscalant - Polypropylene/PVC | N140: 1 | O140: 2 | P140: 2 | Q140: 1 | R140: 2 | S140: 2 | T140: 1 | U140: 2 | V140: 2 | W140: 0 | X140: 0
A141: 4.1.2 | B141: Antiscalant - Stainless Steel | C141: =tot_antiscalant_MOVs -> 4 | D141: units | E141: =IF(C141=0,"NA",antiscalant_valve_size) -> 0.5 | F141: in. diam | G141: =IF(C141=0,"NA",IF(curve=1,antiscalant_valve_size,VLOOKUP(antiscalant_valve_size,ss_mov_cost_cl,2))) -> 0.5 | H141: in. diam | I141: =IF(C141=0,"NA",IF(curve=1,ss_mov_eq_anti,VLOOKUP(antiscalant_valve_size,ss_mov_cost_cl,3))) -> 1419.488948 | J141: 5677.95579 | K141: =IF(C141=0,"NA",VLOOKUP(antiscalant_valve_size,ss_mov_cost_cl,IF(ss_cat="large",4,5))) -> 20 | L141: 1 | M141: Motor/Air Operated (on/off) Valves - Antiscalant - Stainless Steel | N141: 2 | O141: 1 | P141: 1 | Q141: 2 | R141: 1 | S141: 1 | T141: 2 | U141: 1 | V141: 1 | W141: 1 | X141: 283.8977895
A142: 4.1.3 | B142: Feed line - Polypropylene/PVC | C142: =tot_feed_MOVs -> 6 | D142: units | E142: =IF(C142=0,"NA",feed_valve_size) -> 6 | F142: in. diam | G142: =IF(C142=0,"NA",IF(curve=1,feed_valve_size,VLOOKUP(feed_valve_size,pp_mov_cost_cl,2))) -> 6 | H142: in. diam | I142: =IF(C142=0,"NA",IF(curve=1,pp_mov_eq_feed,VLOOKUP(feed_valve_size,pp_mov_cost_cl,3))) -> 1785.040626 | J142: 10710.24376 | K142: =IF(C142=0,"NA",VLOOKUP(feed_valve_size,pp_mov_cost_cl,IF(ss_cat="large",4,5))) -> 20 | L142: 0 | M142: Motor/Air Operated (on/off) Valves - Feed line - Polypropylene/PVC | N142: 1 | O142: 2 | P142: 3 | Q142: 1 | R142: 2 | S142: 3 | T142: 1 | U142: 2 | V142: 3 | W142: 0 | X142: 0
A143: 4.1.3 | B143: Feed line - Stainless Steel | C143: =tot_feed_MOVs -> 6 | D143: units | E143: =IF(C143=0,"NA",feed_valve_size) -> 6 | F143: in. diam | G143: =IF(C143=0,"NA",IF(curve=1,feed_valve_size,VLOOKUP(feed_valve_size,ss_mov_cost_cl,2))) -> 6 | H143: in. diam | I143: =IF(C143=0,"NA",IF(curve=1,ss_mov_eq_feed,VLOOKUP(feed_valve_size,ss_mov_cost_cl,3))) -> 3097.180017 | J143: 18583.0801 | K143: =IF(C143=0,"NA",VLOOKUP(feed_valve_size,ss_mov_cost_cl,IF(ss_cat="large",4,5))) -> 20 | L143: 1 | M143: Motor/Air Operated (on/off) Valves - Feed line - Stainless Steel | N143: 3 | O143: 3 | P143: 1 | Q143: 3 | R143: 3 | S143: 1 | T143: 3 | U143: 3 | V143: 1 | W143: 1 | X143: 929.1540051
A144: 4.1.3 | B144: Feed line - Cast Iron | C144: =tot_feed_MOVs -> 6 | D144: units | E144: =IF(C144=0,"NA",feed_valve_size) -> 6 | F144: in. diam | G144: =IF(C144=0,"NA",IF(curve=1,feed_valve_size,VLOOKUP(feed_valve_size,ci_mov_cost_cl,2))) -> 6 | H144: in. diam | I144: =IF(C144=0,"NA",IF(curve=1,ci_mov_eq_feed,VLOOKUP(feed_valve_size,ci_mov_cost_cl,3))) -> 6662.623932 | J144: 39975.74359 | K144: =IF(C144=0,"NA",VLOOKUP(feed_valve_size,ci_mov_cost_cl,IF(ss_cat="large",4,5))) -> 20 | L144: 0 | M144: Motor/Air Operated (on/off) Valves - Feed line - Cast Iron | N144: 2 | O144: 1 | P144: 2 | Q144: 2 | R144: 1 | S144: 2 | T144: 2 | U144: 1 | V144: 2 | W144: 0 | X144: 0
A145: 4.1.4 | B145: Concentrate control - Stainless Steel | C145: =tot_conc_MOVs -> 2 | D145: units | E145: =IF(C145=0,"NA",conc_valve_size) -> 3 | F145: in. diam | G145: =IF(C145=0,"NA",IF(curve=1,conc_valve_size,VLOOKUP(conc_valve_size,ss_mov_cost_cl,2))) -> 3 | H145: in. diam | I145: =IF(C145=0,"NA",IF(curve=1,ss_mov_eq_conc,VLOOKUP(conc_valve_size,ss_mov_cost_cl,3))) -> 1742.211263 | J145: 3484.422526 | K145: =IF(C145=0,"NA",VLOOKUP(conc_valve_size,ss_mov_cost_cl,IF(ss_cat="large",4,5))) -> 20 | L145: 1 | M145: Motor/Air Operated (on/off) Valves - Concentrate control - Stainless Steel | N145: 2 | O145: 1 | P145: 1 | Q145: 2 | R145: 1 | S145: 1 | T145: 2 | U145: 1 | V145: 1 | W145: 1 | X145: 174.2211263
A146: 4.1.4 | B146: Concentrate control - Cast Iron | C146: =tot_conc_MOVs -> 2 | D146: units | E146: =IF(C146=0,"NA",conc_valve_size) -> 3 | F146: =IF(C146=0,"","in. diam") -> in. diam | G146: =IF(C146=0,"NA",IF(curve=1,conc_valve_size,VLOOKUP(conc_valve_size,ci_mov_cost_cl,2))) -> 3 | H146: =IF(C146=0,"","in. diam") -> in. diam | I146: =IF(C146=0,"NA",IF(curve=1,ci_mov_eq_conc,VLOOKUP(conc_valve_size,ci_mov_cost_cl,3))) -> 2748.787682 | J146: 5497.575364 | K146: =IF(C146=0,"NA",VLOOKUP(conc_valve_size,ci_mov_cost_cl,IF(ss_cat="large",4,5))) -> 20 | L146: 0 | M146: =$B$137&" "&$B$136&" - "&B146 -> Motor/Air Operated (on/off) Valves - Concentrate control - Cast Iron | N146: 1 | O146: 2 | P146: 2 | Q146: 1 | R146: 2 | S146: 2 | T146: 1 | U146: 2 | V146: 2 | W146: 0 | X146: 0
A147: 4.1.4 | B147: Concentrate control - Polypropylene/PVC | C147: =tot_conc_MOVs -> 2 | D147: units | E147: =IF(C147=0,"NA",conc_valve_size) -> 3 | F147: =IF(C147=0,"","in. diam") -> in. diam | G147: =IF(C147=0,"NA",IF(curve=1,conc_valve_size,VLOOKUP(conc_valve_size,pp_mov_cost_cl,2))) -> 3 | H147: =IF(C147=0,"","in. diam") -> in. diam | I147: =IF(C147=0,"NA",IF(curve=1,pp_mov_eq_conc,VLOOKUP(conc_valve_size,pp_mov_cost_cl,3))) -> 1034.040832 | J147: 2068.081664 | K147: =IF(C147=0,"NA",VLOOKUP(conc_valve_size,pp_mov_cost_cl,IF(ss_cat="large",4,5))) -> 20 | L147: 0 | M147: =$B$137&" "&$B$136&" - "&B147 -> Motor/Air Operated (on/off) Valves - Concentrate control - Polypropylene/PVC | N147: 3 | O147: 3 | P147: 3 | Q147: 3 | R147: 3 | S147: 3 | T147: 3 | U147: 3 | V147: 3 | W147: 0 | X147: 0
A148: 4.1.5 | B148: Stage 2 boost - Polypropylene/PVC | C148: =tot_boost_2_MOVs -> 0 | D148: units | E148: =IF(C148=0,"NA",boost_valve_2_diam) -> NA | G148: =IF(C148=0,"NA",IF(curve=1,boost_valve_2_diam,VLOOKUP(boost_valve_2_diam,pp_mov_cost_cl,2))) -> NA | I148: =IF(C148=0,"NA",IF(curve=1,pp_mov_eq_b2,VLOOKUP(boost_valve_2_diam,pp_mov_cost_cl,3))) -> NA | J148: -- | K148: =IF(C148=0,"NA",VLOOKUP(boost_valve_2_diam,pp_mov_cost_cl,IF(ss_cat="large",4,5))) -> NA | M148: Motor/Air Operated (on/off) Valves - Stage 2 boost - Polypropylene/PVC | N148: 1 | O148: 1 | P148: 2 | Q148: 1 | R148: 1 | S148: 2 | T148: 1 | U148: 1 | V148: 2 | W148: 0 | X148: 0
A149: 4.1.5 | B149: Stage 2 boost - Stainless Steel | C149: =tot_boost_2_MOVs -> 0 | D149: units | E149: =IF(C149=0,"NA",boost_valve_2_diam) -> NA | G149: =IF(C149=0,"NA",IF(curve=1,boost_valve_2_diam,VLOOKUP(boost_valve_2_diam,ss_mov_cost_cl,2))) -> NA | I149: =IF(C149=0,"NA",IF(curve=1,ss_mov_eq_b2,VLOOKUP(boost_valve_2_diam,ss_mov_cost_cl,3))) -> NA | J149: -- | K149: =IF(C149=0,"NA",VLOOKUP(boost_valve_2_diam,ss_mov_cost_cl,IF(ss_cat="large",4,5))) -> NA | M149: Motor/Air Operated (on/off) Valves - Stage 2 boost - Stainless Steel | N149: 2 | O149: 2 | P149: 1 | Q149: 2 | R149: 2 | S149: 1 | T149: 2 | U149: 2 | V149: 1 | W149: 0 | X149: 0
A150: 4.1.6 | B150: Stage 3 boost - Polypropylene/PVC | C150: =tot_boost_3_MOVs -> 0 | D150: units | E150: =IF(C150=0,"NA",boost_valve_3_diam) -> NA | G150: =IF(C150=0,"NA",IF(curve=1,boost_valve_3_diam,VLOOKUP(boost_valve_3_diam,pp_mov_cost_cl,2))) -> NA | I150: =IF(C150=0,"NA",IF(curve=1,pp_mov_eq_b3,VLOOKUP(boost_valve_3_diam,pp_mov_cost_cl,3))) -> NA | J150: -- | K150: =IF(C150=0,"NA",VLOOKUP(boost_valve_3_diam,pp_mov_cost_cl,IF(ss_cat="large",4,5))) -> NA | M150: Motor/Air Operated (on/off) Valves - Stage 3 boost - Polypropylene/PVC | N150: 1 | O150: 1 | P150: 2 | Q150: 1 | R150: 1 | S150: 2 | T150: 1 | U150: 1 | V150: 2 | W150: 0 | X150: 0
A151: 4.1.6 | B151: Stage 3 boost - Stainless Steel | C151: =tot_boost_3_MOVs -> 0 | D151: units | E151: =IF(C151=0,"NA",boost_valve_3_diam) -> NA | G151: =IF(C151=0,"NA",IF(curve=1,boost_valve_3_diam,VLOOKUP(boost_valve_3_diam,ss_mov_cost_cl,2))) -> NA | I151: =IF(C151=0,"NA",IF(curve=1,ss_mov_eq_b3,VLOOKUP(boost_valve_3_diam,ss_mov_cost_cl,3))) -> NA | J151: -- | K151: =IF(C151=0,"NA",VLOOKUP(boost_valve_3_diam,ss_mov_cost_cl,IF(ss_cat="large",4,5))) -> NA | M151: Motor/Air Operated (on/off) Valves - Stage 3 boost - Stainless Steel | N151: 2 | O151: 2 | P151: 1 | Q151: 2 | R151: 2 | S151: 1 | T151: 2 | U151: 2 | V151: 1 | W151: 0 | X151: 0
A152: 4.1.7 | B152: Stage 1 throttle - Polypropylene/PVC | C152: =tot_perm_1_MOVs -> 0 | D152: units | E152: =IF(C152=0,"NA",perm_valve_1_diam) -> NA | G152: =IF(C152=0,"NA",IF(curve=1,perm_valve_1_diam,VLOOKUP(perm_valve_1_diam,pp_mov_cost_cl,2))) -> NA | I152: =IF(C152=0,"NA",IF(curve=1,pp_mov_eq_pt1,VLOOKUP(perm_valve_1_diam,pp_mov_cost_cl,3))) -> NA | J152: -- | K152: =IF(C152=0,"NA",VLOOKUP(perm_valve_1_diam,pp_mov_cost_cl,IF(ss_cat="large",4,5))) -> NA | M152: Motor/Air Operated (on/off) Valves - Stage 1 throttle - Polypropylene/PVC | N152: 1 | O152: 1 | P152: 2 | Q152: 1 | R152: 1 | S152: 2 | T152: 1 | U152: 1 | V152: 2 | W152: 0 | X152: 0
A153: 4.1.7 | B153: Stage 1 throttle - Stainless Steel | C153: =tot_perm_1_MOVs -> 0 | D153: units | E153: =IF(C153=0,"NA",perm_valve_1_diam) -> NA | G153: =IF(C153=0,"NA",IF(curve=1,perm_valve_1_diam,VLOOKUP(perm_valve_1_diam,ss_mov_cost_cl,2))) -> NA | I153: =IF(C153=0,"NA",IF(curve=1,ss_mov_eq_pt1,VLOOKUP(perm_valve_1_diam,ss_mov_cost_cl,3))) -> NA | J153: -- | K153: =IF(C153=0,"NA",VLOOKUP(perm_valve_1_diam,ss_mov_cost_cl,IF(ss_cat="large",4,5))) -> NA | M153: Motor/Air Operated (on/off) Valves - Stage 1 throttle - Stainless Steel | N153: 2 | O153: 2 | P153: 1 | Q153: 2 | R153: 2 | S153: 1 | T153: 2 | U153: 2 | V153: 1 | W153: 0 | X153: 0
A154: 4.1.8 | B154: Stage 2 throttle - Polypropylene/PVC | C154: =tot_perm_2_MOVs -> 0 | D154: units | E154: =IF(C154=0,"NA",perm_valve_2_diam) -> NA | G154: =IF(C154=0,"NA",IF(curve=1,perm_valve_2_diam,VLOOKUP(perm_valve_2_diam,pp_mov_cost_cl,2))) -> NA | I154: =IF(C154=0,"NA",IF(curve=1,pp_mov_eq_pt2,VLOOKUP(perm_valve_2_diam,pp_mov_cost_cl,3))) -> NA | J154: -- | K154: =IF(C154=0,"NA",VLOOKUP(perm_valve_2_diam,pp_mov_cost_cl,IF(ss_cat="large",4,5))) -> NA | M154: Motor/Air Operated (on/off) Valves - Stage 2 throttle - Polypropylene/PVC | N154: 1 | O154: 1 | P154: 2 | Q154: 1 | R154: 1 | S154: 2 | T154: 1 | U154: 1 | V154: 2 | W154: 0 | X154: 0
A155: 4.1.8 | B155: Stage 2 throttle - Stainless Steel | C155: =tot_perm_2_MOVs -> 0 | D155: units | E155: =IF(C155=0,"NA",perm_valve_2_diam) -> NA | G155: =IF(C155=0,"NA",IF(curve=1,perm_valve_2_diam,VLOOKUP(perm_valve_2_diam,ss_mov_cost_cl,2))) -> NA | I155: =IF(C155=0,"NA",IF(curve=1,ss_mov_eq_pt2,VLOOKUP(perm_valve_2_diam,ss_mov_cost_cl,3))) -> NA | J155: -- | K155: =IF(C155=0,"NA",VLOOKUP(perm_valve_2_diam,ss_mov_cost_cl,IF(ss_cat="large",4,5))) -> NA | M155: Motor/Air Operated (on/off) Valves - Stage 2 throttle - Stainless Steel | N155: 2 | O155: 2 | P155: 1 | Q155: 2 | R155: 2 | S155: 1 | T155: 2 | U155: 2 | V155: 1 | W155: 0 | X155: 0
A156: 4.1.9 | B156: Stage 3 throttle - Polypropylene/PVC | C156: =tot_perm_3_MOVs -> 0 | D156: units | E156: =IF(C156=0,"NA",perm_valve_3_diam) -> NA | G156: =IF(C156=0,"NA",IF(curve=1,perm_valve_3_diam,VLOOKUP(perm_valve_3_diam,pp_mov_cost_cl,2))) -> NA | I156: =IF(C156=0,"NA",IF(curve=1,pp_mov_eq_pt3,VLOOKUP(perm_valve_3_diam,pp_mov_cost_cl,3))) -> NA | J156: -- | K156: =IF(C156=0,"NA",VLOOKUP(perm_valve_3_diam,pp_mov_cost_cl,IF(ss_cat="large",4,5))) -> NA | M156: Motor/Air Operated (on/off) Valves - Stage 3 throttle - Polypropylene/PVC | N156: 1 | O156: 1 | P156: 2 | Q156: 1 | R156: 1 | S156: 2 | T156: 1 | U156: 1 | V156: 2 | W156: 0 | X156: 0
A157: 4.1.9 | B157: Stage 3 throttle - Stainless Steel | C157: =tot_perm_3_MOVs -> 0 | D157: units | E157: =IF(C157=0,"NA",perm_valve_3_diam) -> NA | G157: =IF(C157=0,"NA",IF(curve=1,perm_valve_3_diam,VLOOKUP(perm_valve_3_diam,ss_mov_cost_cl,2))) -> NA | I157: =IF(C157=0,"NA",IF(curve=1,ss_mov_eq_pt3,VLOOKUP(perm_valve_3_diam,ss_mov_cost_cl,3))) -> NA | J157: -- | K157: =IF(C157=0,"NA",VLOOKUP(perm_valve_3_diam,ss_mov_cost_cl,IF(ss_cat="large",4,5))) -> NA | M157: Motor/Air Operated (on/off) Valves - Stage 3 throttle - Stainless Steel | N157: 2 | O157: 2 | P157: 1 | Q157: 2 | R157: 2 | S157: 1 | T157: 2 | U157: 2 | V157: 1 | W157: 0 | X157: 0
A158: 4.1.10 | B158: Cleaning - Polypropylene/PVC | C158: =tot_clean_MOVs -> 28 | D158: units | E158: =IF(C158=0,"NA",clean_valve_size) -> 4 | F158: in. diam | G158: =IF(C158=0,"NA",IF(curve=1,clean_valve_size,VLOOKUP(clean_valve_size,pp_mov_cost_cl,2))) -> 4 | H158: in. diam | I158: =IF(C158=0,"NA",IF(curve=1,pp_mov_eq_clean,VLOOKUP(clean_valve_size,pp_mov_cost_cl,3))) -> 1240.436377 | J158: 34732.21856 | K158: =IF(C158=0,"NA",VLOOKUP(clean_valve_size,pp_mov_cost_cl,IF(ss_cat="large",4,5))) -> 20 | L158: 0 | M158: Motor/Air Operated (on/off) Valves - Cleaning - Polypropylene/PVC | N158: 1 | O158: 2 | P158: 2 | Q158: 1 | R158: 2 | S158: 2 | T158: 1 | U158: 2 | V158: 2 | W158: 0 | X158: 0
A159: 4.1.10 | B159: Cleaning - Stainless Steel | C159: =tot_clean_MOVs -> 28 | D159: units | E159: =IF(C159=0,"NA",clean_valve_size) -> 4 | F159: in. diam | G159: =IF(C159=0,"NA",IF(curve=1,clean_valve_size,VLOOKUP(clean_valve_size,ss_mov_cost_cl,2))) -> 4 | H159: in. diam | I159: =IF(C159=0,"NA",IF(curve=1,ss_mov_eq_clean,VLOOKUP(clean_valve_size,ss_mov_cost_cl,3))) -> 2066.200889 | J159: 57853.6249 | K159: =IF(C159=0,"NA",VLOOKUP(clean_valve_size,ss_mov_cost_cl,IF(ss_cat="large",4,5))) -> 20 | L159: 1 | M159: Motor/Air Operated (on/off) Valves - Cleaning - Stainless Steel | N159: 2 | O159: 1 | P159: 1 | Q159: 2 | R159: 1 | S159: 1 | T159: 2 | U159: 1 | V159: 1 | W159: 1 | X159: 2892.681245
A160: 4.1.11 | B160: Bypass - Polypropylene/PVC | C160: =tot_bp_MOVs -> 0 | D160: units | E160: =IF(C160=0,"NA",bypass_valve_size) -> NA | G160: =IF(C160=0,"NA",IF(curve=1,bypass_valve_size,VLOOKUP(bypass_valve_size,pp_mov_cost_cl,2))) -> NA | I160: =IF(C160=0,"NA",IF(curve=1,pp_mov_eq_bp,VLOOKUP(bypass_valve_size,pp_mov_cost_cl,3))) -> NA | J160: -- | K160: =IF(C160=0,"NA",VLOOKUP(bypass_valve_size,pp_mov_cost_cl,IF(ss_cat="large",4,5))) -> NA | M160: Motor/Air Operated (on/off) Valves - Bypass - Polypropylene/PVC | N160: 1 | O160: 2 | P160: 3 | Q160: 1 | R160: 2 | S160: 3 | T160: 1 | U160: 2 | V160: 3 | W160: 0 | X160: 0
A161: 4.1.11 | B161: Bypass - Stainless Steel | C161: =tot_bp_MOVs -> 0 | D161: units | E161: =IF(C161=0,"NA",bypass_valve_size) -> NA | G161: =IF(C161=0,"NA",IF(curve=1,bypass_valve_size,VLOOKUP(bypass_valve_size,ss_mov_cost_cl,2))) -> NA | I161: =IF(C161=0,"NA",IF(curve=1,ss_mov_eq_bp,VLOOKUP(bypass_valve_size,ss_mov_cost_cl,3))) -> NA | J161: -- | K161: =IF(C161=0,"NA",VLOOKUP(bypass_valve_size,ss_mov_cost_cl,IF(ss_cat="large",4,5))) -> NA | M161: Motor/Air Operated (on/off) Valves - Bypass - Stainless Steel | N161: 3 | O161: 3 | P161: 1 | Q161: 3 | R161: 3 | S161: 1 | T161: 3 | U161: 3 | V161: 1 | W161: 0 | X161: 0
A162: 4.1.11 | B162: Bypass - Cast Iron | C162: =tot_bp_MOVs -> 0 | D162: units | E162: =IF(C162=0,"NA",bypass_valve_size) -> NA | G162: =IF(C162=0,"NA",IF(curve=1,bypass_valve_size,VLOOKUP(bypass_valve_size,ci_mov_cost_cl,2))) -> NA | I162: =IF(C162=0,"NA",IF(curve=1,ci_mov_eq_bp,VLOOKUP(bypass_valve_size,ci_mov_cost_cl,3))) -> NA | J162: -- | K162: =IF(C162=0,"NA",VLOOKUP(bypass_valve_size,ci_mov_cost_cl,IF(ss_cat="large",4,5))) -> NA | M162: Motor/Air Operated (on/off) Valves - Bypass - Cast Iron | N162: 2 | O162: 1 | P162: 2 | Q162: 2 | R162: 1 | S162: 2 | T162: 2 | U162: 1 | V162: 2 | W162: 0 | X162: 0
A163: 4.1.12 | B163: Residuals - Polypropylene/PVC | C163: =total_res_MOVs -> 0 | D163: units | E163: =IF(C163=0,"NA",res_valve_size) -> NA | F163: =IF(C163=0,"","in. diam") ->  | G163: =IF(C163=0,"NA",IF(curve=1,res_valve_size,VLOOKUP(res_valve_size,pp_mov_cost_cl,2))) -> NA | H163: =IF(C163=0,"","in. diam") ->  | I163: =IF(C163=0,"NA",IF(curve=1,pp_mov_eq_res,VLOOKUP(res_valve_size,pp_mov_cost_cl,3))) -> NA | J163: =IF(OR(I163="contact vendor",I163="NA"),"--",C163*I163) -> -- | K163: =IF(C163=0,"NA",VLOOKUP(res_valve_size,pp_mov_cost_cl,IF(ss_cat="large",4,5))) -> NA | M163: Motor/Air Operated (on/off) Valves - Residuals - Polypropylene/PVC | N163: 1 | O163: 2 | P163: 3 | Q163: 1 | R163: 2 | S163: 3 | T163: 1 | U163: 2 | V163: 3 | W163: 0 | X163: 0
A164: 4.1.12 | B164: Residuals - Stainless Steel | C164: =total_res_MOVs -> 0 | D164: units | E164: =IF(C164=0,"NA",res_valve_size) -> NA | F164: =IF(C164=0,"","in. diam") ->  | G164: =IF(C164=0,"NA",IF(curve=1,res_valve_size,VLOOKUP(res_valve_size,ss_mov_cost_cl,2))) -> NA | H164: =IF(C164=0,"","in. diam") ->  | I164: =IF(C164=0,"NA",IF(curve=1,ss_mov_eq_res,VLOOKUP(res_valve_size,ss_mov_cost_cl,3))) -> NA | J164: =IF(OR(I164="contact vendor",I164="NA"),"--",C164*I164) -> -- | K164: =IF(C164=0,"NA",VLOOKUP(res_valve_size,ss_mov_cost_cl,IF(ss_cat="large",4,5))) -> NA | M164: Motor/Air Operated (on/off) Valves - Residuals - Stainless Steel | N164: 3 | O164: 3 | P164: 1 | Q164: 3 | R164: 3 | S164: 1 | T164: 3 | U164: 3 | V164: 1 | W164: 0 | X164: 0
A165: 4.1.12 | B165: Residuals - Cast Iron | C165: =total_res_MOVs -> 0 | D165: units | E165: =IF(C165=0,"NA",res_valve_size) -> NA | F165: =IF(C165=0,"","in. diam") ->  | G165: =IF(C165=0,"NA",IF(curve=1,res_valve_size,VLOOKUP(res_valve_size,ci_mov_cost_cl,2))) -> NA | H165: =IF(C165=0,"","in. diam") ->  | I165: =IF(C165=0,"NA",IF(curve=1,ci_mov_eq_res,VLOOKUP(res_valve_size,ci_mov_cost_cl,3))) -> NA | J165: =IF(OR(I165="contact vendor",I165="NA"),"--",C165*I165) -> -- | K165: =IF(C165=0,"NA",VLOOKUP(res_valve_size,ci_mov_cost_cl,IF(ss_cat="large",4,5))) -> NA | M165: Motor/Air Operated (on/off) Valves - Residuals - Cast Iron | N165: 2 | O165: 1 | P165: 2 | Q165: 2 | R165: 1 | S165: 2 | T165: 2 | U165: 1 | V165: 2 | W165: 0 | X165: 0
A166: 4.2 | B166: Manual | W166: 0 | X166: 0
A167: 4.2.1 | B167: Influent and treated water - Polypropylene/PVC | C167: =tot_man_valves -> 2 | D167: units | E167: =IF(C167=0,"NA",in_valve_size) -> 6 | F167: =IF(C167=0,"","in. diam") -> in. diam | G167: =IF(C167=0,"NA",IF(curve=1,in_valve_size,VLOOKUP(in_valve_size,pp_man_cost_cl,2))) -> 6 | H167: =IF(C167=0,"","in. diam") -> in. diam | I167: =IF(C167=0,"NA",IF(curve=1,pp_man_eq,VLOOKUP(in_valve_size,pp_man_cost_cl,3))) -> 819.5854708 | J167: =IF(OR(I167="contact vendor",I167="NA"),"--",C167*I167) -> 1639.170942 | K167: =IF(C167=0,"NA",VLOOKUP(in_valve_size,pp_man_cost_cl,IF(ss_cat="large",4,5))) -> 20 | L167: 0 | M167: =$B$166&" "&$B$136&" - "&B167 -> Manual Valves - Influent and treated water - Polypropylene/PVC | N167: 1 | O167: 2 | P167: 3 | Q167: 1 | R167: 2 | S167: 3 | T167: 1 | U167: 2 | V167: 3 | W167: =IF(ISERROR(K167*L167),0,IF(K167<1,0,L167)) -> 0 | X167: =IF(W167,J167/K167,0) -> 0
A168: 4.2.1 | B168: Influent and treated water - Stainless Steel | C168: =tot_man_valves -> 2 | D168: units | E168: =IF(C168=0,"NA",in_valve_size) -> 6 | F168: =IF(C168=0,"","in. diam") -> in. diam | G168: =IF(C168=0,"NA",IF(curve=1,in_valve_size,VLOOKUP(in_valve_size,ss_man_cost_cl,2))) -> 6 | H168: =IF(C168=0,"","in. diam") -> in. diam | I168: =IF(C168=0,"NA",IF(curve=1,ss_man_eq,VLOOKUP(in_valve_size,ss_man_cost_cl,3))) -> 1428.703531 | J168: =IF(OR(I168="contact vendor",I168="NA"),"--",C168*I168) -> 2857.407062 | K168: =IF(C168=0,"NA",VLOOKUP(in_valve_size,ss_man_cost_cl,IF(ss_cat="large",4,5))) -> 20 | L168: 1 | M168: Manual Valves - Influent and treated water - Stainless Steel | N168: 3 | O168: 3 | P168: 1 | Q168: 3 | R168: 3 | S168: 1 | T168: 3 | U168: 3 | V168: 1 | W168: 1 | X168: 142.8703531
A169: 4.2.1 | B169: Influent and treated water - Cast Iron | C169: =tot_man_valves -> 2 | D169: units | E169: =IF(C169=0,"NA",in_valve_size) -> 6 | F169: =IF(C169=0,"","in. diam") -> in. diam | G169: =IF(C169=0,"NA",IF(curve=1,in_valve_size,VLOOKUP(in_valve_size,ci_bfv_cost_cl,2))) -> 6 | H169: =IF(C169=0,"","in. diam") -> in. diam | I169: =IF(C169=0,"NA",IF(curve=1,ci_bfv_eq,VLOOKUP(in_valve_size,ci_bfv_cost_cl,3))) -> 1445.940815 | J169: =IF(OR(I169="contact vendor",I169="NA"),"--",C169*I169) -> 2891.881629 | K169: =IF(C169=0,"NA",VLOOKUP(in_valve_size,ci_bfv_cost_cl,IF(ss_cat="large",4,5))) -> 20 | L169: 0 | M169: Manual Valves - Influent and treated water - Cast Iron | N169: 2 | O169: 1 | P169: 2 | Q169: 2 | R169: 1 | S169: 2 | T169: 2 | U169: 1 | V169: 2 | W169: 0 | X169: 0
A170: 4.2.2 | B170: Pretreatment acid - Polypropylene/PVC | C170: =tot_pretreat_acid_man -> 0 | D170: units | E170: =IF(C170=0,"NA",pretreat_acid_valve_size) -> NA | F170: =IF(C170=0,"","in. diam") ->  | G170: =IF(C170=0,"NA",IF(curve=1,pretreat_acid_valve_size,VLOOKUP(pretreat_acid_valve_size,pp_man_cost_cl,2))) -> NA | H170: =IF(C170=0,"","in. diam") ->  | I170: =IF(C170=0,"NA",IF(curve=1,pp_man_eq_acid,VLOOKUP(pretreat_acid_valve_size,pp_man_cost_cl,3))) -> NA | J170: =IF(OR(I170="contact vendor",I170="NA"),"--",C170*I170) -> -- | K170: =IF(C170=0,"NA",VLOOKUP(pretreat_acid_valve_size,pp_man_cost_cl,IF(ss_cat="large",4,5))) -> NA | M170: Manual Valves - Pretreatment acid - Polypropylene/PVC | N170: 1 | O170: 2 | P170: 2 | Q170: 1 | R170: 2 | S170: 2 | T170: 1 | U170: 2 | V170: 2 | W170: 0 | X170: 0
A171: 4.2.2 | B171: Pretreatment acid - Stainless Steel | C171: =tot_pretreat_acid_man -> 0 | D171: units | E171: =IF(C171=0,"NA",pretreat_acid_valve_size) -> NA | G171: =IF(C171=0,"NA",IF(curve=1,pretreat_acid_valve_size,VLOOKUP(pretreat_acid_valve_size,ss_man_cost_cl,2))) -> NA | I171: =IF(C171=0,"NA",IF(curve=1,ss_man_eq_acid,VLOOKUP(pretreat_acid_valve_size,ss_man_cost_cl,3))) -> NA | J171: -- | K171: =IF(C171=0,"NA",VLOOKUP(pretreat_acid_valve_size,ss_man_cost_cl,IF(ss_cat="large",4,5))) -> NA | M171: Manual Valves - Pretreatment acid - Stainless Steel | N171: 2 | O171: 1 | P171: 1 | Q171: 2 | R171: 1 | S171: 1 | T171: 2 | U171: 1 | V171: 1 | W171: 0 | X171: 0
A172: 4.2.3 | B172: Antiscalant - Polypropylene/PVC | C172: =tot_antiscalant_man -> 0 | D172: units | E172: =IF(C172=0,"NA",antiscalant_valve_size) -> NA | G172: =IF(C172=0,"NA",IF(curve=1,antiscalant_valve_size,VLOOKUP(antiscalant_valve_size,pp_man_cost_cl,2))) -> NA | I172: =IF(C172=0,"NA",IF(curve=1,pp_man_eq_anti,VLOOKUP(antiscalant_valve_size,pp_man_cost_cl,3))) -> NA | J172: -- | K172: =IF(C172=0,"NA",VLOOKUP(antiscalant_valve_size,pp_man_cost_cl,IF(ss_cat="large",4,5))) -> NA | M172: Manual Valves - Antiscalant - Polypropylene/PVC | N172: 1 | O172: 2 | P172: 2 | Q172: 1 | R172: 2 | S172: 2 | T172: 1 | U172: 2 | V172: 2 | W172: 0 | X172: 0
A173: 4.2.3 | B173: Antiscalant - Stainless Steel | C173: =tot_antiscalant_man -> 0 | D173: units | E173: =IF(C173=0,"NA",antiscalant_valve_size) -> NA | G173: =IF(C173=0,"NA",IF(curve=1,antiscalant_valve_size,VLOOKUP(antiscalant_valve_size,ss_man_cost_cl,2))) -> NA | I173: =IF(C173=0,"NA",IF(curve=1,ss_man_eq_anti,VLOOKUP(antiscalant_valve_size,ss_man_cost_cl,3))) -> NA | J173: -- | K173: =IF(C173=0,"NA",VLOOKUP(antiscalant_valve_size,ss_man_cost_cl,IF(ss_cat="large",4,5))) -> NA | M173: Manual Valves - Antiscalant - Stainless Steel | N173: 2 | O173: 1 | P173: 1 | Q173: 2 | R173: 1 | S173: 1 | T173: 2 | U173: 1 | V173: 1 | W173: 0 | X173: 0
A174: 4.2.4 | B174: Feed line - Polypropylene/PVC | C174: =tot_feed_man -> 0 | D174: units | E174: =IF(C174=0,"NA",feed_valve_size) -> NA | G174: =IF(C174=0,"NA",IF(curve=1,feed_valve_size,VLOOKUP(feed_valve_size,pp_man_cost_cl,2))) -> NA | I174: =IF(C174=0,"NA",IF(curve=1,pp_man_eq_feed,VLOOKUP(feed_valve_size,pp_man_cost_cl,3))) -> NA | J174: -- | K174: =IF(C174=0,"NA",VLOOKUP(feed_valve_size,pp_man_cost_cl,IF(ss_cat="large",4,5))) -> NA | M174: Manual Valves - Feed line - Polypropylene/PVC | N174: 1 | O174: 2 | P174: 3 | Q174: 1 | R174: 2 | S174: 3 | T174: 1 | U174: 2 | V174: 3 | W174: 0 | X174: 0
A175: 4.2.4 | B175: Feed line - Stainless Steel | C175: =tot_feed_man -> 0 | D175: units | E175: =IF(C175=0,"NA",feed_valve_size) -> NA | G175: =IF(C175=0,"NA",IF(curve=1,feed_valve_size,VLOOKUP(feed_valve_size,ss_man_cost_cl,2))) -> NA | I175: =IF(C175=0,"NA",IF(curve=1,ss_man_eq_feed,VLOOKUP(feed_valve_size,ss_man_cost_cl,3))) -> NA | J175: -- | K175: =IF(C175=0,"NA",VLOOKUP(feed_valve_size,ss_man_cost_cl,IF(ss_cat="large",4,5))) -> NA | M175: Manual Valves - Feed line - Stainless Steel | N175: 3 | O175: 3 | P175: 1 | Q175: 3 | R175: 3 | S175: 1 | T175: 3 | U175: 3 | V175: 1 | W175: 0 | X175: 0
A176: 4.2.4 | B176: Feed line - Cast Iron | C176: =tot_feed_man -> 0 | D176: units | E176: =IF(C176=0,"NA",feed_valve_size) -> NA | G176: =IF(C176=0,"NA",IF(curve=1,feed_valve_size,VLOOKUP(feed_valve_size,ci_bfv_cost_cl,2))) -> NA | I176: =IF(C176=0,"NA",IF(curve=1,ci_bfv_eq_feed,VLOOKUP(feed_valve_size,ci_bfv_cost_cl,3))) -> NA | J176: -- | K176: =IF(C176=0,"NA",VLOOKUP(feed_valve_size,ci_bfv_cost_cl,IF(ss_cat="large",4,5))) -> NA | M176: Manual Valves - Feed line - Cast Iron | N176: 2 | O176: 1 | P176: 2 | Q176: 2 | R176: 1 | S176: 2 | T176: 2 | U176: 1 | V176: 2 | W176: 0 | X176: 0
A177: 4.2.5 | B177: Concentrate control - Stainless Steel | C177: =tot_conc_man -> 0 | D177: units | E177: =IF(C177=0,"NA",conc_valve_size) -> NA | G177: =IF(C177=0,"NA",IF(curve=1,conc_valve_size,VLOOKUP(conc_valve_size,ss_mov_cost_cl,2))) -> NA | I177: =IF(C177=0,"NA",IF(curve=1,ss_man_eq_conc,VLOOKUP(conc_valve_size,ss_man_cost_cl,3))) -> NA | J177: -- | K177: =IF(C177=0,"NA",VLOOKUP(conc_valve_size,ss_man_cost_cl,IF(ss_cat="large",4,5))) -> NA | M177: Manual Valves - Concentrate control - Stainless Steel | N177: 2 | O177: 2 | P177: 1 | Q177: 2 | R177: 2 | S177: 1 | T177: 2 | U177: 2 | V177: 1 | W177: 0 | X177: 0
A178: 4.2.5 | B178: Concentrate control - Cast Iron | C178: =tot_conc_man -> 0 | D178: units | E178: =IF(C178=0,"NA",conc_valve_size) -> NA | G178: =IF(C178=0,"NA",IF(curve=1,conc_valve_size,VLOOKUP(conc_valve_size,ci_mov_cost_cl,2))) -> NA | I178: =IF(C178=0,"NA",IF(curve=1,ci_bfv_eq_conc,VLOOKUP(conc_valve_size,ci_bfv_cost_cl,3))) -> NA | J178: -- | K178: =IF(C178=0,"NA",VLOOKUP(conc_valve_size,ci_bfv_cost_cl,IF(ss_cat="large",4,5))) -> NA | M178: Manual Valves - Concentrate control - Cast Iron | N178: 1 | O178: 1 | P178: 2 | Q178: 1 | R178: 1 | S178: 2 | T178: 1 | U178: 1 | V178: 2 | W178: 0 | X178: 0
A179: 4.2.6 | B179: Stage 2 boost - Polypropylene/PVC | C179: =tot_boost_2_man -> 0 | D179: units | E179: =IF(C179=0,"NA",boost_valve_2_diam) -> NA | G179: =IF(C179=0,"NA",IF(curve=1,boost_valve_2_diam,VLOOKUP(boost_valve_2_diam,pp_man_cost_cl,2))) -> NA | I179: =IF(C179=0,"NA",IF(curve=1,pp_man_eq_b2,VLOOKUP(boost_valve_2_diam,pp_man_cost_cl,3))) -> NA | J179: -- | K179: =IF(C179=0,"NA",VLOOKUP(boost_valve_2_diam,pp_man_cost_cl,IF(ss_cat="large",4,5))) -> NA | M179: Manual Valves - Stage 2 boost - Polypropylene/PVC | N179: 1 | O179: 1 | P179: 2 | Q179: 1 | R179: 1 | S179: 2 | T179: 1 | U179: 1 | V179: 2 | W179: 0 | X179: 0
A180: 4.2.6 | B180: Stage 2 boost - Stainless Steel | C180: =tot_boost_2_man -> 0 | D180: units | E180: =IF(C180=0,"NA",boost_valve_2_diam) -> NA | G180: =IF(C180=0,"NA",IF(curve=1,boost_valve_2_diam,VLOOKUP(boost_valve_2_diam,ss_man_cost_cl,2))) -> NA | I180: =IF(C180=0,"NA",IF(curve=1,ss_man_eq_b2,VLOOKUP(boost_valve_2_diam,ss_man_cost_cl,3))) -> NA | J180: -- | K180: =IF(C180=0,"NA",VLOOKUP(boost_valve_2_diam,ss_man_cost_cl,IF(ss_cat="large",4,5))) -> NA | M180: Manual Valves - Stage 2 boost - Stainless Steel | N180: 2 | O180: 2 | P180: 1 | Q180: 2 | R180: 2 | S180: 1 | T180: 2 | U180: 2 | V180: 1 | W180: 0 | X180: 0
A181: 4.2.7 | B181: Stage 3 boost - Polypropylene/PVC | C181: =tot_boost_3_man -> 0 | D181: units | E181: =IF(C181=0,"NA",boost_valve_3_diam) -> NA | G181: =IF(C181=0,"NA",IF(curve=1,boost_valve_3_diam,VLOOKUP(boost_valve_3_diam,pp_man_cost_cl,2))) -> NA | I181: =IF(C181=0,"NA",IF(curve=1,pp_man_eq_b3,VLOOKUP(boost_valve_3_diam,pp_man_cost_cl,3))) -> NA | J181: -- | K181: =IF(C181=0,"NA",VLOOKUP(boost_valve_3_diam,pp_man_cost_cl,IF(ss_cat="large",4,5))) -> NA | M181: Manual Valves - Stage 3 boost - Polypropylene/PVC | N181: 1 | O181: 1 | P181: 2 | Q181: 1 | R181: 1 | S181: 2 | T181: 1 | U181: 1 | V181: 2 | W181: 0 | X181: 0
A182: 4.2.7 | B182: Stage 3 boost - Stainless Steel | C182: =tot_boost_3_man -> 0 | D182: units | E182: =IF(C182=0,"NA",boost_valve_3_diam) -> NA | G182: =IF(C182=0,"NA",IF(curve=1,boost_valve_3_diam,VLOOKUP(boost_valve_3_diam,ss_man_cost_cl,2))) -> NA | I182: =IF(C182=0,"NA",IF(curve=1,ss_man_eq_b3,VLOOKUP(boost_valve_3_diam,ss_man_cost_cl,3))) -> NA | J182: -- | K182: =IF(C182=0,"NA",VLOOKUP(boost_valve_3_diam,ss_man_cost_cl,IF(ss_cat="large",4,5))) -> NA | M182: Manual Valves - Stage 3 boost - Stainless Steel | N182: 2 | O182: 2 | P182: 1 | Q182: 2 | R182: 2 | S182: 1 | T182: 2 | U182: 2 | V182: 1 | W182: 0 | X182: 0
A183: 4.2.8 | B183: Stage 1 throttle - Polypropylene/PVC | C183: =tot_perm_1_man -> 0 | D183: units | E183: =IF(C183=0,"NA",perm_valve_1_diam) -> NA | G183: =IF(C183=0,"NA",IF(curve=1,perm_valve_1_diam,VLOOKUP(perm_valve_1_diam,pp_man_cost_cl,2))) -> NA | I183: =IF(C183=0,"NA",IF(curve=1,pp_man_eq_pt1,VLOOKUP(perm_valve_1_diam,pp_man_cost_cl,3))) -> NA | J183: -- | K183: =IF(C183=0,"NA",VLOOKUP(perm_valve_1_diam,pp_man_cost_cl,IF(ss_cat="large",4,5))) -> NA | M183: Manual Valves - Stage 1 throttle - Polypropylene/PVC | N183: 1 | O183: 1 | P183: 2 | Q183: 1 | R183: 1 | S183: 2 | T183: 1 | U183: 1 | V183: 2 | W183: 0 | X183: 0
A184: 4.2.8 | B184: Stage 1 throttle - Stainless Steel | C184: =tot_perm_1_man -> 0 | D184: units | E184: =IF(C184=0,"NA",perm_valve_1_diam) -> NA | G184: =IF(C184=0,"NA",IF(curve=1,perm_valve_1_diam,VLOOKUP(perm_valve_1_diam,ss_man_cost_cl,2))) -> NA | I184: =IF(C184=0,"NA",IF(curve=1,ss_man_eq_pt1,VLOOKUP(perm_valve_1_diam,ss_man_cost_cl,3))) -> NA | J184: -- | K184: =IF(C184=0,"NA",VLOOKUP(perm_valve_1_diam,ss_man_cost_cl,IF(ss_cat="large",4,5))) -> NA | M184: Manual Valves - Stage 1 throttle - Stainless Steel | N184: 2 | O184: 2 | P184: 1 | Q184: 2 | R184: 2 | S184: 1 | T184: 2 | U184: 2 | V184: 1 | W184: 0 | X184: 0
A185: 4.2.9 | B185: Stage 2 throttle - Polypropylene/PVC | C185: =tot_perm_2_man -> 0 | D185: units | E185: =IF(C185=0,"NA",perm_valve_2_diam) -> NA | G185: =IF(C185=0,"NA",IF(curve=1,perm_valve_2_diam,VLOOKUP(perm_valve_2_diam,pp_man_cost_cl,2))) -> NA | I185: =IF(C185=0,"NA",IF(curve=1,pp_man_eq_pt2,VLOOKUP(perm_valve_2_diam,pp_man_cost_cl,3))) -> NA | J185: -- | K185: =IF(C185=0,"NA",VLOOKUP(perm_valve_2_diam,pp_man_cost_cl,IF(ss_cat="large",4,5))) -> NA | M185: Manual Valves - Stage 2 throttle - Polypropylene/PVC | N185: 1 | O185: 1 | P185: 2 | Q185: 1 | R185: 1 | S185: 2 | T185: 1 | U185: 1 | V185: 2 | W185: 0 | X185: 0
A186: 4.2.9 | B186: Stage 2 throttle - Stainless Steel | C186: =tot_perm_2_man -> 0 | D186: units | E186: =IF(C186=0,"NA",perm_valve_2_diam) -> NA | G186: =IF(C186=0,"NA",IF(curve=1,perm_valve_2_diam,VLOOKUP(perm_valve_2_diam,ss_man_cost_cl,2))) -> NA | I186: =IF(C186=0,"NA",IF(curve=1,ss_man_eq_pt2,VLOOKUP(perm_valve_2_diam,ss_man_cost_cl,3))) -> NA | J186: -- | K186: =IF(C186=0,"NA",VLOOKUP(perm_valve_2_diam,ss_man_cost_cl,IF(ss_cat="large",4,5))) -> NA | M186: Manual Valves - Stage 2 throttle - Stainless Steel | N186: 2 | O186: 2 | P186: 1 | Q186: 2 | R186: 2 | S186: 1 | T186: 2 | U186: 2 | V186: 1 | W186: 0 | X186: 0
A187: 4.2.10 | B187: Stage 3 throttle - Polypropylene/PVC | C187: =tot_perm_3_man -> 0 | D187: units | E187: =IF(C187=0,"NA",perm_valve_3_diam) -> NA | G187: =IF(C187=0,"NA",IF(curve=1,perm_valve_3_diam,VLOOKUP(perm_valve_3_diam,pp_man_cost_cl,2))) -> NA | I187: =IF(C187=0,"NA",IF(curve=1,pp_man_eq_pt3,VLOOKUP(perm_valve_3_diam,pp_man_cost_cl,3))) -> NA | J187: -- | K187: =IF(C187=0,"NA",VLOOKUP(perm_valve_3_diam,pp_man_cost_cl,IF(ss_cat="large",4,5))) -> NA | M187: Manual Valves - Stage 3 throttle - Polypropylene/PVC | N187: 1 | O187: 1 | P187: 2 | Q187: 1 | R187: 1 | S187: 2 | T187: 1 | U187: 1 | V187: 2 | W187: 0 | X187: 0
A188: 4.2.10 | B188: Stage 3 throttle - Stainless Steel | C188: =tot_perm_3_man -> 0 | D188: units | E188: =IF(C188=0,"NA",perm_valve_3_diam) -> NA | G188: =IF(C188=0,"NA",IF(curve=1,perm_valve_3_diam,VLOOKUP(perm_valve_3_diam,ss_man_cost_cl,2))) -> NA | I188: =IF(C188=0,"NA",IF(curve=1,ss_man_eq_pt3,VLOOKUP(perm_valve_3_diam,ss_man_cost_cl,3))) -> NA | J188: -- | K188: =IF(C188=0,"NA",VLOOKUP(perm_valve_3_diam,ss_man_cost_cl,IF(ss_cat="large",4,5))) -> NA | M188: Manual Valves - Stage 3 throttle - Stainless Steel | N188: 2 | O188: 2 | P188: 1 | Q188: 2 | R188: 2 | S188: 1 | T188: 2 | U188: 2 | V188: 1 | W188: 0 | X188: 0
A189: 4.2.11 | B189: Cleaning - Polypropylene/PVC | C189: =tot_clean_man -> 0 | D189: units | E189: =IF(C189=0,"NA",clean_valve_size) -> NA | G189: =IF(C189=0,"NA",IF(curve=1,clean_valve_size,VLOOKUP(clean_valve_size,pp_man_cost_cl,2))) -> NA | I189: =IF(C189=0,"NA",IF(curve=1,pp_man_eq_clean,VLOOKUP(clean_valve_size,pp_man_cost_cl,3))) -> NA | J189: -- | K189: =IF(C189=0,"NA",VLOOKUP(clean_valve_size,pp_man_cost_cl,IF(ss_cat="large",4,5))) -> NA | M189: Manual Valves - Cleaning - Polypropylene/PVC | N189: 1 | O189: 2 | P189: 2 | Q189: 1 | R189: 2 | S189: 2 | T189: 1 | U189: 2 | V189: 2 | W189: 0 | X189: 0
A190: 4.2.11 | B190: Cleaning - Stainless Steel | C190: =tot_clean_man -> 0 | D190: units | E190: =IF(C190=0,"NA",clean_valve_size) -> NA | G190: =IF(C190=0,"NA",IF(curve=1,clean_valve_size,VLOOKUP(clean_valve_size,ss_man_cost_cl,2))) -> NA | I190: =IF(C190=0,"NA",IF(curve=1,ss_man_eq_clean,VLOOKUP(clean_valve_size,ss_man_cost_cl,3))) -> NA | J190: -- | K190: =IF(C190=0,"NA",VLOOKUP(clean_valve_size,ss_man_cost_cl,IF(ss_cat="large",4,5))) -> NA | M190: Manual Valves - Cleaning - Stainless Steel | N190: 2 | O190: 1 | P190: 1 | Q190: 2 | R190: 1 | S190: 1 | T190: 2 | U190: 1 | V190: 1 | W190: 0 | X190: 0
A191: 4.2.12 | B191: Bypass - Polypropylene/PVC | C191: =tot_bp_man -> 0 | D191: units | E191: =IF(C191=0,"NA",bypass_valve_size) -> NA | G191: =IF(C191=0,"NA",IF(curve=1,bypass_valve_size,VLOOKUP(bypass_valve_size,pp_man_cost_cl,2))) -> NA | I191: =IF(C191=0,"NA",IF(curve=1,pp_man_eq_bp,VLOOKUP(bypass_valve_size,pp_man_cost_cl,3))) -> NA | J191: -- | K191: =IF(C191=0,"NA",VLOOKUP(bypass_valve_size,pp_man_cost_cl,IF(ss_cat="large",4,5))) -> NA | M191: Manual Valves - Bypass - Polypropylene/PVC | N191: 1 | O191: 2 | P191: 3 | Q191: 1 | R191: 2 | S191: 3 | T191: 1 | U191: 2 | V191: 3 | W191: 0 | X191: 0
A192: 4.2.12 | B192: Bypass - Stainless Steel | C192: =tot_bp_man -> 0 | D192: units | E192: =IF(C192=0,"NA",bypass_valve_size) -> NA | G192: =IF(C192=0,"NA",IF(curve=1,bypass_valve_size,VLOOKUP(bypass_valve_size,ss_man_cost_cl,2))) -> NA | I192: =IF(C192=0,"NA",IF(curve=1,ss_man_eq_bp,VLOOKUP(bypass_valve_size,ss_man_cost_cl,3))) -> NA | J192: -- | K192: =IF(C192=0,"NA",VLOOKUP(bypass_valve_size,ss_man_cost_cl,IF(ss_cat="large",4,5))) -> NA | M192: Manual Valves - Bypass - Stainless Steel | N192: 3 | O192: 3 | P192: 1 | Q192: 3 | R192: 3 | S192: 1 | T192: 3 | U192: 3 | V192: 1 | W192: 0 | X192: 0
A193: 4.2.12 | B193: Bypass - Cast Iron | C193: =tot_bp_man -> 0 | D193: units | E193: =IF(C193=0,"NA",bypass_valve_size) -> NA | G193: =IF(C193=0,"NA",IF(curve=1,bypass_valve_size,VLOOKUP(bypass_valve_size,ci_bfv_cost_cl,2))) -> NA | I193: =IF(C193=0,"NA",IF(curve=1,ci_bfv_eq_bp,VLOOKUP(bypass_valve_size,ci_bfv_cost_cl,3))) -> NA | J193: -- | K193: =IF(C193=0,"NA",VLOOKUP(bypass_valve_size,ci_bfv_cost_cl,IF(ss_cat="large",4,5))) -> NA | M193: Manual Valves - Bypass - Cast Iron | N193: 2 | O193: 1 | P193: 2 | Q193: 2 | R193: 1 | S193: 2 | T193: 2 | U193: 1 | V193: 2 | W193: 0 | X193: 0
A194: 4.2.13 | B194: Residuals - Polypropylene/PVC | C194: =total_res_man -> 0 | D194: units | E194: =IF(C194=0,"NA",res_valve_size) -> NA | F194: =IF(C194=0,"","in. diam") ->  | G194: =IF(C194=0,"NA",IF(curve=1,res_valve_size,VLOOKUP(res_valve_size,pp_man_cost_cl,2))) -> NA | H194: =IF(C194=0,"","in. diam") ->  | I194: =IF(C194=0,"NA",IF(curve=1,pp_man_eq_res,VLOOKUP(res_valve_size,pp_man_cost_cl,3))) -> NA | J194: =IF(OR(I194="contact vendor",I194="NA"),"--",C194*I194) -> -- | K194: =IF(C194=0,"NA",VLOOKUP(res_valve_size,pp_man_cost_cl,IF(ss_cat="large",4,5))) -> NA | M194: Manual Valves - Residuals - Polypropylene/PVC | N194: 1 | O194: 2 | P194: 3 | Q194: 1 | R194: 2 | S194: 3 | T194: 1 | U194: 2 | V194: 3 | W194: 0 | X194: 0
A195: 4.2.13 | B195: Residuals - Stainless Steel | C195: =total_res_man -> 0 | D195: units | E195: =IF(C195=0,"NA",res_valve_size) -> NA | F195: =IF(C195=0,"","in. diam") ->  | G195: =IF(C195=0,"NA",IF(curve=1,res_valve_size,VLOOKUP(res_valve_size,ss_man_cost_cl,2))) -> NA | H195: =IF(C195=0,"","in. diam") ->  | I195: =IF(C195=0,"NA",IF(curve=1,ss_man_eq_res,VLOOKUP(res_valve_size,ss_man_cost_cl,3))) -> NA | J195: =IF(OR(I195="contact vendor",I195="NA"),"--",C195*I195) -> -- | K195: =IF(C195=0,"NA",VLOOKUP(res_valve_size,ss_man_cost_cl,IF(ss_cat="large",4,5))) -> NA | M195: Manual Valves - Residuals - Stainless Steel | N195: 3 | O195: 3 | P195: 1 | Q195: 3 | R195: 3 | S195: 1 | T195: 3 | U195: 3 | V195: 1 | W195: 0 | X195: 0
A196: 4.2.13 | B196: Residuals - Cast Iron | C196: =total_res_man -> 0 | D196: units | E196: =IF(C196=0,"NA",res_valve_size) -> NA | G196: =IF(C196=0,"NA",IF(curve=1,res_valve_size,VLOOKUP(res_valve_size,ci_bfv_cost_cl,2))) -> NA | I196: =IF(C196=0,"NA",IF(curve=1,ci_bfv_eq_res,VLOOKUP(res_valve_size,ci_bfv_cost_cl,3))) -> NA | J196: =IF(OR(I196="contact vendor",I196="NA"),"--",C196*I196) -> -- | K196: =IF(C196=0,"NA",VLOOKUP(res_valve_size,ci_bfv_cost_cl,IF(ss_cat="large",4,5))) -> NA | M196: Manual Valves - Residuals - Cast Iron | N196: 2 | O196: 1 | P196: 2 | Q196: 2 | R196: 1 | S196: 2 | T196: 2 | U196: 1 | V196: 2 | W196: 0 | X196: 0
A197: 4.3 | B197: Check Valves | W197: 0 | X197: 0
A198: 4.3.1 | B198: Residuals - Polypropylene/PVC | C198: =tot_res_chv -> 1 | D198: units | E198: =IF(C198=0,"NA",res_valve_size) -> 4 | F198: in. diam | G198: =IF(C198=0,"NA",IF(curve=1,res_valve_size,VLOOKUP(res_valve_size,pp_chv_cost_cl,2))) -> 4 | H198: in. diam | I198: =IF(C198=0,0,IF(curve=1,pp_chv_eq_res,VLOOKUP(res_valve_size,pp_chv_cost_cl,3))) -> 640.9365604 | J198: =IF(OR(I198="contact vendor",I198="NA"),"--",C198*I198) -> 640.9365604 | K198: =IF(C198=0,"NA",VLOOKUP(res_valve_size,pp_chv_cost_cl,IF(ss_cat="large",4,5))) -> 20 | L198: 0 | M198: =$B$197&" - "&B198 -> Check Valves - Residuals - Polypropylene/PVC | N198: 1 | O198: 2 | P198: 3 | Q198: 1 | R198: 2 | S198: 3 | T198: 1 | U198: 2 | V198: 3 | W198: 0 | X198: 0
A199: 4.3.1 | B199: Residuals - Stainless Steel | C199: =tot_res_chv -> 1 | D199: units | E199: =IF(C199=0,"NA",res_valve_size) -> 4 | F199: in. diam | G199: =IF(C199=0,"NA",IF(curve=1,res_valve_size,VLOOKUP(res_valve_size,ss_chv_cost_cl,2))) -> 4 | H199: in. diam | I199: =IF(C199=0,0,IF(curve=1,ss_chv_eq_res,VLOOKUP(res_valve_size,ss_chv_cost_cl,3))) -> 1561.067334 | J199: 1561.067334 | K199: =IF(C199=0,"NA",VLOOKUP(res_valve_size,ss_chv_cost_cl,IF(ss_cat="large",4,5))) -> 20 | L199: 1 | M199: =$B$197&" - "&B199 -> Check Valves - Residuals - Stainless Steel | N199: 3 | O199: 3 | P199: 1 | Q199: 3 | R199: 3 | S199: 1 | T199: 3 | U199: 3 | V199: 1 | W199: =IF(ISERROR(K199*L199),0,IF(K199<1,0,L199)) -> 1 | X199: =IF(W199,J199/K199,0) -> 78.05336671
A200: 4.3.1 | B200: Residuals - Cast Iron | C200: =tot_res_chv -> 1 | D200: units | E200: =IF(C200=0,"NA",res_valve_size) -> 4 | F200: in. diam | G200: =IF(C200=0,"NA",IF(curve=1,res_valve_size,VLOOKUP(res_valve_size,ci_chv_cost_cl,2))) -> 4 | H200: in. diam | I200: =IF(C200=0,0,IF(curve=1,ci_chv_eq_res,VLOOKUP(res_valve_size,ci_chv_cost_cl,3))) -> 1432.751024 | J200: 1432.751024 | K200: =IF(C200=0,"NA",VLOOKUP(res_valve_size,ci_chv_cost_cl,IF(ss_cat="large",4,5))) -> 20 | L200: 0 | M200: =$B$197&" - "&B200 -> Check Valves - Residuals - Cast Iron | N200: 2 | O200: 1 | P200: 2 | Q200: 2 | R200: 1 | S200: 2 | T200: 2 | U200: 1 | V200: 2 | W200: 0 | X200: 0
A201: 4.3.2 | B201: Influent - Polypropylene/PVC | C201: =tot_in_chv -> 1 | D201: units | E201: =IF(C201=0,"NA",in_valve_size) -> 6 | F201: in. diam | G201: =IF(curve=1,in_valve_size,VLOOKUP(in_valve_size,pp_chv_cost_cl,2)) -> 6 | H201: in. diam | I201: =IF(curve=1,pp_chv_eq_in,VLOOKUP(in_valve_size,pp_chv_cost_cl,3)) -> 1226.228441 | J201: 1226.228441 | K201: =IF(C201=0,"NA",VLOOKUP(in_valve_size,pp_chv_cost_cl,IF(ss_cat="large",4,5))) -> 20 | L201: 0 | M201: =$B$197&" - "&B201 -> Check Valves - Influent - Polypropylene/PVC | N201: 1 | O201: 2 | P201: 3 | Q201: 1 | R201: 2 | S201: 3 | T201: 1 | U201: 2 | V201: 3 | W201: 0 | X201: 0
A202: 4.3.2 | B202: Influent - Stainless Steel | C202: =tot_in_chv -> 1 | D202: units | E202: =IF(C202=0,"NA",in_valve_size) -> 6 | F202: in. diam | G202: =IF(curve=1,in_valve_size,VLOOKUP(in_valve_size,ss_chv_cost_cl,2)) -> 6 | H202: in. diam | I202: =IF(curve=1,ss_chv_eq_in,VLOOKUP(in_valve_size,ss_chv_cost_cl,3)) -> 2809.436746 | J202: 2809.436746 | K202: =IF(C202=0,"NA",VLOOKUP(in_valve_size,ss_chv_cost_cl,IF(ss_cat="large",4,5))) -> 20 | L202: 1 | M202: Check Valves - Influent - Stainless Steel | N202: 3 | O202: 3 | P202: 1 | Q202: 3 | R202: 3 | S202: 1 | T202: 3 | U202: 3 | V202: 1 | W202: 1 | X202: 140.4718373
... 279 more rows

Sheet Critical Design Assumptions
A1: Default Critical Design Assumptions
A2: Users may change any of the cells in the Value column; cells in gold are most important and may vary based on contaminant treated and site-specific conditions
A4: Assumption | B4: Range Name | C4: Value | D4: Units | E4: Guidance
A5: Cost estimating method | B5: curve | C5: 1 | D5: <-- enter 1 to use cost equations, leave blank to use lookup tables for component costs | E5: Keeping this assumption with a value of 1 is strongly recommended; the cost equations method is more appropriate for national cost estimating and will be more accurate for nearly all user-specified designs
A6: Minimum average flow as percentage of design | B6: min_avg_flow | C6: 0.1 | E6: The minimum ratio of average flow to design flow. If the ratio falls below this value, it will trigger a warning on the INPUT sheet. If this value is zero, no minimum is enforced.
A8: Influent and booster pumping
A9: Safety factor for pumps | B9: pump_safety_factor | C9: 0.25
A10: Losses between pump and pressure vessels | B10: influent_headloss | C10: 10 | D10: psi | E10: Accounts for losses in piping and valves between the feed pump and the first-stage pressure vessel
A11: Number of redundant influent and booster pumps | B11: NRD_inf_pumps | C11: 0 | D11: units | E11: Multiple pump approach to sizing eliminates need for a redundant pump.
A12: Total efficiency of pumps | B12: pump_effcy | C12: 0.75 | E12: Combined pump and motor efficiency, so the electrical power requirement is equal to flow * pressure / efficiency. 75-80% per Howard Steiman, RW Beck.
A13: Losses between booster pump and pressure vessels | B13: boost_headloss | C13: 5 | D13: psi | E13: Accounts for losses in piping and valves between the booster pump and the second- or third-stage pressure vessel
A14: Minimum chemical feed pump size | B14: min_chem_flow | C14: 0.13 | D14: gph | E14: Metering pumps will be designed to meet this minimum
A16: Bypass Flow
A17: Percent of Total Flow that is Bypassed | B17: bp_pct | C17: 0 | E17: Typically, bypass flow ranges between 0% and 50% of inflow. Enter zero to remove bypass piping and components. 0% is default consistent with the type of cost curves that EPA will need for its national cost simulation model.
A18: Bypass pump head | B18: bp_pump_head | C18: 25 | D18: psi | E18: Von Huben, Harry. Operator's Companion, 4th Edition. USABluebook, 2000. Pp. 17 25 psi creates a head of 60 feet
A19: Bypass pump efficiency | B19: bp_pump_eff | C19: 0.75
A20: Number of redundant bypass pumps | B20: NRD_bp_pumps | C20: 0 | D20: units | E20: Multiple pump approach eliminates need for redundant pumps
A22: Pipe Length Multipliers
A23: Influent and treated water pipe length multiplier | B23: in_out_pipe_mult | C23: 2 | D23: times facility length
A24: Bypass pipe length multiplier | B24: bp_pipe_mult | C24: 2.5 | D24: times facility length
A25: Chemical pipe length multiplier | B25: chem_pipe_mult | C25: 1 | D25: times facility length
A27: Valves and Instrumentation
A28: See the Valve Table at the bottom of this page for additional assumptions relating to valves
A29: Number of manual valves on influent and treated water line | B29: tot_man_valves | C29: 2 | D29: valves
A30: Number of check valves on influent line | B30: tot_in_chv | C30: 1 | D30: valves
A31: Number of check valves on bypass line | B31: tot_bp_chv | C31: 1 | D31: valves
A32: Number of check valves per feed pump | B32: feedpump_chv | C32: 1 | D32: valves
A33: Number of check valves per cleaning cartridge filter | B33: cleaning_chv | C33: 1 | D33: valves
A35: Flow meters for influent and treated water line | B35: tot_fm_in | C35: 2 | D35: units | E35: Flow meter assemblies include pressure gauges
A36: Flow meters per membrane rack, feed side | B36: fm_rack_feed | C36: 1 | D36: units/rack
A37: Flow meters per membrane rack, permeate side | B37: fm_rack_perm | C37: 1 | D37: units/rack
A38: Flow meters per membrane rack, concentrate line | B38: fm_rack_conc | C38: 1 | D38: units/rack
A39: Flow meters per cleaning pump | B39: fm_clean | C39: 1 | D39: units/pump
A40: Level switch/alarms per cleaning makeup tank | B40: level_switch_clean_tank | C40: 1 | D40: units/tank
A41: High/Low alarms per chemical storage tank | B41: chem_alarm_cst | C41: 1 | D41: units/tank
A42: High/Low alarms per pretreatment chemical tank | B42: chem_alarm_pre | C42: 1 | D42: units/tank
A43: pH meters per acid pretreatment pump | B43: pH_controls_acid | C43: 1 | D43: units/pump
A44: Temperature meters for influent | B44: temp_meter_in | C44: 1 | D44: units | E44: One temperature meter for the influent pipe
A45: Temperature meters per cleaning makeup tank | B45: temp_meter_clean | C45: 1 | D45: units/tank
A46: Conductivity meters on influent and treated water line | B46: inout_cond_meter | C46: 2 | D46: units | E46: One for influent line, one for treated water line
A47: Conductivity meters per rack | B47: cond_rack | C47: 3 | D47: units/rack | E47: One each on feed, concentrate, permate line per rack
A48: Head loss sensors per rack | B48: head_rack | C48: 1 | D48: units/rack
A49: Head loss sensors per cartridge filter | B49: headloss_cart | C49: 1 | D49: units/filter
A50: Sampling ports per cartridge filter | B50: ports_cart | C50: 1 | D50: port/filter | E50: For SDI testing. Howard Steiman, RW Beck.
A51: Sampling ports per membrane rack | B51: ports_rack | C51: 1 | D51: port/rack
A52: Sampling ports per pressure vessel | B52: ports_PV | C52: 1 | D52: port/PV | E52: 1 port on each permeate line. Howard Steiman, RW Beck.
A53: Sampling ports for blended treated water | B53: ports_bp | C53: 1 | D53: port | E53: Included only if bypass is specified
A54: Additional sampling ports | B54: add_ports | C54: 2 | D54: ports | E54: One each for influent and treated water lines
A55: Electrical enclosure | B55: electric_encl | C55: 0 | D55: units | E55: Required only for technologies with significant electric-powered equipment outside a building
A57: Chemical properties
A58: Concentrated strength of HCl (% by weight) | B58: acid_strength_HCl | C58: 0.36
A59: Concentrated strength of H2SO4 (% by weight) | B59: acid_strength_H2SO4 | C59: 0.78
A60: Concentrated strength of caustic (% by weight) | B60: caustic_strength | C60: 0.5 | E60: Prices are available for 25% and 50% solutions
A62: Pretreatment
A63: Minimum number of cartridge filters above 1 MGD | B63: min_cart | C63: 2 | D63: units | E63: For small systems (<1 MGD), this limit is ignored.
A64: Number of redundant cartridge filters | B64: init_NRD_cart | C64: 1 | D64: units
A65: Additional redundant cartridge filter per x MGD inflow | B65: addl_redund_cart_per_flow | C65: 50 | D65: MGD
A66: Antiscalant dose for pretreatment | B66: anti_dose_conc | C66: 15 | D66: mg/L in concentrate | E66: Rule of thumb: 15 mg/L antiscalant in the concentrate (Ian Watson).
A67: Antiscalant density | B67: anti_density | C67: 10 | D67: lb/gal | E67: Scale inhibitor is about 10 lb/gal, regardless of the manufacturer (Ian Watson). Dependent on the manufacturer, but about 9.8 lb/gal (Shannon Koekkler, Osmonics).
A68: Number of days of chemical storage needed | B68: cstore_days | C68: 30 | D68: day
A69: Include a separate day tank if daily volume is x or greater | B69: day_tank_needed | C69: 5 | D69: gal
A70: Include mixers for chemical tanks | B70: include_cmix | C70: 0 | D70: <--- enter 1 for yes, 0 for no
A71: Chemical tank mixer horsepower | B71: cmix_hp_per | C71: 0.25 | D71: hp per 1000 gal
A72: Minimum chemical tank mixer horsepower | B72: min_cmix_hp | C72: =1/3 -> 0.3333333333 | D72: hp
A73: Number of redundant acid metering pumps | B73: NRD_acid_mpumps | C73: 1 | D73: units
A74: Number of redundant antiscalant metering pumps | B74: NRD_anti_mpumps | C74: 1 | D74: units
A75: Maximum LSI with antiscalant | B75: max_lsi_antiscalant | C75: 2.3 | E75: Rule of thumb, 2 to 2.3. "RO and NF Design - Computer Modeling" workshop, AWWA ACE 2006
A76: Maximum CaSO4 saturation with antiscalant | B76: max_caso4_antiscalant | C76: 2 | E76: Rule of thumb. "RO and NF Design - Computer Modeling" workshop, AWWA ACE 2006
A77: Maximum BaSO4 saturation with antiscalant | B77: max_baso4_antiscalant | C77: 40 | E77: Rule of thumb. "RO and NF Design - Computer Modeling" workshop, AWWA ACE 2006
A78: Maximum SrSO4 saturation with antiscalant | B78: max_srso4_antiscalant | C78: 8 | E78: Rule of thumb. "RO and NF Design - Computer Modeling" workshop, AWWA ACE 2006
A79: Maximum CaF2 saturation with antiscalant | B79: max_caf2_antiscalant | C79: 100 | E79: Rule of thumb. "RO and NF Design - Computer Modeling" workshop, AWWA ACE 2006
A80: Maximum SiO2 concentration with antiscalant | B80: max_sio2_conc_antiscalant | C80: 150 | D80: mg/L | E80: Rule of thumb, 120 to 180 mg/L. "RO and NF Design - Computer Modeling" workshop, AWWA ACE 2006
A81: Maximum LSI without antiscalant | B81: max_lsi_no_antiscalant | C81: 0
A82: Maximum CaSO4 saturation without antiscalant | B82: max_caso4_no_antiscalant | C82: 1
A83: Maximum BaSO4 saturation without antiscalant | B83: max_baso4_no_antiscalant | C83: 1
A84: Maximum SrSO4 saturation without antiscalant | B84: max_srso4_no_antiscalant | C84: 1
A85: Maximum CaF2 saturation without antiscalant | B85: max_caf2_no_antiscalant | C85: 1
A86: Maximum SiO2 saturation without antiscalant | B86: max_sio2_sat_no_antiscalant | C86: 1
A88: Secondary Containment Requirements
A89: Include secondary containment | B89: include_sec_cont | C89: 1 | D89: <--- enter 1 for yes, 0 for no
A90: Volume required as a percentage of the largest tank | B90: sec_cont_pct_of_largest | C90: 1.1
A91: Volume required as a percentage of total storage | B91: sec_cont_pct_of_total | C91: 0.1
A92: Additional freeboard | B92: sec_cont_freeboard | C92: 6 | D92: inches | E92: Additional freeboard is typically required to contain precipitation when storage is outside; we also include freeboard indoors to ensure a minimum reasonable curb height
A93: Maximum curb thickness | B93: sec_cont_max_thick | C93: 1 | D93: foot | E93: Calculations assume thickness equal to height, up to this maximum
A94: Chemical resistant coating coverage | B94: sec_cont_coating_cvg | C94: 125 | D94: square feet/gallon
A96: Membrane System
A97: Minimum recovery for RO | B97: recov_min_ro | C97: 0.5 | E97: We'll warn the user if the target recovery is outside these bounds. Otherwise these assumptions do not enter the model.
A98: Maximum recovery for RO | B98: recov_max_ro | C98: 0.85
A99: Minimum recovery for NF | B99: recov_min_nf | C99: 0.8
A100: Maximum recovery for NF | B100: recov_max_nf | C100: 0.9
A101: Membrane fouling factor | B101: fouling_factor | C101: 0.85 | E101: We modify the water permeability (A value) of the membrane element by this factor before designing a system, to allow for a loss of permeability due to aging and fouling. Applied once, not compounded annually.
A103: Min flux for SDI < 1 | B103: flux_min_SDI1_GW | C103: 21 | D103: gfd | E103: For SDI < 1, average flux target is 21-25 gfd (RO permeate) per Dow Liquid Separations, Filmtec RO Membranes Technical Manual, January 2004. <25 gfd, per GE design guidelines.
A104: Max flux for SDI < 1 | B104: flux_max_SDI1_GW | C104: 25 | D104: gfd | E104: For SDI < 1, average flux target is 21-25 gfd (RO permeate) per Dow Liquid Separations, Filmtec RO Membranes Technical Manual, January 2004. <25 gfd, per GE design guidelines.
A105: Min flux for 1 < SDI < 3 | B105: flux_min_SDI3_GW | C105: 16 | D105: gfd | E105: For SDI < 3, average flux target is 13-17 gfd (surface supply) or 16-20 gfd (well water) per Dow Liquid Separations, Filmtec RO Membranes Technical Manual, January 2004. GE design guidelines suggest 16-18 gfd for well water with SDI < 3.
A106: Max flux for 1 < SDI < 3 | B106: flux_max_SDI3_GW | C106: 20 | D106: gfd | E106: For SDI < 3, average flux target is 13-17 gfd (surface supply) or 16-20 gfd (well water) per Dow Liquid Separations, Filmtec RO Membranes Technical Manual, January 2004. GE design guidelines suggest 16-18 gfd for well water with SDI < 3.
A107: Min flux for 3 < SDI < 5 | B107: flux_min_SDI5_GW | C107: 12 | D107: gfd | E107: For SDI < 5, average flux target is 12-16 gfd (surface supply). Dow Liquid Separations, Filmtec RO Membranes Technical Manual, January 2004. GE design guidelines suggest 12 gfd for surface water.
A108: Max flux for 3 < SDI < 5 | B108: flux_max_SDI5_GW | C108: 16 | D108: gfd | E108: For SDI < 5, average flux target is 12-16 gfd (surface supply). Dow Liquid Separations, Filmtec RO Membranes Technical Manual, January 2004. GE design guidelines suggest 12 gfd for surface water.
A109: Min flux for SDI < 1 | B109: flux_min_SDI1_SW | C109: 21 | D109: gfd | E109: For SDI < 1, average flux target is 21-25 gfd (RO permeate) per Dow Liquid Separations, Filmtec RO Membranes Technical Manual, January 2004. <25 gfd, per GE design guidelines.
A110: Max flux for SDI < 1 | B110: flux_max_SDI1_SW | C110: 25 | D110: gfd | E110: For SDI < 1, average flux target is 21-25 gfd (RO permeate) per Dow Liquid Separations, Filmtec RO Membranes Technical Manual, January 2004. <25 gfd, per GE design guidelines.
A111: Min flux for 1 < SDI < 3 | B111: flux_min_SDI3_SW | C111: 12 | D111: gfd | E111: For SDI < 3, average flux target is 13-17 gfd (surface supply) or 16-20 gfd (well water) per Dow Liquid Separations, Filmtec RO Membranes Technical Manual, January 2004. GE design guidelines suggest 16-18 gfd for well water with SDI < 3. Reuse facilities operate at 12 gfd or less
A112: Max flux for 1 < SDI < 3 | B112: flux_max_SDI3_SW | C112: 17 | D112: gfd | E112: For SDI < 3, average flux target is 13-17 gfd (surface supply) or 16-20 gfd (well water) per Dow Liquid Separations, Filmtec RO Membranes Technical Manual, January 2004. GE design guidelines suggest 16-18 gfd for well water with SDI < 3.
A113: Min flux for 3 < SDI < 5 | B113: flux_min_SDI5_SW | C113: 10 | D113: gfd | E113: For SDI < 5, average flux target is 12-16 gfd (surface supply). Dow Liquid Separations, Filmtec RO Membranes Technical Manual, January 2004. GE design guidelines suggest 12 gfd for surface water.
A114: Max flux for 3 < SDI < 5 | B114: flux_max_SDI5_SW | C114: 16 | D114: gfd | E114: For SDI < 5, average flux target is 12-16 gfd (surface supply). Dow Liquid Separations, Filmtec RO Membranes Technical Manual, January 2004. GE design guidelines suggest 12 gfd for surface water.
A116: Max permeate flow per rack, 4" elements | B116: max_flow_rack_4 | C116: 0.5 | D116: MGD
A117: Max permeate flow per rack, 8" elements | B117: max_flow_rack_8 | C117: 3 | D117: MGD | E117: Used to determine number of trains. 2 MGD is typical rack capacity. Howard Steiman, RW Beck.
A118: Max permeate flow per rack, 16-18" elements | B118: max_flow_rack_16 | C118: 2 | D118: MGD | E118: Used to determine number of trains. Capacity of Koch Membrane Systems' MM12 pre-engineered system.
A119: Minimum number of operating trains | B119: min_op_trains | C119: 2 | D119: trains | E119: Require 2 operating trains unless overridden on input sheet, to make redundancy more reasonable.
A120: Number of redundant trains | B120: NRD_trains | C120: 1 | D120: train
A122: Pressure vessel height-to-width ratio on rack | B122: pv_arrangement_ratio | C122: 1.5 | E122: When setting up the rack's height and width, we arrange PVs so that (PVs vertically / PVs horizontally) targets this ratio.
A123: Maximum number of pressure vessel rows per rack | B123: pv_rows_max | C123: 7 | D123: rows | E123: Based on Marked up Frame DWGS.pdf. H2O Innovation recommendation stated up to 10 rows for 8" membrane elements
A125: Number of supports required for "short" pressure vessel, 4" diameter | B125: supports_short_4 | C125: 2 | D125: units | E125: Codeline 40S30, Protec 4-300-SP
A126: Number of supports required for "long" pressure vessel, 4" diameter | B126: supports_long_4 | C126: 3 | D126: units | E126: Codeline 40S30, Protec 4-300-SP
A127: Number of elements for "short" pressure vessel, 4" diameter | B127: short_max_el_4 | C127: 3 | D127: units | E127: Up to this number of elements we use the number of supports for a short PV; otherwise for a long PV. Codeline 40S30, Protec 4-300-SP.
A128: Number of supports required for "short" pressure vessel, 8" diameter | B128: supports_short_8 | C128: 2 | D128: units | E128: Protec 8-150-EP, Codeline 80E30, 80S15, 80S30
A129: Number of supports required for "long" pressure vessel, 8" diameter | B129: supports_long_8 | C129: 3 | D129: units | E129: Protec 8-150-EP, Codeline 80E30, 80S15, 80S30
A130: Number of elements for "short" pressure vessel, 8" diameter | B130: short_max_el_8 | C130: 3 | D130: units | E130: Protec 8-150-SP, 8-300-SP, Codeline 80E30, 80S15, 80S30 (Protec end port vessels permit 2 supports up to 6 elements long)
A131: Number of supports required for "short" pressure vessel, 16-18" diameter | B131: supports_short_16 | C131: 2 | D131: units | E131: Codeline 160E30, 160S30
A132: Number of supports required for "long" pressure vessel, 16-18" diameter | B132: supports_long_16 | C132: 3 | D132: units | E132: Codeline 160E30, 160S30
A133: Number of elements for "short" pressure vessel, 16-18" diameter | B133: short_max_el_16 | C133: 2 | D133: units | E133: Codeline 160E30, 160S30; estimated for 60" long elements
A135: Safety factor for pressure vessel rating | B135: PV_rating_sf | C135: 0.25
A137: Feed and concentrate port diameter, 4" pressure vessel | B137: feed_port_diam_4 | C137: 1 | D137: in | E137: Standard size on Codeline 40S30, Protec 4-300-SP
A138: Feed and concentrate port diameter, 8" pressure vessel | B138: feed_port_diam_8 | C138: 1.5 | D138: in | E138: Standard size on Protec 8-15-SP, 8-300-EP, Codeline 80E30, 80S15, 80S30
A139: Feed and concentrate port diameter, 16-18" pressure vessel | B139: feed_port_diam_16 | C139: 3 | D139: in | E139: Standard size on Codeline 160E30, 160S30
A140: Permeate port diameter, 4" pressure vessel | B140: perm_port_diam_4 | C140: 0.5 | D140: in | E140: Standard size on Codeline 40S30, Protec 4-300-SP
A141: Permeate port diameter, 8" pressure vessel | B141: perm_port_diam_8 | C141: 1 | D141: in | E141: Standard size on Protec 8-15-SP, 8-300-EP, Codeline 80E30, 80S15, 80S30 (Protec side port vessels have 1.25 inch permeate ports)
A142: Permeate port diameter, 16-18" pressure vessel | B142: perm_port_diam_16 | C142: 3 | D142: in | E142: Standard size on Codeline 160E30, 160S30
A143: Victaulic connectors per vessel for feed and concentrate ports | B143: conn_feed_PV | C143: 2 | D143: units | E143: By default, we assume one feed and one concentrate port per vessel. Some systems may use multiple side ports, with more connectors.
A144: Victaulic connectors per vessel for permeate ports | B144: conn_perm_PV | C144: 0 | D144: units | E144: Assume use of NPT connectors on permeate ports
A146: PV columns for one feed distributor | B146: cols_per_feed_hdr | C146: 2 | D146: columns | E146: Used to determine piping flow quantities to the rack
A147: PV columns for one concentrate collector | B147: cols_per_conc_hdr | C147: 2 | D147: columns
A148: PV columns for one permeate collector | B148: cols_per_perm_hdr | C148: 2 | D148: columns
A150: Extra rack length, in addition to length of elements | B150: extra_rack_length | C150: 0 | D150: ft | E150: The length of the support frame is determined by adding this to the total length of elements in a pressure vessel, unless the vessel is unusually short. Based on drawings sent by Richard Chmielewski, 8/2011, the frame is slightly shorter than the PVs, but there are support brackets that extend somewhat farther out.
A151: Maximum extra rack length for short pressure vessels | B151: short_PV_extra_length_max | C151: 0.15 | E151: Extra rack length cannot exceed this percentage of the total element length. This limit should apply only to one-stage systems with few elements per vessel.
A152: Space between pressure vessels on rack, 4" pressure vessel | B152: PV_spacing_4 | C152: 1 | D152: ft
A153: Space between pressure vessels on rack, 8" pressure vessel | B153: PV_spacing_8 | C153: 1 | D153: ft | E153: These assumptions are used for horizontal and vertical spacing of PVs, to estimate rack height and width. 1 ft per Howard Steiman, RW Beck.
A154: Space between pressure vessels on rack, 16-18" pressure vessel | B154: PV_spacing_16 | C154: 1 | D154: ft
A155: Extra rack width, in addition to that for PVs | B155: extra_rack_width | C155: 0 | D155: ft | E155: Based on drawings sent by Richard Chmielewski, H2O Innovation, 8/2011.
A156: Extra rack height, in addition to that for PVs | B156: extra_rack_height | C156: 1 | D156: ft | E156: At base of rack. Based on drawings sent by Richard Chmielewski, H2O Innovation, 8/2011.
A158: Markup for assembly of rack | B158: rack_assembly_markup | C158: 1 | E158: Richard Chmielewski, H2O Innovation, 8/2011.
A160: Pressure tuning routine
A161: Tolerance for permeate flow difference | B161: perm_flow_tol | C161: 0.01 | E161: Pressure tuning continues until it finds a permeate flow within the percentage or absolute tolerance of the design flow.
A162: Absolute tolerance for permeate flow difference | B162: perm_flow_abs_tol | C162: 500 | D162: gal/day | E162: Absolute tolerance is less permissive than percentage tolerance, except for very small design flows (<100,000 gal/day).
A163: Maximum number of pressure iterations | B163: max_iter_pressure | C163: 80 | D163: iterations
A164: Average recovery per element, as fraction of spec | B164: avg_Y_el_targ_frac | C164: 0.7
A165: Minimum number of elements per vessel, 16-18" elements | B165: el_per_vess_std_16 | C165: 4 | D165: elements | E165: We won't go any lower than this number of elements per vessel, unless there is only one stage.
A166: Maximum number of elements per vessel, 16-18" elements | B166: el_per_vess_max_16 | C166: 5 | D166: elements
A167: Minimum number of elements per vessel, 4" and 8" elements | B167: el_per_vess_std_8 | C167: 6 | D167: elements | E167: We won't go any lower than this number of elements per vessel, unless there is only one stage.
A168: Maximum number of elements per vessel, 4" and 8" elements | B168: el_per_vess_max_8 | C168: 8 | D168: elements
A169: Boost vs. throttle, stages 1-2 | B169: P_adj_method_12 | C169: 1 | D169: <--enter 0 to throttle stage 1, 1 to boost stage 2
A170: Boost vs. throttle, stages 2-3 | B170: P_adj_method_23 | C170: 1 | D170: <--enter 0 to throttle stages 1 and 2, 1 to boost stage 3
A171: Tolerance for per-stage flux above target | B171: flux_tol_hi | C171: 0.35
A172: Tolerance for per-stage flux below target | B172: flux_tol_lo | C172: 0.35
A174: Chemical Cleaning System
A175: Months between cleanings at SDI 2 | B175: cleaning_freq_SDI2 | C175: 12 | D175: months
A176: Change in cleaning interval with SDI | B176: cleaning_freq_change | C176: 4 | D176: months | E176: As SDI increases by 1, the cleaning interval decreases by this quantity.
A177: Maximum cleaning interval | B177: cleaning_freq_max | C177: 18 | D177: months | E177: The maximum allowable cleaning interval.
A178: Minimum cleaning interval | B178: cleaning_freq_min | C178: 3 | D178: months | E178: per LT2 Membrane Filtration Guidance Manual and manufacturer recommendations
A179: Flow rate for rapid recirculation phase, per PV, 4" elements | B179: high_circ_flow_PV_4 | C179: 9 | D179: gpm | E179: Dow Filmtec Membranes Cleaning Procedures for DOW FILMTEC FT30 Elements (http://msdssearch.dow.com/PublishedLiteratureDOWCOM/dh_060a/0901b8038060a66f.pdf?filepath=liquidseps/pdfs/noreg/609-23010.pdf&fromPage=GetDoc downloaded 7/10/13)
A180: Flow rate for rapid recirculation phase, per PV, 8" elements | B180: high_circ_flow_PV_8 | C180: 35 | D180: gpm | E180: Dow Filmtec Membranes Cleaning Procedures for DOW FILMTEC FT30 Elements (http://msdssearch.dow.com/PublishedLiteratureDOWCOM/dh_060a/0901b8038060a66f.pdf?filepath=liquidseps/pdfs/noreg/609-23010.pdf&fromPage=GetDoc downloaded 7/10/13)
A181: Flow rate for rapid recirculation phase, per PV, 16-18" elements | B181: high_circ_flow_PV_16 | C181: 180 | D181: gpm | E181: Hydranautics TSB107.20, July 2010: 160 gpm for 16" elements. Personal communication from Jack Cangiano, Koch, to Howard Steiman, RW Beck, May 2011: 200 gpm for 18" elements.
A182: Volume in piping, as fraction of vessel volume | B182: pipe_vol_frac | C182: 0.05
A183: Complete cleaning cycle length | B183: cleaning_cycle | C183: 2 | D183: days | E183: One day each for acid and caustic. This is the total offline time.
A184: Number of redundant pumps per system | B184: NRD_chem_pump | C184: 1 | D184: units
A185: Cleaning Temperature | B185: cleaning_temp | C185: 95 | D185: degrees F | E185: Ideal temperature range is 35 degrees C to 45 degrees C (95 - 113 degrees F)
A186: Immersion heater heat-up time | B186: cleaning_heat_time | C186: 5 | D186: hours
A187: Number of redundant immersion heaters per system | B187: NRD_immersion_heaters | C187: 0 | D187: units | E187: By default, no redundancy for heaters
A188: Number of security screens per chemical line | B188: sec_screen_per_chem | C188: 1 | D188: units | E188: Set to zero to omit security screens
A189: Redundant security screens per system | B189: NRD_sec_screen | C189: 1 | D189: units
A190: Number of cartridge filters per chemical line | B190: cart_filter_per_chem | C190: 1 | D190: units | E190: Set to zero to omit cartridge filters
A191: Redundant cartridge filters per system | B191: NRD_cart_filter | C191: 1 | D191: units
A192: Minimum chemical storage tank size | B192: min_chem_tank_vol | C192: 5 | D192: gal
A193: Acid used in acidic cleaning cycle | B193: clean_acid | C193: 3 | D193: <--enter 1 for citric, 2 for hydrochloric, 3 for low-pH proprietary cleaner for sulfate and metal control, 0 for no acid cycle
A194: Citric acid density | B194: citric_density | C194: 99.6 | D194: lb/cubic ft | E194: Density of anhydrous citric acid is 1.665. J.T. Baker MSDS, http://www.jtbaker.com/msds/englishhtml/C4735.htm.
A195: Percent concentration of citric acid in cleaning solution during use | B195: citric_need | C195: 0.02
A196: Percent concentration of HCl in cleaning solution during use | B196: HCl_need | C196: 0.002
A197: Chemical used in high-pH cleaning cycle | B197: clean_high_pH | C197: 2 | D197: <--enter 1 for NaOH with no added agent, 2 for high-pH proprietary detergent, 0 for no high-pH cycle
A198: Percent concentration of NaOH in cleaning solution during use | B198: caustic_need | C198: 0.001
A199: Dilution of low pH proprietary cleaners, by volume | B199: proprietary_dilution_lowpH | C199: 40 | D199: gal water/gal cleaner | E199: For Professional Water Technologies Lavasol liquid cleaners. If this assumption is changed, review costs for proprietary cleaners, as some may be scaled to this dilution.
A200: Dilution of high pH proprietary cleaners, by volume | B200: proprietary_dilution_highpH | C200: 40 | D200: gal water/gal cleaner | E200: For Professional Water Technologies Lavasol liquid cleaners. If this assumption is changed, review costs for proprietary cleaners, as some may be scaled to this dilution.
A201: Flow rate to drain cleaning solution and flush system, as fraction of high-rate flow | B201: drain_rate_frac | C201: 0.2 | E201: Used only to determine residuals discharge flow rate
A202: Time for flush and filter to waste after cleaning | B202: flush_time | C202: 15 | D202: min | E202: Used only to determine residuals volume
A204: Structure/Floorplan
A205: Maximum access space per tank for small systems | B205: max_space_tanks_small | C205: 1 | D205: feet | E205: Assumes skid-mounting with minimal access space
A206: Maximum access space per tank for large systems | B206: max_space_tanks_large | C206: 6 | D206: feet | E206: This is the MAXIMUM; space between tanks defaults to vessel or tank diameter, up to this maximum. Maximum provides space for sandblasting and painting for large vessels (5-8 feet per Richard E. Hubel, Peter Keenan, American Water Works Service Company).
A207: Access space per pump | B207: space_pumps | C207: 4 | D207: feet
A208: Access space for other equipment | B208: space_other_equip | C208: 3 | D208: feet | E208: Provide a minimum of 3 ft (1 m) of clear space around each item of equipment (American Water Works Association and American Society of Civil Engineers. Water Treatment Plant Design. Third Edition. New York: McGraw Hill, 1998. Pp. 695).
A209: Access space for element replacement | B209: element_extra_space | C209: 2 | D209: feet | E209: Access space on both ends of the rack is equal to the element length plus this extra length. Other sides of the rack have standard access space.
A210: Fire truck buffer requirements | B210: fire_buffer | C210: 40 | D210: feet
A211: Buffer space around other sides of buildings, Non-fire buffer | B211: non_fire_buffer | C211: 10 | D211: feet
A212: Building height | B212: Building_height | C212: 20 | D212: feet
A213: Clearance space beneath the ceiling | B213: ceiling_clearance | C213: 3 | D213: feet | E213: Minimum space between the tops of storage tanks and the ceiling
A214: Office space per employee | B214: space_office | C214: 100 | D214: square ft
A215: Concrete pad thickness | B215: pad_thick | C215: =6/12 -> 0.5 | D215: feet
A216: Concrete pad thickness for small systems | B216: pad_thick_small | C216: =4/12 -> 0.3333333333 | D216: feet
A217: Concrete pad thickness for area below pressure vessels | B217: pad_vessels | C217: 0.5 | D217: feet
A218: Dry chemical storage height | B218: storage_height | C218: 5 | D218: feet
A219: Second building after… | B219: add_2nd_building | C219: 10000 | D219: sf
A220: Third building after… | B220: add_3rd_building | C220: 20000 | D220: sf
A222: Residuals Discharge
A223: Evaporation pond solids density | B223: ht_solids_density | C223: 25 | D223: lb/ft3 | E223: Standard in WBS models
... 134 more rows

Sheet O&M Assumptions
A1: Default O&M Assumptions
A2: Users may change any of the cells in the Value column; cells in gold are most important and may vary based on contaminant treated and site-specific conditions
A4: Assumption | B4: Range Name | C4: Value | D4: Units | E4: Guidance
A5: Materials
A6: Life of cartridge filters for high SDI | B6: cart_life_short | C6: 3 | D6: months | E6: Howard Steiman, RW Beck. 3 mos for surface water with SDI >~2.5
A7: Life of cartridge filters for low SDI | B7: cart_life_long | C7: 7 | D7: months | E7: Howard Steiman, RW Beck. 6-8 mos for water with SDI < 1
A8: Maximum SDI for "low SDI" cartridge filter life | B8: cart_life_sdi_cutover | C8: 1.5
A9: O&M materials as a percentage of capital | B9: mat_pct | C9: 0.01 | E9: For pumps, pretreatment, other equipment. For calculating cost of actual maintenance materials; not to be confused with depreciation. Initial proposed estimate of 5% seems high (Richard E. Hubel, Peter Keenan, American Water Works Service Company, Inc)
A10: O&M materials percentage for membrane process | B10: mat_pct_train | C10: 0.01 | E10: For membrane process
A11: Membrane life for NF elements | B11: membrane_life_nf | D11: years | E11: If blank, 7 yrs for HQ GW, 3 yrs for LQ SW, and 5 yrs for others
A12: Membrane life for RO elements | B12: membrane_life_ro | D12: years | E12: If blank, 7 yrs for HQ GW, 3 yrs for LQ SW, and 5 yrs for others
A14: Labor
A15: Labor hours per cartridge filter | B15: hrs_filter | C15: 12 | D15: hrs/filter changeout
A16: Labor hours per week for simplex prescreens | B16: labor_simplex_screen | C16: 0.5 | D16: hr/clean cycle/screen | E16: Kevin Steiner, Fluid Engineering. 10-30 minutes/basket clean for 1" prescreens, 15-45 minutes/basket clean for 2" and 4" units. Assume 1 basket clean per chemical cleaning cycle.
A17: Labor hours per month for auto prescreens | B17: monthly_labor_auto_screen | C17: 1 | D17: hr/month/screen | E17: Kevin Steiner, Fluid Engineering. "Very periodic" maintenance, likely only during plant shutdowns.
A18: Minutes per instrument per day | B18: uloe_inst | C18: 5 | D18: min/day | E18: For manual systems only
A19: Recording operating paramenters for automated systems | B19: uloe_inst_auto | C19: 5 | D19: min/day | E19: For semiautomated and automated systems
A20: Minutes per pump per day | B20: uloe_pump | C20: 5 | D20: min/day | E20: For manual and semiautomated systems
A21: Minutes per valve per week | B21: uloe_valve | C21: 5 | D21: min/week | E21: For manual and semiautomated systems
A22: Minutes per 100 sf per day | B22: uloe_fp | C22: 1 | D22: min/100 sf/day
A23: Hours for manual removal of holding tank solids | B23: uloe_solids | C23: =2*8/(20*27) -> 0.02962962963 | D23: hours/cubic foot | E23: For systems using manual solids removal. Based on 20 cubic yards removed per day, doubled for transfer from tank to pad and then from pad to truck for disposal.
A24: Mangerial LOE as a percent of average technical labor | B24: Manager_percent | C24: 0.1
A25: Administrative LOE as a percent of average technical labor | B25: Clerical_percent | C25: 0.1
A27: Maintenance LOE assumptions
A28: For instruments (includes calibration) | B28: uloe_inst_maint | C28: 10 | D28: min/month
A29: For pumps | B29: uloe_pump_maint | C29: 30.25 | D29: hours/year | E29: Based on vendor recommended maintenance activities; applied to large, frequently operated pumps only
A30: For valves | B30: uloe_valve_maint | C30: 5 | D30: min/year | E30: Applied to main process valves only
A31: For chemical supply systems | B31: uloe_chem_maint | C31: 120 | D31: min/month
A33: Pump energy
A34: Residuals pump head | B34: res_pump_psi | C34: 25 | D34: psi
A35: Injection well pump head | B35: well_pump_psi | C35: 40 | D35: psi | E35: Typical discharge pressures 30 to 50 psi, but may be much larger, depending on local conditions (Mickley, 2006). If revised, review pump costs and maximum size available.
A37: Lighting and HVAC
A38: Lighting power per sf, low-quality buildings and sheds | B38: lighting_power_low | C38: 0.3 | D38: W/sf | E38: 0.3, 0.6, and 1.2 W/sf are the assumptions used for building capital costs
A39: Lighting power per sf, mid-quality buildings | B39: lighting_power_mid | C39: 0.6 | D39: W/sf
A40: Lighting power per sf, high-quality buildings | B40: lighting_power_high | C40: 1.2 | D40: W/sf
A42: Ventilation air change rate for membrane & chemical cleaning systems | B42: Air_changes_contactor | C42: 3 | D42: air changes/hr
A43: Ventilation air change rate for pump room | B43: Air_changes_pump | C43: 20 | D43: air changes/hr | E43: Could be lower (annual average 3 changes/hr) in a northern climate
A44: Ventilation air change rate for pretreatment equipment | B44: Air_changes_chem_storage | C44: 2 | D44: air changes/hr
A45: Ventilation air change rate for offices | B45: Air_changes_office | C45: 2 | D45: air changes/hr
A46: Pressure drop across the fan | B46: Fan_pressure_drop | C46: 0.25 | D46: lbs/ft2
A47: Number of mechanical ventilation days per year first building (small system) | B47: fan_days_build1_small | C47: 90 | D47: days/year | E47: Number of days per year where natural ventilation is applicable cannot be greater than 365 days
A48: Number of mechanical ventilation days per year 2nd building (small system) | B48: fan_days_build2_small | C48: 90 | D48: days/year | E48: For small systems (<1 MGD)
A49: Number of mechanical ventilation days per year 3rd building (small system) | B49: fan_days_build3_small | C49: 90 | D49: days/year
A50: Number of mechanical ventilation days per year first building (medium system) | B50: fan_days_build1_medium | C50: 120 | D50: days/year | E50: For medium systems (1 - 10 MGD)
A51: Number of mechanical ventilation days per year 2nd building (medium system) | B51: fan_days_build2_medium | C51: 120 | D51: days/year
A52: Number of mechanical ventilation days per year 3rd building (medium system) | B52: fan_days_build3_medium | C52: 120 | D52: days/year
A53: Number of mechanical ventilation days per year first building (large system) | B53: fan_days_build1_large | C53: 185 | D53: days/year | E53: For large systems (> 10 MGD)
A54: Number of mechanical ventilation days per year 2nd building (large system) | B54: fan_days_build2_large | C54: 185 | D54: days/year
A55: Number of mechanical ventilation days per year 3rd building (large system) | B55: fan_days_build3_large | C55: 185 | D55: days/year
A57: R-value for walls | B57: R_wall | C57: 25 | D57: hr-sf-degF/BTU | E57: See Appendix E. If higher R-value materials are desired, user may also need to adjust the cost of building materials in cl.xls
A58: R-value for ceilings | B58: R_ceiling | C58: 49 | D58: hr-sf-degF/BTU | E58: See Appendix E. If higher R-value materials are desired, user may also need to adjust the cost of building materials in cl.xls
A59: Annual heating degree days | B59: heat_DD | C59: 4260 | D59: degree days | E59: Heating and cooling assumptions should be consistent with one another. Assumed values are for a climate that results in a total energy usage for heating and cooling equal to the national median.
A60: Annual cooling degree days | B60: cool_DD | C60: 1415 | D60: degree days | E60: Heating and cooling assumptions should be consistent with one another. Assumed values are for a climate that results in a total energy usage for heating and cooling equal to the national median.
A61: Heating ventilation/infiltration load | B61: heat_viload | C61: 168679 | D61: BTU/cfm | E61: Heating and cooling assumptions should be consistent with one another. Assumed values are for a climate that results in a total energy usage for heating and cooling equal to the national median.
A62: Cooling ventilation/infiltration load | B62: cool_viload | C62: 51771 | D62: BTU/cfm | E62: Heating and cooling assumptions should be consistent with one another. Assumed values are for a climate that results in a total energy usage for heating and cooling equal to the national median.
A63: Electric resistance heating efficiency | B63: resist_eff | C63: 0.98 | E63: See Appendix E
A64: Heat pump heating coefficient of performance | B64: COP | C64: 3.3 | E64: See Appendix E
A65: Natural gas non-condensing furnace efficiency | B65: gas_non_eff | C65: 0.85 | E65: See Appendix E
A66: Natural gas condensing furnace efficiency | B66: gas_eff | C66: 0.9 | E66: See Appendix E
A67: Standard oil furnace efficiency | B67: diesel_non_eff | C67: 0.82 | E67: See Appendix E
A68: Mid-efficiency oil furnace efficiency | B68: diesel_eff | C68: 0.9 | E68: See Appendix E
A69: Air conditioning EER | B69: EER | C69: 11.8 | D69: BTU/Whr | E69: See Appendix E
A70: Heat pump cooling EER | B70: hp_EER | C70: 11.8 | D70: BTU/Whr | E70: See Appendix E
A72: Heating Oil Heat Content | B72: diesel_heat_content | C72: 139000 | D72: BTU/gal | E72: U.S. DOE, Energy Information Administration.

Sheet Indirect Assumptions
A1: Default Assumptions for Indirect and Add-On Costs
A2: Users may change any of the cells in the Value column
A4: Assumption | B4: Range Name | C4: Value | D4: Units | E4: Guidance
A5: Permits
A6: Include Permit Costs? | B6: include_permits | C6: 1 | D6: <---enter 1 for yes, 0 for no
A7: Include NEPA compliance costs? | B7: include_NEPA | C7: 1 | D7: <--- enter 1 for default, enter 2 for yes, 3 for no | E7: Default of 1 means NEPA compliance is included only for systems that discharge to surface water. Selecting 2 means NEPA compliance will be included in all estimates. Selecting 3 means NEPA compliance will never be included.
A8: HCl strength to trigger RMP requirement | B8: HCl_strength_RMP | C8: 0.37 | E8: HCl storage thresholds that trigger a requirement for a risk management plan, per 40 CFR 68.130
A9: HCl quantity to trigger RMP requirement | B9: HCl_quant_RMP | C9: 15000 | D9: lbs
A11: Pilot Study
A12: Include pilot study costs? | B12: include_pilot | C12: 1 | D12: <---enter 1 for yes, 0 for no
A14: Mobilization and Demobilization
A15: Mobilization percentage for small systems | B15: mob_pct_small | C15: 0.05 | D15: of direct capital cost | E15: Typically 2-5% of the estimated construction cost. Enter 0% to exclude.
A16: Mobilization percentage for medium systems | B16: mob_pct_medium | C16: 0.04 | D16: of direct capital cost
A17: Mobilization percentage for large systems | B17: mob_pct_large | C17: 0.02 | D17: of direct capital cost
A18: Mobilization percentage for injection wells | B18: mob_pct_well | C18: 0.2 | D18: of direct capital cost | E18: Computed separately from the rest of mob/demob costs. Well costs are based on a regression in Mickley and Associates, Membrane Concentrate Disposal: Practices and Regulation, USBR Desalination and Water Purification Research and Development Program Report No. 123 (Second Edition), April 2006, with 20% mob/demob allowance excluded. This allowance adds in the rest of the cost.
A20: Architectural Fees for Treatment Building
A21: Include architectural fee? | B21: include_arch | C21: 1 | D21: <--- enter 1 for yes, 0 for no | E21: Must be added to building cost. Change for special considerations. Includes structural, mechanical, and electrical engineering for building only.
A22: Include architectural fee for small systems? | B22: include_arch_small | C22: 0 | D22: <--- enter 1 for yes, 0 for no
A24: Installation, Transportatation, and O&P
A25: Installation, Transportatation, and O&P percentage | B25: inst_pct | C25: 0 | D25: of direct capital cost | E25: Included in line item unit costs. Add a percentage for special considerations such as a remote site or high cost location.
A27: Sitework
A28: Include sitework costs? | B28: include_sitework | C28: 1 | D28: <--- enter 1 for yes, 0 for no
A30: Yard Piping
A31: Include yard piping costs? | B31: include_yardpipe | C31: 1 | D31: <--enter 1 for yes, 0 for no
A32: Frost depth | B32: frost | C32: 38 | D32: inches | E32: Should be consistent with (reflect same climate as) heating and cooling assumptions on O&M assumptions page. Assumptions are for St. Louis, Missouri.
A33: Minimum trench depth to top of pipe | B33: min_trench_depth | C33: 36 | D33: inches | E33: Peer reviewers recommend a minimum trench depth of 3 ft. US Army Corps of Engineers recommended minimum cover for distribution pipes of 2.5 ft in grassed areas, 3 ft if buried under pavement or roadways but not less than frost penetration depth (USACOE 1984)
A34: Soil density | B34: soil_dens | C34: 97 | D34: lb/cubic ft. | E34: Based on soil density of loamy sand (1.55 gm/cc)
A35: Coefficient of passive pressure | B35: Coeff_Kp | C35: 3
A36: Reduction factor | B36: Reduction | C36: 0.467
A37: Bedding depth below pipe | B37: bedding_depth | C37: 6 | D37: inches
A38: Bedding depth surrounding the pipe | B38: bedding_pct | C38: 0.25 | D38: of pipe diameter
A39: Trench inside angle | B39: trench_angle | C39: =RADIANS(45) -> 0.7853981634 | D39: radians
A40: Pipe length from water source to the boundary of the 10 foot buffer | B40: yard_in | C40: 0 | D40: feet | E40: Use if technology is first step in treatment process
A41: Pipe length the boundary of the 10 foot buffer to distribution network | B41: yard_out | C41: 0 | D41: feet | E41: Use if technology is last step in treatment process
A43: Geotechnical
A44: Include geotechnical costs for low cost systems? | B44: include_geo_low | C44: 0 | D44: <--- enter 1 for yes, 0 for no | E44: Note: geotechnical is always included with the septic system option, regardless of the numbers entered here
A45: Include geotechnical costs for medium cost systems? | B45: include_geo_medium | C45: 0 | D45: <--- enter 1 for yes, 0 for no
A46: Include geotechnical costs for high cost systems? | B46: include_geo_high | C46: 1 | D46: <--- enter 1 for yes, 0 for no
A47: Test pit length | B47: pit_length | C47: 4 | D47: feet
A48: Test pit width | B48: pit_width | C48: 4 | D48: feet
A49: Test pit depth | B49: pit_depth | C49: 7 | D49: feet
A50: Borehole depth | B50: bore_depth_p | C50: 10 | D50: feet
A51: Borehole depth for shallow basins | B51: bore_depth_min | C51: 25 | D51: feet
A52: Borehole depth for deep basins | B52: bore_depth_max | C52: 50 | D52: feet
A53: Technology footprint above which boreholes are needed | B53: bore_need | C53: 2000 | D53: square feet | E53: Small system geotechnical investigation can be completed with test pits, larger systems require boreholes
A54: Minimum number of boreholes | B54: min_holes | C54: 4
A55: Borehole needed every x square feet | B55: hole_per_sf | C55: 1000 | D55: square feet
A56: Boreholes per job | B56: hole_per_job | C56: 24 | D56: boreholes/job
A57: Linear feet bored per day | B57: hole_per_day | C57: 55.5 | D57: l.f./day | E57: RS Means Costworks 2001
A59: Standby Power
A60: Include standby power costs? | B60: include_standby | C60: 1 | D60: <--enter 1 for yes, 0 for no
A61: Include standby power costs for small systems? | B61: include_standby_small | C61: 0 | D61: <--- enter 1 for yes, 0 for no
A62: Design safety factor for standby power | B62: std_safety_factor | C62: 0 | E62: Default 0%. Apply a percentage to increase standby power requirements.
A63: Include heating in standby power | B63: need_heat | C63: 0 | D63: <--- enter 1 for yes, 0 for no | E63: If a system uses gas or diesel heat, heating will not be included, regardless of this assumption.
A64: Include cooling in standby power | B64: need_cool | C64: 0 | D64: <--- enter 1 for yes, 0 for no | E64: If both heating and cooling are included, standby power requirements will be based on the maximum of the two.
A65: Minimum standby power generator size | B65: min_standby | C65: 1.5 | D65: kW | E65: Minimum size for full standby generators
A67: Electrical (including yard wiring)
A68: Electrical percentage | B68: elect_pct | C68: 0.1 | D68: of direct cost | E68: Accounts for yard wiring and other electrical infrastructure. Some electrical included in building costs.
A70: Instrumentation and Control
A71: Instrumentation and control percentage | B71: i_c_pct | C71: 0 | D71: of direct cost | E71: Included as a direct cost line item.
A73: Contingency
A74: Include contingency costs for low cost systems? | B74: include_conting_low | C74: 0 | D74: <--- enter 1 for yes, 0 for no
A75: Include contingency costs for medium cost systems? | B75: include_conting_medium | C75: 0 | D75: <--- enter 1 for yes, 0 for no
A76: Include contingency costs for high cost systems? | B76: include_conting_high | C76: 1 | D76: <--- enter 1 for yes, 0 for no
A77: Technology complexity factor | B77: complexity | C77: 1.5 | E77: Technology-specific factor. See Appendices for details. Low complexity = 0.5; Average complexity = 1.0; High complexity = 1.5; Very high complexity = 2.0.
A79: Process Engineering
A80: Engineering percentage for small systems | B80: eng_pct_small | C80: 0.2 | D80: of direct capital cost | E80: Enter 0% to exclude.
A81: Engineering percentage for medium systems | B81: eng_pct_medium | C81: 0.12 | D81: of direct capital cost
A82: Engineering percentage for large systems | B82: eng_pct_large | C82: 0.08 | D82: of direct capital cost
A84: Miscellaneous Allowance
A85: Miscellaneous allowance percentage | B85: misc_pct | C85: 0.1 | D85: of direct capital and O&M costs | E85: Enter 0% to exclude.
A87: Legal, Fiscal, and Administrative
A88: Legal percentage | B88: legal_pct | C88: 0.02 | D88: of direct capital cost | E88: Enter 0% to exclude. Highly site-specific. Can range from 2-5% of equipment, installation, construction, electrical, and standby power. To estimate, add 5% to total estimated construction cost.
A90: Sales Tax
A91: Sales tax percentage | B91: tax_pct | C91: 0 | D91: of direct capital cost | E91: May be exempt if constructed with public funds. May be as high as 7.25% of equipment and construction, with national average 4.75%.
A93: Financing during Construction
A94: Financing percentage | B94: finance_pct | C94: 0.05 | D94: of direct capital cost | E94: Enter 0% to exclude. Typically assumed to be one year's interest on capital cost.
A95: Financing percentage for small systems | B95: finance_pct_small | C95: 0 | D95: of direct capital cost | E95: Small system construction assumed to take less than one year
A97: Construction Management and General Contractor Overhead
A98: Builder's risk insurance percentage | B98: br_ins_pct | C98: 0.0034 | E98: Enter 0% to exclude. 0.34% is national average rate. RSMeans Building Construction Cost Data 2009, reference section R01100-070
A99: Include performance bond cost? | B99: include_bond | C99: 1 | D99: <--- enter 1 for yes, 0 for no
A100: Include construction management cost? | B100: include_cm | C100: 1 | D100: <--- enter 1 for yes, 0 for no
A102: Concrete Pad
A103: Include concrete pad in total capital cost? | B103: include_pad | C103: 1 | D103: <--- enter 1 for yes, 0 for no
A105: Heating Table (1=include heating in buildings and O&M, 0 = do not include heating)
A106: Component Level | B106: Range Name | C106: System Size
C107: Small (<1 mgd) | D107: Medium (1-10 mgd) | E107: Large (>10 mgd)
A108: low cost | B108: heating_table | C108: 0 | D108: 1 | E108: 1
A109: mid cost | C109: 1 | D109: 1 | E109: 1
A110: high cost | C110: 1 | D110: 1 | E110: 1
A111: Buildings less than 500 ft2 (other than those used for chlorine storage)
A112: low cost | B112: heating_table_shed | C112: 0 | D112: 0 | E112: 1
A113: mid cost | C113: 0 | D113: 0 | E113: 1
A114: high cost | C114: 1 | D114: 1 | E114: 1
A116: Cooling Table (1=include cooling in buildings and O&M, 0 = do not include cooling)
A117: Component Level | B117: Range Name | C117: System Size
C118: Small (<1 mgd) | D118: Medium (1-10 mgd) | E118: Large (>10 mgd)
A119: low cost | B119: cooling_table | C119: 0 | D119: 0 | E119: 1
A120: mid cost | C120: 0 | D120: 1 | E120: 1
A121: high cost | C121: 1 | D121: 1 | E121: 1
A122: Buildings less than 500 ft2 (other than those used for chlorine storage)
A123: low cost | B123: cooling_table_shed | C123: 0 | D123: 0 | E123: 0
A124: mid cost | C124: 0 | D124: 0 | E124: 0
A125: high cost | C125: 0 | D125: 0 | E125: 0

Sheet Influent and Booster Pumping
A1: Influent and Booster Pumping Calculations
A3: Calculation | B3: Range Name | C3: Value | D3: Units | E3: Guidance
A4: Flow Rates
A5: Design Production Flow | B5: design_flow | C5: =(1-bp_pct)*IF(df_units="gpm",design_flow_I*24*60/1000000,design_flow_I) -> 0.74 | D5: MGD | E5: From Input
A6: Average Production Flow | B6: average_flow | C6: =(1-bp_pct)*IF(af_units="gpm",average_flow_I*24*60/1000000,IF(af_units="fraction of design flow",average_flow_I*design_flow,average_flow_I)) -> 0.251 | D6: MGD | E6: From Input
A7: Design Production Flow Rate | B7: design_flow_rate | C7: =design_flow*1000000/(24*60) -> 513.8888889 | D7: gpm | E7: Design flow expressed in gpm
A8: Average Production Flow Rate | B8: average_flow_rate | C8: =average_flow*1000000/(24*60) -> 174.3055556 | D8: gpm | E8: Average flow expressed in gpm
A9: Design Bypass Flow Rate | B9: bp_flow_rate | C9: =design_flow_rate*bp_pct/(1-bp_pct) -> 0 | D9: gpm
A10: Average Bypass Flow Rate | B10: bp_flow_rate_avg | C10: =average_flow_rate*bp_pct/(1-bp_pct) -> 0 | D10: gpm
A12: Design Influent Flow | B12: design_inflow | C12: =design_flow/recovery_rate -> 0.9919846367 | D12: MGD
A13: Average Influent Flow | B13: average_inflow | C13: =average_flow/recovery_rate -> 0.3364704646 | D13: MGD
A14: Design Influent Flow Rate | B14: design_inflow_rate | C14: =design_flow_rate/recovery_rate -> 688.87822 | D14: gpm
A15: Average Influent Flow Rate | B15: average_inflow_rate | C15: =average_flow_rate/recovery_rate -> 233.6600449 | D15: gpm
A17: Influent Pumping
A18: Maximum influent pump size, RO/NF to 100 psi | B18: max_pump_size_ro100 | C18: =VLOOKUP(10^6,ro100_pump_cost_cl,1)-0.1 -> 500 | E18: These are the largest pump flows for which costs are available, in each pressure range.
A19: Maximum influent pump size, RO/NF to 150 psi | B19: max_pump_size_ro150 | C19: =VLOOKUP(10^6,ro150_pump_cost_cl,1)-0.1 -> 2000
A20: Maximum influent pump size, RO/NF to 200 psi | B20: max_pump_size_ro200 | C20: =VLOOKUP(10^6,ro200_pump_cost_cl,1)-0.1 -> 2000 | D20: gpm
A21: Maximum influent pump size, RO to 250 psi | B21: max_pump_size_ro250 | C21: =VLOOKUP(10^6,ro250_pump_cost_cl,1)-0.1 -> 2000 | D21: gpm
A22: Maximum influent pump size, RO to 300 psi | B22: max_pump_size_ro300 | C22: =VLOOKUP(10^6,ro300_pump_cost_cl,1)-0.1 -> 250
A23: Maximum influent pump size, RO to 350 psi | B23: max_pump_size_ro350 | C23: =VLOOKUP(10^6,ro350_pump_cost_cl,1)-0.1 -> 225
A24: Maximum influent pump size, RO to 500 psi | B24: max_pump_size_ro500 | C24: =VLOOKUP(10^6,ro500_pump_cost_cl,1)-0.1 -> 75 | D24: gpm | E24: At 500 psi, pumps greater than 200 gpm are economically inefficient, because a switch to positive displacement pumps is required.
A25: Feed water pump head (psi) | B25: inf_pump_psi | C25: =(P_feed_try+influent_headloss) -> 272.9410347 | D25: psi
A26: Cost table for influent pumps | B26: inf_pump_class | C26: =IF(inf_pump_psi<=100,"ro100",IF(inf_pump_psi<=150,"ro150",IF(inf_pump_psi<=200,"ro200",IF(inf_pump_psi<=250,"ro250",IF(inf_pump_psi<=300,"ro300",IF(inf_pump_psi<=350,"ro350",IF(inf_pump_psi<=500,"ro500","N/A"))))))) -> ro300 | E26: According to the pump head, determines which cost table or equation we will use for influent pumps.
A27: Choose Indicator for Influent pumps | B27: inf_pump_choose | C27: =IF(inf_pump_psi<=100,1,IF(inf_pump_psi<=150,2,IF(inf_pump_psi<=200,3,IF(inf_pump_psi<=250,4,IF(inf_pump_psi<=300,5,IF(inf_pump_psi<=350,6,IF(inf_pump_psi<=500,7,"N/A"))))))) -> 5
A28: Max size for this class | B28: inf_max_pump_size | C28: =INDIRECT("max_pump_size_"&inf_pump_class) -> 250 | D28: gpm
A29: Feed pump water rating for sizing | B29: inf_pump_gpm_sizing | C29: =MIN(MAX(average_inflow_rate,design_inflow_rate/2)*(1+pump_safety_factor),inf_max_pump_size) -> 250 | D29: gpm | E29: Used only to determine the number of influent pumps.
A30: Number of feed water pumps | B30: inf_pumps | C30: =ROUNDUP(design_inflow_rate*(1+pump_safety_factor)/inf_pump_gpm_sizing,0) -> 4 | D30: units
A31: Feed water pump rating (gpm) | B31: inf_pump_gpm | C31: =design_inflow_rate*(1+pump_safety_factor)/inf_pumps -> 215.2744437 | D31: gpm
A32: Feed water pump rating (MGD) | B32: inf_pump_rating | C32: =inf_pump_gpm*24*60/1000000 -> 0.309995199 | D32: MGD
A33: Feed water pump design horsepower | B33: inf_pump_hp | C33: =design_inflow_rate*inf_pump_psi/inf_pumps/pump_effcy/14.7*33.9*8.34/550/60 -> 36.52788334 | D33: hp
A34: Total feed water pumps | B34: total_inf_pumps | C34: =inf_pumps+NRD_inf_pumps -> 4 | D34: units | E34: Includes standby pumps if specified
A36: Membrane Booster Pumps
A37: Into Stage 2
A38: Booster pump head (psi) | B38: boost_pump_2_psi | C38: =IF(P_boost_2_try>0,P_boost_2_try+boost_headloss,0) -> 0 | D38: psi | E38: includes safety factor and head loss
A39: Cost table for stage 2 booster pumps | B39: boost_2_class | C39: =IF(boost_pump_2_psi<=100,"ro100",IF(boost_pump_2_psi<=150,"ro150",IF(boost_pump_2_psi<=200,"ro200",IF(boost_pump_2_psi<=250,"ro250",IF(boost_pump_2_psi<=300,"ro300",IF(boost_pump_2_psi<=350,"ro350",IF(boost_pump_2_psi<=500,"ro500","N/A"))))))) -> ro100 | E39: According to the pump head, determines which cost table or equation we will use for booster pumps.
A40: Choose indicator for stage 2 booster pumps | B40: boost_2_pump_choose | C40: =IF(boost_pump_2_psi<=100,1,IF(boost_pump_2_psi<=150,2,IF(boost_pump_2_psi<=200,3,IF(boost_pump_2_psi<=250,4,IF(boost_pump_2_psi<=300,5,IF(boost_pump_2_psi<=350,6,IF(boost_pump_2_psi<=500,7,"N/A"))))))) -> 1
A41: Max size for this class | B41: boost_2_max_pump_size | C41: =INDIRECT("max_pump_size_"&boost_2_class) -> 500 | D41: gpm
A42: Flow to be boosted | B42: boost_flow_2 | C42: =IF(P_boost_2_try>0,(stg_2 feed_flow_v)*num_vess_2_out,0) -> 0 | D42: gpm | E42: total flow feeding into all stage 2 pressure vessels
A43: Number of booster pumps | B43: boost_pumps_2_op | C43: =ROUNDUP(boost_flow_2*(1+pump_safety_factor)/boost_2_max_pump_size,0) -> 0 | D43: units | E43: based on the maximum available pump size
A44: Booster pump rating (gpm) | B44: boost_pump_2_gpm | C44: =IF(boost_flow_2>0,boost_flow_2*(1+pump_safety_factor)/boost_pumps_2_op,0) -> 0 | D44: gpm
A45: Booster pump rating (MGD) | B45: boost_pump_2_mgd | C45: =boost_pump_2_gpm*24*60/1000000 -> 0 | D45: MGD
A46: Booster pump design horsepower | B46: boost_pump_2_hp | C46: =boost_pump_2_gpm*boost_pump_2_psi/pump_effcy/14.7*33.9*8.34/550/60 -> 0 | D46: hp
A47: Total booster pumps for stage 2 | B47: boost_pumps_2_tot | C47: =IF(boost_flow_2>0,boost_pumps_2_op+NRD_inf_pumps,0) -> 0 | D47: units | E47: Includes standby pumps
A49: Into Stage 3
A50: Booster pump head (psi) | B50: boost_pump_3_psi | C50: =IF(P_boost_3_try>0,P_boost_3_try+boost_headloss,0) -> 0 | D50: psi | E50: includes safety factor and head loss
A51: Cost table for stage 3 booster pumps | B51: boost_3_class | C51: =IF(boost_pump_3_psi<=100,"ro100",IF(boost_pump_3_psi<=150,"ro150",IF(boost_pump_3_psi<=200,"ro200",IF(boost_pump_3_psi<=250,"ro250",IF(boost_pump_3_psi<=300,"ro300",IF(boost_pump_3_psi<=350,"ro350",IF(boost_pump_3_psi<=500,"ro500","N/A"))))))) -> ro100 | E51: According to the pump head, determines which cost table or equation we will use for booster pumps.
A52: Choose indicator for stage 3 booster pumps | B52: boost_3_pump_choose | C52: =IF(boost_pump_3_psi<=100,1,IF(boost_pump_3_psi<=150,2,IF(boost_pump_3_psi<=200,3,IF(boost_pump_3_psi<=250,4,IF(boost_pump_3_psi<=300,5,IF(boost_pump_3_psi<=350,6,IF(boost_pump_3_psi<=500,7,"N/A"))))))) -> 1
A53: Max size for this class | B53: boost_3_max_pump_size | C53: =INDIRECT("max_pump_size_"&boost_3_class) -> 500 | D53: gpm
A54: Flow to be boosted | B54: boost_flow_3 | C54: =IF(P_boost_3_try>0,(stg_3 feed_flow_v)*num_vess_3_out,0) -> 0 | D54: gpm | E54: total flow feeding into all stage 3 pressure vessels
A55: Number of booster pumps | B55: boost_pumps_3_op | C55: =ROUNDUP(boost_flow_3*(1+pump_safety_factor)/boost_3_max_pump_size,0) -> 0 | D55: units | E55: based on the maximum available pump size
A56: Booster pump rating (gpm) | B56: boost_pump_3_gpm | C56: =IF(boost_flow_3>0,boost_flow_3*(1+pump_safety_factor)/boost_pumps_3_op,0) -> 0 | D56: gpm
A57: Booster pump rating (MGD) | B57: boost_pump_3_mgd | C57: =boost_pump_3_gpm*24*60/1000000 -> 0 | D57: MGD
A58: Booster pump design horsepower | B58: boost_pump_3_hp | C58: =boost_pump_3_gpm*boost_pump_3_psi/pump_effcy/14.7*33.9*8.34/550/60 -> 0 | D58: hp
A59: Total booster pumps for stage 3 | B59: boost_pumps_3_tot | C59: =IF(boost_flow_3>0,boost_pumps_3_op+NRD_inf_pumps,0) -> 0 | D59: units | E59: Includes standby pumps
A61: Booster Pumping for Bypass Line
A62: Maximum bypass pump size | B62: max_bp_pump_size | C62: =VLOOKUP(10^6,pump_cost_cl,1)-1 -> 10000 | D62: gpm | E62: Largest size in the cost database for a booster pump
A63: Bypass pump rating for sizing | B63: bp_pump_rating_sizing | C63: =MIN(MAX(bp_flow_rate_avg,bp_flow_rate/2)*(1+pump_safety_factor),max_bp_pump_size) -> 0 | D63: gpm | E63: Used only to determine the number of bypass pumps.
A64: Number of bypass pumps | B64: op_num_bp_pumps | C64: =IF(bp_flow_rate=0,0,ROUNDUP(bp_flow_rate*(1+pump_safety_factor)/bp_pump_rating_sizing,0)) -> 0 | D64: units
A65: Bypass pump rating | B65: bp_pump_rating | C65: =IF(bp_flow_rate=0,0,bp_flow_rate/op_num_bp_pumps) -> 0 | D65: gpm
A66: Total number of bypass pumps | B66: tot_num_bp_pumps | C66: =IF(bp_flow_rate=0,0,op_num_bp_pumps+NRD_bp_pumps) -> 0 | D66: units | E66: including standby pumps
A68: Pump Costs from Lookup Tables | E68: We look up costs here in order to simplify formulas on the output sheet. This section applies to lookup tables (curve=0 or blank). If costs are generated from cost equations (curve=1), pump costs are generated the same way as for other components.
A69: Influent pump pressure | B69: Table range name | C69: Class lookup | D69: Flow | E69: Cost | F69: UL large | G69: UL small
A70: 100 psi | B70: inf_pump_lkp_costs | C70: ="ro"&LEFT(A70,3) -> ro100 | D70: =VLOOKUP(inf_pump_gpm,ro100_pump_cost_cl,2) -> 250 | E70: =VLOOKUP(inf_pump_gpm,ro100_pump_cost_cl,3) -> 19683.39965 | F70: =VLOOKUP(inf_pump_gpm,ro100_pump_cost_cl,4) -> 20 | G70: =VLOOKUP(inf_pump_gpm,ro100_pump_cost_cl,5) -> 17
A71: 150 psi | C71: ="ro"&LEFT(A71,3) -> ro150 | D71: =VLOOKUP(inf_pump_gpm,ro150_pump_cost_cl,2) -> 250 | E71: =VLOOKUP(inf_pump_gpm,ro150_pump_cost_cl,3) -> 23275.92965 | F71: =VLOOKUP(inf_pump_gpm,ro150_pump_cost_cl,4) -> 20 | G71: =VLOOKUP(inf_pump_gpm,ro150_pump_cost_cl,5) -> 17
A72: 200 psi | C72: ro200 | D72: =VLOOKUP(inf_pump_gpm,ro200_pump_cost_cl,2) -> 250 | E72: =VLOOKUP(inf_pump_gpm,ro200_pump_cost_cl,3) -> 30537.9186 | F72: =VLOOKUP(inf_pump_gpm,ro200_pump_cost_cl,4) -> 20 | G72: =VLOOKUP(inf_pump_gpm,ro200_pump_cost_cl,5) -> 17
A73: 250 psi | C73: ro250 | D73: =VLOOKUP(inf_pump_gpm,ro250_pump_cost_cl,2) -> 250 | E73: =VLOOKUP(inf_pump_gpm,ro250_pump_cost_cl,3) -> 39168.9099 | F73: =VLOOKUP(inf_pump_gpm,ro250_pump_cost_cl,4) -> 20 | G73: =VLOOKUP(inf_pump_gpm,ro250_pump_cost_cl,5) -> 17
A74: 300 psi | C74: ro300 | D74: =VLOOKUP(inf_pump_gpm,ro300_pump_cost_cl,2) -> 225 | E74: =VLOOKUP(inf_pump_gpm,ro300_pump_cost_cl,3) -> 37732.48945 | F74: =VLOOKUP(inf_pump_gpm,ro300_pump_cost_cl,4) -> 20 | G74: =VLOOKUP(inf_pump_gpm,ro300_pump_cost_cl,5) -> 17
A75: 350 psi | C75: ro350 | D75: =VLOOKUP(inf_pump_gpm,ro350_pump_cost_cl,2) -> 225 | E75: =VLOOKUP(inf_pump_gpm,ro350_pump_cost_cl,3) -> 40188.37101 | F75: =VLOOKUP(inf_pump_gpm,ro350_pump_cost_cl,4) -> 20 | G75: =VLOOKUP(inf_pump_gpm,ro350_pump_cost_cl,5) -> 17
A76: 500 psi | C76: ro500 | D76: =VLOOKUP(inf_pump_gpm,ro500_pump_cost_cl,2) -> Contact Vendor | E76: =VLOOKUP(inf_pump_gpm,ro500_pump_cost_cl,3) -> contact vendor | F76: =VLOOKUP(inf_pump_gpm,ro500_pump_cost_cl,4) -> 20 | G76: =VLOOKUP(inf_pump_gpm,ro500_pump_cost_cl,5) -> 17
A78: Stage 2 booster pumps pressure | B78: Table range name | C78: Class lookup | D78: Flow | E78: Cost | F78: UL large | G78: UL small
A79: 100 psi | B79: boost_2_pump_lkp_costs | C79: ="ro"&LEFT(A79,3) -> ro100 | D79: =VLOOKUP(boost_pump_2_gpm,ro100_pump_cost_cl,2) -> 5 | E79: =VLOOKUP(boost_pump_2_gpm,ro100_pump_cost_cl,3) -> 3608.133234 | F79: =VLOOKUP(boost_pump_2_gpm,ro100_pump_cost_cl,4) -> 20 | G79: =VLOOKUP(boost_pump_2_gpm,ro100_pump_cost_cl,5) -> 17
A80: 150 psi | C80: ="ro"&LEFT(A80,3) -> ro150 | D80: =VLOOKUP(boost_pump_2_gpm,ro150_pump_cost_cl,2) -> 5 | E80: =VLOOKUP(boost_pump_2_gpm,ro150_pump_cost_cl,3) -> 4107.783874 | F80: =VLOOKUP(boost_pump_2_gpm,ro150_pump_cost_cl,4) -> 20 | G80: =VLOOKUP(boost_pump_2_gpm,ro150_pump_cost_cl,5) -> 17
A81: 200 psi | C81: ro200 | D81: =VLOOKUP(boost_pump_2_gpm,ro200_pump_cost_cl,2) -> 5 | E81: =VLOOKUP(boost_pump_2_gpm,ro200_pump_cost_cl,3) -> 4463.825847 | F81: =VLOOKUP(boost_pump_2_gpm,ro200_pump_cost_cl,4) -> 20 | G81: =VLOOKUP(boost_pump_2_gpm,ro200_pump_cost_cl,5) -> 17
A82: 250 psi | C82: ro250 | D82: =VLOOKUP(boost_pump_2_gpm,ro250_pump_cost_cl,2) -> 5 | E82: =VLOOKUP(boost_pump_2_gpm,ro250_pump_cost_cl,3) -> 4985.084159 | F82: =VLOOKUP(boost_pump_2_gpm,ro250_pump_cost_cl,4) -> 20 | G82: =VLOOKUP(boost_pump_2_gpm,ro250_pump_cost_cl,5) -> 17
A83: 300 psi | C83: ro300 | D83: =VLOOKUP(boost_pump_2_gpm,ro300_pump_cost_cl,2) -> 5 | E83: =VLOOKUP(boost_pump_2_gpm,ro300_pump_cost_cl,3) -> 5200.65447 | F83: =VLOOKUP(boost_pump_2_gpm,ro300_pump_cost_cl,4) -> 20 | G83: =VLOOKUP(boost_pump_2_gpm,ro300_pump_cost_cl,5) -> 17
A84: 350 psi | C84: ro350 | D84: =VLOOKUP(boost_pump_2_gpm,ro350_pump_cost_cl,2) -> 5 | E84: =VLOOKUP(boost_pump_2_gpm,ro350_pump_cost_cl,3) -> 5200.65447 | F84: =VLOOKUP(boost_pump_2_gpm,ro350_pump_cost_cl,4) -> 20 | G84: =VLOOKUP(boost_pump_2_gpm,ro350_pump_cost_cl,5) -> 17
A85: 500 psi | C85: ro500 | D85: =VLOOKUP(boost_pump_2_gpm,ro500_pump_cost_cl,2) -> 5 | E85: =VLOOKUP(boost_pump_2_gpm,ro500_pump_cost_cl,3) -> 6603.298853 | F85: =VLOOKUP(boost_pump_2_gpm,ro500_pump_cost_cl,4) -> 20 | G85: =VLOOKUP(boost_pump_2_gpm,ro500_pump_cost_cl,5) -> 17
A87: Stage 3 booster pump pressure | B87: Table range name | C87: Class lookup | D87: Flow | E87: Cost | F87: UL large | G87: UL small
A88: 100 psi | B88: boost_3_pump_lkp_costs | C88: ="ro"&LEFT(A88,3) -> ro100 | D88: =VLOOKUP(boost_pump_3_gpm,ro100_pump_cost_cl,2) -> 5 | E88: =VLOOKUP(boost_pump_3_gpm,ro100_pump_cost_cl,3) -> 3608.133234 | F88: =VLOOKUP(boost_pump_3_gpm,ro100_pump_cost_cl,4) -> 20 | G88: =VLOOKUP(boost_pump_3_gpm,ro100_pump_cost_cl,5) -> 17
A89: 150 psi | C89: ="ro"&LEFT(A89,3) -> ro150 | D89: =VLOOKUP(boost_pump_3_gpm,ro150_pump_cost_cl,2) -> 5 | E89: =VLOOKUP(boost_pump_3_gpm,ro150_pump_cost_cl,3) -> 4107.783874 | F89: =VLOOKUP(boost_pump_3_gpm,ro150_pump_cost_cl,4) -> 20 | G89: =VLOOKUP(boost_pump_3_gpm,ro150_pump_cost_cl,5) -> 17
A90: 200 psi | C90: ro200 | D90: =VLOOKUP(boost_pump_3_gpm,ro200_pump_cost_cl,2) -> 5 | E90: =VLOOKUP(boost_pump_3_gpm,ro200_pump_cost_cl,3) -> 4463.825847 | F90: =VLOOKUP(boost_pump_3_gpm,ro200_pump_cost_cl,4) -> 20 | G90: =VLOOKUP(boost_pump_3_gpm,ro200_pump_cost_cl,5) -> 17
A91: 250 psi | C91: ro250 | D91: =VLOOKUP(boost_pump_3_gpm,ro250_pump_cost_cl,2) -> 5 | E91: =VLOOKUP(boost_pump_3_gpm,ro250_pump_cost_cl,3) -> 4985.084159 | F91: =VLOOKUP(boost_pump_3_gpm,ro250_pump_cost_cl,4) -> 20 | G91: =VLOOKUP(boost_pump_3_gpm,ro250_pump_cost_cl,5) -> 17
A92: 300 psi | C92: ro300 | D92: =VLOOKUP(boost_pump_3_gpm,ro300_pump_cost_cl,2) -> 5 | E92: =VLOOKUP(boost_pump_3_gpm,ro300_pump_cost_cl,3) -> 5200.65447 | F92: =VLOOKUP(boost_pump_3_gpm,ro300_pump_cost_cl,4) -> 20 | G92: =VLOOKUP(boost_pump_3_gpm,ro300_pump_cost_cl,5) -> 17
A93: 350 psi | C93: ro350 | D93: =VLOOKUP(boost_pump_3_gpm,ro350_pump_cost_cl,2) -> 5 | E93: =VLOOKUP(boost_pump_3_gpm,ro350_pump_cost_cl,3) -> 5200.65447 | F93: =VLOOKUP(boost_pump_3_gpm,ro350_pump_cost_cl,4) -> 20 | G93: =VLOOKUP(boost_pump_3_gpm,ro350_pump_cost_cl,5) -> 17
A94: 500 psi | C94: ro500 | D94: =VLOOKUP(boost_pump_3_gpm,ro500_pump_cost_cl,2) -> 5 | E94: =VLOOKUP(boost_pump_3_gpm,ro500_pump_cost_cl,3) -> 6603.298853 | F94: =VLOOKUP(boost_pump_3_gpm,ro500_pump_cost_cl,4) -> 20 | G94: =VLOOKUP(boost_pump_3_gpm,ro500_pump_cost_cl,5) -> 17

Sheet Pretreatment
A1: Pretreatment Chemical Usage Calculations
A3: Calculation | B3: Range Name | C3: Value | D3: Units | E3: Guidance
A4: Maximum chemical storage tank size | B4: max_chem_tank_size | C4: =MAX(VLOOKUP(10^6,pl_cst_cost_cl,1)-1,VLOOKUP(10^6,fg_cst_cost_cl,1)-1,VLOOKUP(10^6,ss_cst_cost_cl,1)-1) -> 30000 | D4: gallons | E4: The largest size for which costs are available.
A5: Maximum chemical storage tank size excluding stainless steel | B5: max_chem_tank_size_noSS | C5: =MAX(VLOOKUP(10^6,pl_cst_cost_cl,1)-1,VLOOKUP(10^6,fg_cst_cost_cl,1)-1) -> 30000 | D5: gallons | E5: The largest size for which costs are available not including stainless, which is not compatible with hydrochloric acid and sulfuric acid).
A6: Maximum chemical metering pump size | B6: max_cm_pump_size | C6: =MAX(VLOOKUP(10^6,ss_empump_cost_cl,1)-0.01,VLOOKUP(10^6,ss_mmpump_cost_cl,1)-0.01,VLOOKUP(10^6,pvc_empump_cost_cl,1)-0.01,VLOOKUP(10^6,pvc_mmpump_cost_cl,1)-0.01) -> 132 | D6: gph | E6: The largest size for which costs are available.
A7: Maximum chemical metering pump size excluding stainless steel | B7: max_cm_pump_size_noSS | C7: =MAX(,VLOOKUP(10^6,pvc_empump_cost_cl,1)-0.01,VLOOKUP(10^6,pvc_mmpump_cost_cl,1)-0.01) -> 132 | D7: gph | E7: The largest size for which costs are available not including stainless, which is not compatible with hydrochloric acid and sulfuric acid).
A8: Acid dose per day (at peak flow) | B8: acid_dose | C8: =IF(pretreat_acid=0,0,CHOOSE(pretreat_acid,HCl_feed_conc/acid_strength_HCl,H2SO4_feed_conc/acid_strength_H2SO4)) -> 94.07522624 | D8: mg/L | E8: Computed based on feed water analysis and target pH for treated feed.
A9: Acid density | B9: acid_density | C9: =IF(pretreat_acid=0,0,CHOOSE(pretreat_acid,VLOOKUP(acid_strength_HCl,hcl_table_cl,2),VLOOKUP(acid_strength_H2SO4,h2so4_table_cl,2))*8) -> 13.6344 | D9: lbs/gal
A11: Use antiscalant? | B11: use_antiscalant | C11: =IF(LEN(use_antiscalant_I)=0,0,VLOOKUP(use_antiscalant_I,use_antiscalant_table,2,FALSE)) -> 3 | D11: 1 for no, 2 for basic, 3 for premium
A12: Antiscalant dose in feed | B12: anti_dose | C12: =anti_dose_conc*(1-target_recovery) -> 3.75 | D12: mg/L | E12: Based on target dose in concentrate (adjustable in CDA module) and target recovery, assuming all antiscalant ends up in the concentrate.
A14: Acid used per day (at peak flow) | B14: acid_day | C14: =IF(pretreat_acid=0,0,acid_dose*8.34*design_inflow/acid_density) -> 57.08345317 | D14: gal
A15: Antiscalant used per day (at peak flow) | B15: anti_day | C15: =IF(use_antiscalant>1,anti_dose*8.34*design_inflow/anti_density,0) -> 3.102431951 | D15: gal
A17: Pretreatment acid in storage | B17: init_acid | C17: =acid_day*cstore_days*average_flow/design_flow -> 580.8627059 | D17: gal
A18: Pretreatment acid in storage in pounds | B18: init_acid_lbs | C18: =acid_day*cstore_days*acid_density*average_flow/design_flow -> 7919.714477 | D18: lbs
A19: Number of acid tanks | B19: acid_tanks | C19: =ROUNDUP(init_acid/max_chem_tank_size_noSS,0) -> 1
A20: Acid tank volume | B20: acid_tank_size | C20: =IF(acid_day=0,0,ROUNDUP(init_acid/acid_tanks,0)) -> 581 | D20: gal
A21: Antiscalant in storage | B21: init_anti | C21: =anti_day*cstore_days*average_flow/design_flow -> 31.56934134 | D21: gal
A22: Antiscalant in storage in pounds | B22: init_anti_lbs | C22: =anti_day*cstore_days*anti_density*average_flow/design_flow -> 315.6934134 | D22: lbs
A23: Number of antiscalant tanks | B23: anti_tanks | C23: =ROUNDUP(init_anti/max_chem_tank_size,0) -> 1
A24: Antiscalant tank volume | B24: anti_tank_size | C24: =IF(anti_day=0,0,ROUNDUP(init_anti/anti_tanks,0)) -> 32 | D24: gal
A26: Number of acid metering pumps | B26: acid_mpumps | C26: =IF(acid_day=0,0,ROUNDUP(acid_day/24*(1+pump_safety_factor)/max_cm_pump_size_noSS,0)+NRD_acid_mpumps) -> 2
A27: Acid metering pump rating | B27: acid_mpump_rating | C27: =IF(acid_day=0,0,MAX(min_chem_flow,acid_day/24*(1+pump_safety_factor)/(acid_mpumps-NRD_acid_mpumps))) -> 2.973096519 | D27: gph
A28: Number of antiscalant metering pumps | B28: anti_mpumps | C28: =IF(anti_day=0,0,ROUNDUP(anti_day/24*(1+pump_safety_factor)/max_cm_pump_size,0)+NRD_anti_mpumps) -> 2
A29: Antiscalant metering pump rating | B29: anti_mpump_rating | C29: =IF(anti_day=0,0,MAX(min_chem_flow,anti_day/24*(1+pump_safety_factor)/(anti_mpumps-NRD_anti_mpumps))) -> 0.1615849975 | D29: gph
A31: Maximum flow per cartridge filter | B31: flow_per_cart | C31: =VLOOKUP(10^6, cart_cost_cl,1)-0.001 -> 4.32 | D31: MGD
A32: Number of active cartridge filters | B32: active_filters | C32: =MAX(ROUNDUP(design_inflow/flow_per_cart,0),IF(design_flow>=1,min_cart,0)) -> 1
A33: Number of redundant cartridge filters | B33: NRD_filters | C33: =init_NRD_cart+ROUNDDOWN(design_inflow/addl_redund_cart_per_flow,0) -> 1
A34: Total number of cartridge filters | B34: num_filters | C34: =active_filters+NRD_filters -> 2
A35: Flow per filter | B35: filter_size | C35: =design_inflow/active_filters -> 0.9919846367 | D35: MGD
A36: Filter length | B36: filter_len | C36: =VLOOKUP(filter_size,cart_dim_table_cl,5) -> 2.666666667 | D36: ft
A37: Filter width | B37: filter_wid | C37: =VLOOKUP(filter_size,cart_dim_table_cl,6) -> 2.666666667 | D37: ft
A38: Elements per filter | B38: filter_elements | C38: =VLOOKUP(filter_size,cart_dim_table_cl,7) -> 5 | D38: elements/housing
A40: Acid day tank storage volume required (based on design flow) | B40: acid_day_tank_vol_needed | C40: =IF(pretreat_acid=0,0,acid_dose*8.34*design_inflow/acid_density) -> 57.08345317 | D40: gallons
A41: Number of acid day tanks | B41: acid_day_tanks | C41: =IF(acid_day_tank_vol_needed<day_tank_needed,0,ROUNDUP(acid_day_tank_vol_needed/max_chem_tank_size_noSS,0)) -> 1 | D41: units
A42: Volume of acid day tanks | B42: acid_day_tank_vol | C42: =IF(acid_day_tanks=0,0,ROUNDUP(acid_day_tank_vol_needed/acid_day_tanks,0)) -> 58 | D42: gallons
A43: Antiscalant day tank storage volume required (based on design flow) | B43: anti_day_tank_vol_needed | C43: =IF(use_antiscalant>1,anti_dose*8.34*design_inflow/anti_density,0) -> 3.102431951 | D43: gallons
A44: Number of antiscalant day tanks | B44: anti_day_tanks | C44: =IF(anti_day_tank_vol_needed<day_tank_needed,0,ROUNDUP(anti_day_tank_vol_needed/max_chem_tank_size,0)) -> 0 | D44: units
A45: Volume of antiscalant day tanks | B45: anti_day_tank_vol | C45: =IF(anti_day_tanks=0,0,ROUNDUP(anti_day_tank_vol_needed/anti_day_tanks,0)) -> 0 | D45: gallons
A47: Antiscalant tank mixers | E47: Because concentrated acid is injected directly (without dilution), no acid mixers are included
A48: Maximum chemical tank mixer horsepower | B48: cmix_hp_max | C48: =MAX(VLOOKUP(10^6,port_mix_cost_cl,1)-0.1,VLOOKUP(10^6,mount_mix_cost_cl,1)-0.1,VLOOKUP(10^6,imp_mix_cost_cl,1)-0.1) -> 30 | D48: hp
A49: Mixers per storage tank | B49: cmix_per_tank | C49: =IF(AND(include_cmix=1,anti_tanks<>0),ROUNDUP(anti_tank_size/1000*cmix_hp_per/cmix_hp_max,0),0) -> 0 | D49: units
A50: Number of storage tank mixers | B50: cmixers | C50: =anti_tanks*cmix_per_tank -> 0 | D50: units
A51: Mixer size for storage tanks | B51: cmix_size | C51: =IF(cmixers<>0,MAX(min_cmix_hp,anti_tank_size/1000*cmix_hp_per/cmix_per_tank),0) -> 0 | D51: hp
A52: Mixers per day tank | B52: dmix_per_tank | C52: =IF(AND(include_cmix=1,anti_day_tanks<>0),ROUNDUP(anti_day_tank_vol/1000*cmix_hp_per/cmix_hp_max,0),0) -> 0 | D52: units
A53: Number of day tank mixers | B53: dmixers | C53: =anti_day_tanks*dmix_per_tank -> 0 | D53: units
A54: Mixer size for day tanks | B54: dmix_size | C54: =IF(dmixers<>0,MAX(min_cmix_hp,anti_day_tank_vol/1000*cmix_hp_per/dmix_per_tank),0) -> 0 | D54: hp
A56: Sulfuric Acid Purchasing | E56: If hydrochloric acid is used for pretreatment, that purchase quantity is evaluated along with hydrochloric acid for cleaning
A57: Sulfuric acid stored | C57: =IF(pretreat_acid=2,init_acid_lbs,0) -> 7919.714477 | D57: lbs
A58: Quantity required for large quantity purchase | C58: =VLOOKUP("Sulfuric Acid - Large Qty",chem_break_table_cl,2,FALSE) -> 28427.724 | D58: lbs | E58: #N/A indicates that price data do not depend on volume purchased.
A59: Quantity required for mid quantity purchase | C59: =VLOOKUP("Sulfuric Acid - Mid Qty",chem_break_table_cl,2,FALSE) -> 28427.724 | D59: lbs | E59: #N/A indicates that price data do not depend on volume purchased.
A60: Quantity required for small quantity purchase | C60: =VLOOKUP("Sulfuric Acid - Small Qty",chem_break_table_cl,2,FALSE) -> 0 | D60: lbs | E60: #N/A indicates that price data do not depend on volume purchased.
A61: Purchase Type | B61: sulfuric_purchase | C61: =IF(AND(ISNA(C58),ISNA(C59),ISNA(C60)),"",IF(C57>=C58," - Large Qty",IF(C57>=C59," - Mid Qty"," - Small Qty"))) -> - Small Qty | E61: Returns descriptive term based on volume of each purchase for use in determining pricing. Blank indicates that price data do not depend on volume purchased.
A63: Antiscalant Purchasing
A64: Quantity required for large quantity purchase | C64: =VLOOKUP(CHOOSE(use_antiscalant,"","Antiscalant - Basic","Antiscalant - Premium")&" - Large Qty",chem_break_table_cl,2,FALSE) ->  | D64: units | E64: #N/A indicates that price data do not depend on volume purchased.
A65: Quantity required for mid quantity purchase | C65: =VLOOKUP(CHOOSE(use_antiscalant,"","Antiscalant - Basic","Antiscalant - Premium")&" - Mid Qty",chem_break_table_cl,2,FALSE) ->  | D65: units | E65: #N/A indicates that price data do not depend on volume purchased.
A66: Quantity required for small quantity purchase | C66: =VLOOKUP(CHOOSE(use_antiscalant,"","Antiscalant - Basic","Antiscalant - Premium")&" - Small Qty",chem_break_table_cl,2,FALSE) ->  | D66: units | E66: #N/A indicates that price data do not depend on volume purchased.
A67: Purchase Type | B67: anti_purchase | C67: =IF(AND(ISNA(C64),ISNA(C65),ISNA(C66)),"",IF(init_anti_lbs>=C64," - Large Qty",IF(init_anti_lbs>=C65," - Mid Qty"," - Small Qty"))) ->  | E67: Returns descriptive term based on volume of each purchase for use in determining pricing. Blank indicates that price data do not depend on volume purchased.
A69: Secondary Containment for Acid Storage Tanks
A70: Minimum volume required | B70: acid_st_cont_volume | C70: =MAX(acid_tanks*acid_tank_size*sec_cont_pct_of_total,acid_tank_size*sec_cont_pct_of_largest)/7.48 -> 85.44117647 | D70: cubic feet | E70: 7.48 converts gallons to cubic feet
A71: Footprint available | B71: acid_st_cont_fp | C71: =IF(acid_tanks=0,0,acid_tank_fp-acid_tanks*PI()*(acid_tank_diam/2)^2) -> 23.43362939 | D71: square feet | E71: Total footprint minus displacement by tanks themselves
A72: Curb height required | B72: acid_st_curb_height | C72: =IF(acid_tanks=0,0,acid_st_cont_volume/acid_st_cont_fp+sec_cont_freeboard/12) -> 4.146092334 | D72: feet
A73: Curb thickness | B73: acid_st_curb_thick | C73: =IF(acid_tanks=0,0,MIN(sec_cont_max_thick,acid_st_curb_height)) -> 1 | D73: feet
A74: Curb length (long side) | B74: acid_st_curb_len_long | C74: =IF(acid_tanks=0,0,acid_tanks*acid_tank_diam+2*space_at+(acid_tanks-1)*space_at+2*acid_st_curb_thick) -> 8 | D74: feet
A75: Curb length (short side) | B75: acid_st_curb_len_short | C75: =IF(acid_tanks=0,0,acid_tank_diam+2*space_at) -> 6 | D75: feet
A76: Curb concrete volume | B76: acid_st_curb_concrete | C76: =IF(acid_tanks=0,0,ROUNDUP((acid_st_curb_len_long*2+acid_st_curb_len_short*2)*acid_st_curb_height*acid_st_curb_thick/27,0)) -> 5 | D76: cubic yards | E76: 27 converts cubic feet to cubic yards
A77: Chemical resistant coating required | B77: acid_st_coating_gal | C77: =IF(acid_tanks=0,0,ROUNDUP((acid_tank_fp+2*(acid_st_curb_len_long-2*acid_st_curb_thick)*acid_st_curb_height+2*acid_st_curb_len_short*acid_st_curb_height)/sec_cont_coating_cvg,0)) -> 2 | D77: gallons | E77: Covers total footprint plus inside surface and top of curbs
A79: Secondary Containment for Acid Day Tanks
A80: Minimum volume required | B80: acid_dt_cont_volume | C80: =MAX(acid_day_tanks*acid_day_tank_vol*sec_cont_pct_of_total,acid_day_tank_vol*sec_cont_pct_of_largest)/7.48 -> 8.529411765 | D80: cubic feet | E80: 7.48 converts gallons to cubic feet
A81: Footprint available | B81: acid_dt_cont_fp | C81: =IF(acid_day_tanks=0,0,acid_day_tank_fp-acid_day_tanks*PI()*(acid_dt_diam/2)^2) -> 12.85840735 | D81: square feet | E81: Total footprint minus displacement by tanks themselves
A82: Curb height required | B82: acid_dt_curb_height | C82: =IF(acid_day_tanks=0,0,acid_dt_cont_volume/acid_dt_cont_fp+sec_cont_freeboard/12) -> 1.163333455 | D82: feet
A83: Curb thickness | B83: acid_dt_curb_thick | C83: =IF(acid_day_tanks=0,0,MIN(sec_cont_max_thick,acid_dt_curb_height)) -> 1 | D83: feet
A84: Curb length (long side) | B84: acid_dt_curb_len_long | C84: =IF(acid_day_tanks=0,0,acid_day_tanks*acid_dt_diam+2*space_acid_dt+(acid_day_tanks-1)*space_acid_dt+2*acid_dt_curb_thick) -> 6 | D84: feet
A85: Curb length (short side) | B85: acid_dt_curb_len_short | C85: =IF(acid_day_tanks=0,0,acid_dt_diam+2*space_acid_dt) -> 4 | D85: feet
A86: Curb concrete volume | B86: acid_dt_curb_concrete | C86: =IF(acid_day_tanks=0,0,ROUNDUP((acid_dt_curb_len_long*2+acid_dt_curb_len_short*2)*acid_dt_curb_height*acid_dt_curb_thick/27,0)) -> 1 | D86: cubic yards | E86: 27 converts cubic feet to cubic yards
A87: Chemical resistant coating required | B87: acid_dt_coating_gal | C87: =IF(acid_day_tanks=0,0,ROUNDUP((acid_day_tank_fp+2*(acid_dt_curb_len_long-2*acid_dt_curb_thick)*acid_dt_curb_height+2*acid_dt_curb_len_short*acid_dt_curb_height)/sec_cont_coating_cvg,0)) -> 1 | D87: gallons | E87: Covers total footprint plus inside surface and top of curbs
A89: Secondary Containment for Antiscalant Storage Tanks
A90: Minimum volume required | B90: anti_st_cont_volume | C90: =MAX(anti_tanks*anti_tank_size*sec_cont_pct_of_total,anti_tank_size*sec_cont_pct_of_largest)/7.48 -> 4.705882353 | D90: cubic feet | E90: 7.48 converts gallons to cubic feet
A91: Footprint available | B91: anti_st_cont_fp | C91: =IF(anti_tanks=0,0,anti_tank_fp-anti_tanks*PI()*(anti_tank_diam/2)^2) -> 10.48285413 | D91: square feet | E91: Total footprint minus displacement by tanks themselves
A92: Curb height required | B92: anti_st_curb_height | C92: =IF(anti_tanks=0,0,anti_st_cont_volume/anti_st_cont_fp+sec_cont_freeboard/12) -> 0.9489123185 | D92: feet
A93: Curb thickness | B93: anti_st_curb_thick | C93: =IF(anti_tanks=0,0,MIN(sec_cont_max_thick,anti_st_curb_height)) -> 0.9489123185 | D93: feet
A94: Curb length (long side) | B94: anti_st_curb_len_long | C94: =IF(anti_tanks=0,0,anti_tanks*anti_tank_diam+2*space_anti+(anti_tanks-1)*space_anti+2*anti_st_curb_thick) -> 5.397824637 | D94: feet
A95: Curb length (short side) | B95: anti_st_curb_len_short | C95: =IF(anti_tanks=0,0,anti_tank_diam+2*space_anti) -> 3.5 | D95: feet
A96: Curb concrete volume | B96: anti_st_curb_concrete | C96: =IF(anti_tanks=0,0,ROUNDUP((anti_st_curb_len_long*2+anti_st_curb_len_short*2)*anti_st_curb_height*anti_st_curb_thick/27,0)) -> 1 | D96: cubic yards | E96: 27 converts cubic feet to cubic yards
A97: Chemical resistant coating required | B97: anti_st_coating_gal | C97: =IF(anti_tanks=0,0,ROUNDUP((anti_tank_fp+2*(anti_st_curb_len_long-2*anti_st_curb_thick)*anti_st_curb_height+2*anti_st_curb_len_short*anti_st_curb_height)/sec_cont_coating_cvg,0)) -> 1 | D97: gallons | E97: Covers total footprint plus inside surface and top of curbs
A99: Secondary Containment for Antiscalant Day Tanks
A100: Minimum volume required | B100: anti_dt_cont_volume | C100: =MAX(anti_day_tanks*anti_day_tank_vol*sec_cont_pct_of_total,anti_day_tank_vol*sec_cont_pct_of_largest)/7.48 -> 0 | D100: cubic feet | E100: 7.48 converts gallons to cubic feet
A101: Footprint available | B101: anti_dt_cont_fp | C101: =IF(anti_day_tanks=0,0,anti_day_tank_fp-anti_day_tanks*PI()*(anti_dt_diam/2)^2) -> 0 | D101: square feet | E101: Total footprint minus displacement by tanks themselves
A102: Curb height required | B102: anti_dt_curb_height | C102: =IF(anti_day_tanks=0,0,anti_dt_cont_volume/anti_dt_cont_fp+sec_cont_freeboard/12) -> 0 | D102: feet
A103: Curb thickness | B103: anti_dt_curb_thick | C103: =IF(anti_day_tanks=0,0,MIN(sec_cont_max_thick,anti_dt_curb_height)) -> 0 | D103: feet
A104: Curb length (long side) | B104: anti_dt_curb_len_long | C104: =IF(anti_day_tanks=0,0,anti_day_tanks*anti_dt_diam+2*space_anti_dt+(anti_day_tanks-1)*space_anti_dt+2*anti_dt_curb_thick) -> 0 | D104: feet
A105: Curb length (short side) | B105: anti_dt_curb_len_short | C105: =IF(anti_day_tanks=0,0,anti_dt_diam+2*space_anti_dt) -> 0 | D105: feet
A106: Curb concrete volume | B106: anti_dt_curb_concrete | C106: =IF(anti_day_tanks=0,0,ROUNDUP((anti_dt_curb_len_long*2+anti_dt_curb_len_short*2)*anti_dt_curb_height*anti_dt_curb_thick/27,0)) -> 0 | D106: cubic yards | E106: 27 converts cubic feet to cubic yards
A107: Chemical resistant coating required | B107: anti_dt_coating_gal | C107: =IF(anti_day_tanks=0,0,ROUNDUP((anti_day_tank_fp+2*(anti_dt_curb_len_long-2*anti_dt_curb_thick)*anti_dt_curb_height+2*anti_dt_curb_len_short*anti_dt_curb_height)/sec_cont_coating_cvg,0)) -> 0 | D107: gallons | E107: Covers total footprint plus inside surface and top of curbs

Sheet Feed Water
A1: Feed Water Chemistry Calculations
A3: Calculation | B3: Range Name | C3: Value | D3: Units | E3: Guidance
A4: Temperature | B4: temp_K | C4: =T_feed+zeroC_in_K -> 288.15 | D4: Kelvins
A6: Selected water index | B6: water_index | C6: 3 | E6: index into the feed water table; linked to dropdown on the input sheet
A8: Input concentrations, ppm
A9: Ca | B9: feed_conc_I | C9: =OFFSET(water_table,water_index-1,1,1,1) -> 119 | D9: ppm | E9: Loaded from the feed water table. CO3 and CO2 are computed later.
A10: Mg | C10: =OFFSET(water_table,water_index-1,2,1,1) -> 100 | D10: ppm
A11: Na | C11: =OFFSET(water_table,water_index-1,3,1,1) -> 1000 | D11: ppm
A12: K | C12: =OFFSET(water_table,water_index-1,4,1,1) -> 20 | D12: ppm
A13: Ba | C13: =OFFSET(water_table,water_index-1,5,1,1) -> 0.125 | D13: ppm
A14: Sr | C14: =OFFSET(water_table,water_index-1,6,1,1) -> 10 | D14: ppm
A15: HCO3 | C15: =MAX(OFFSET(water_table,water_index-1,7,1,1),0.01) -> 225 | D15: ppm | E15: Minimum bicarbonate value is 0.01 ppm to avoid division by zero
A16: CO3 | C16: 0 | D16: ppm | E16: CO3 and CO2 are computed farther down in the sheet.
A17: Cl | C17: =OFFSET(water_table,water_index-1,8,1,1) -> 1550 | D17: ppm
A18: SO4 | C18: =OFFSET(water_table,water_index-1,9,1,1) -> 520 | D18: ppm
A19: F | C19: =OFFSET(water_table,water_index-1,10,1,1) -> 2 | D19: ppm
A20: SiO2 | C20: =OFFSET(water_table,water_index-1,11,1,1) -> 20 | D20: ppm
A21: CO2 | C21: 0 | D21: ppm | E21: CO3 and CO2 are computed farther down in the sheet.
A22: Feed pH before acid pretreatment | B22: feed_pH | C22: =OFFSET(water_table,water_index-1,12,1,1) -> 8
A23: Water type | B23: feed_water_type | C23: =IF(OFFSET(water_table,water_index-1,13,1,1)="GW",1,2) -> 1 | E23: 1 for ground, 2 for surface
A24: SDI (15 min) | B24: feed_sdi | C24: =OFFSET(water_table,water_index-1,14,1,1) -> 2.8
A26: Input concentrations, meq/l
A27: Ca | B27: feed_conc_I_meq | C27: =feed_conc_I/ion_meq_weights -> 5.938123752 | D27: meq/l
A28: Mg | C28: 8.228759515 | D28: meq/l
A29: Na | C29: 43.49717268 | D29: meq/l
A30: K | C30: 0.5115351169 | D30: meq/l
A31: Ba | C31: 0.001820299985 | D31: meq/l
A32: Sr | C32: 0.2282583885 | D32: meq/l
A33: HCO3 | C33: 3.687920013 | D33: meq/l
A34: CO3 | C34: 0 | D34: meq/l
A35: Cl | C35: 43.7235543 | D35: meq/l
A36: SO4 | C36: 10.82656673 | D36: meq/l
A37: F | C37: 0.1052631579 | D37: meq/l
A38: SiO2 | C38: 0.3703703704 | D38: meq/l
A39: CO2 | C39: 0 | D39: meq/l
A41: Carbonate equilibrium calculations | E41: Method of Stumm and Morgan, Aquatic Chemistry; implementation from Tom Wolfe, PerLorica, Inc.
A42: Ionic strength | B42: feed_ion_strength | C42: =ionstrength(feed_conc_I_meq,ion_charge) -> 0.07135662169
A43: pK1 | B43: pK1_uncorr_feed | C43: =-0.007*(temp_K)+8.4454 -> 6.42835
A44: pK2 | B44: pK2_uncorr_feed | C44: =-0.0101*(temp_K)+13.368 -> 10.457685
A45: pKSo | B45: pKSo_feed | C45: =-(-171.9065 - 0.077993 * temp_K + 2839.319 / temp_K + 71.595 * LOG(temp_K) / LOG(10)) -> 8.430173134 | E45: Used later to calculate LSI
A46: pKWater | B46: pKWater_feed | C46: =-0.0333*(temp_K)+23.955 -> 14.359605 | E46: Used later to calculate LSI
A47: Ion strength correction for pK1 and pK2 | B47: feed_pK_corr | C47: =SQRT(feed_ion_strength)/(1+1.4*SQRT(feed_ion_strength)) -> 0.1944185056
A48: pK1, corrected for ionic strength | B48: pK1_feed | C48: =pK1_uncorr_feed-0.5*feed_pK_corr -> 6.331140747
A49: pK2, corrected for ionic strength | B49: pK2_feed | C49: =pK2_uncorr_feed-2*feed_pK_corr -> 10.06884799
A50: K1 = 10^-pK1 | B50: K1_feed | C50: =10^(-pK1_feed) -> 4.665081687e-07
A51: K2 = 10^-pK2 | B51: K2_feed | C51: =10^(-pK2_feed) -> 8.533987673e-11
A52: [H+] = 10^-pH | B52: H_feed | C52: =10^-feed_pH -> 1e-08
A54: Mole fraction HCO3 | B54: frac_HCO3_feed | C54: =1 / (H_feed / K1_feed + 1 + K2_feed / H_feed) -> 0.9709022164
A55: Mole fraction CO3 | B55: frac_CO3_feed | C55: =1 / (H_feed ^ 2 / (K1_feed * K2_feed) + H_feed / K2_feed + 1) -> 0.008285667546
A56: Mole fraction CO2 | B56: frac_CO2_feed | C56: =1 / (1 + K1_feed / H_feed + (K1_feed * K2_feed) / H_feed ^ 2) -> 0.02081211609
A58: HCO3, mol/l | B58: HCO3_feed_mol | C58: =C15/(ion_hco3 ion_mol_wt)/1000 -> 0.003687920013 | D58: mol/l
A59: CO3, mol/l | B59: CO3_feed_mol | C59: =HCO3_feed_mol/frac_HCO3_feed*frac_CO3_feed -> 3.147266393e-05 | D59: mol/l
A60: CO2, mol/l | B60: CO2_feed_mol | C60: =HCO3_feed_mol/frac_HCO3_feed*frac_CO2_feed -> 7.90537071e-05 | D60: mol/l
A62: Dissolved inorganic carbon in feed, mol/l | B62: carbon_feed_mol | C62: =SUM(C58:C60) -> 0.003798446384 | D62: mol/l
A64: Feed concentrations, ppm, unbalanced
A65: Ca | B65: feed_ppm_unbal | C65: =C9 -> 119 | D65: ppm | E65: These are copied from the feed water table, except for CO3 and CO2
A66: Mg | C66: 100 | D66: ppm
A67: Na | C67: 1000 | D67: ppm
A68: K | C68: 20 | D68: ppm
A69: Ba | C69: 0.125 | D69: ppm
A70: Sr | C70: 10 | D70: ppm
A71: HCO3 | C71: 225 | D71: ppm
A72: CO3 | C72: =CO3_feed_mol*(ion_co3 ion_mol_wt)*1000 -> 1.888674562 | D72: ppm | E72: based on the mole fraction computed above and the HCO3 concentration
A73: Cl | C73: =C17 -> 1550 | D73: ppm
A74: SO4 | C74: =C18 -> 520 | D74: ppm
A75: F | C75: =C19 -> 2 | D75: ppm
A76: SiO2 | C76: =C20 -> 20 | D76: ppm
A77: CO2 | C77: =CO2_feed_mol*(ion_co2 ion_mol_wt)*1000 -> 3.481525261 | D77: ppm | E77: based on the mole fraction computed above and the HCO3 concentration
A79: Feed concentrations, meq/l, unbalanced
A80: Ca | B80: feed_meq_unbal | C80: =feed_ppm_unbal/ion_meq_weights -> 5.938123752 | D80: meq/l
A81: Mg | C81: 8.228759515 | D81: meq/l
A82: Na | C82: 43.49717268 | D82: meq/l
A83: K | C83: 0.5115351169 | D83: meq/l
A84: Ba | C84: 0.001820299985 | D84: meq/l
A85: Sr | C85: 0.2282583885 | D85: meq/l
A86: HCO3 | C86: 3.687920013 | D86: meq/l
A87: CO3 | C87: 0.06294532786 | D87: meq/l
A88: Cl | C88: 43.7235543 | D88: meq/l
A89: SO4 | C89: 10.82656673 | D89: meq/l
A90: F | C90: 0.1052631579 | D90: meq/l
A91: SiO2 | C91: 0.3703703704 | D91: meq/l
A92: CO2 | C92: 0.1581074142 | D92: meq/l
A94: Total cations | B94: feed_cations | C94: =SUM(C80:C85) -> 58.40566976
A95: Total anions | B95: feed_anions | C95: =SUM(C86:C90) -> 58.40624953
A96: Difference | B96: feed_difference | C96: =feed_cations-feed_anions -> -0.0005797736877
A97: Cation balance factor | B97: feed_cat_bal | C97: =1-feed_difference/feed_cations/2 -> 1.000004963
A98: Anion balance factor | B98: feed_an_bal | C98: =1+feed_difference/feed_anions/2 -> 0.9999950367
A100: Feed concentrations, meq/l, balanced, before acid addition
A101: Ca | B101: feed_meq_bal | C101: =C80:C85*feed_cat_bal -> 5.938153225 | D101: meq/l
A102: Mg | C102: 8.228800357 | D102: meq/l
A103: Na | C103: 43.49738857 | D103: meq/l
A104: K | C104: 0.5115376558 | D104: meq/l
A105: Ba | C105: 0.00182030902 | D105: meq/l
A106: Sr | C106: 0.2282595214 | D106: meq/l
A107: HCO3 | C107: =C86:C90*feed_an_bal -> 3.687901709 | D107: meq/l
A108: CO3 | C108: 0.06294501544 | D108: meq/l
A109: Cl | C109: 43.72333729 | D109: meq/l
A110: SO4 | C110: 10.82651299 | D110: meq/l
A111: F | C111: 0.1052626354 | D111: meq/l
A112: SiO2 | C112: =C91:C92 -> 0.3703703704 | D112: meq/l
A113: CO2 | C113: 0.1581074142 | D113: meq/l
A115: Feed concentrations, ppm, balanced, before acid addition
A116: Ca | B116: feed_ppm_bal | C116: =feed_meq_bal*ion_meq_weights -> 119.0005906 | D116: ppm
A117: Mg | C117: 100.0004963 | D117: ppm
A118: Na | C118: 1000.004963 | D118: ppm
A119: K | C119: 20.00009927 | D119: ppm
A120: Ba | C120: 0.1250006204 | D120: ppm
A121: Sr | C121: 10.00004963 | D121: ppm
A122: HCO3 | C122: 224.9988833 | D122: ppm
A123: CO3 | C123: 1.888665188 | D123: ppm
A124: Cl | C124: 1549.992307 | D124: ppm
A125: SO4 | C125: 519.9974191 | D125: ppm
A126: F | C126: 1.999990073 | D126: ppm
A127: SiO2 | C127: 20 | D127: ppm
A128: CO2 | B128: feed_gas_bal | C128: 3.481525261 | D128: ppm
A130: TDS of untreated feed | B130: untreated_feed_tds | C130: =SUM(feed_ppm_bal)-SUM(feed_gas_bal) -> 3568.008464 | D130: ppm
A132: Saturation indices for untreated feed
A133: Langelier Saturation Index (CaCO3)
A134: [OH-] in untreated feed | B134: feed_OHminus | C134: =10^(feed_pH-pKWater_feed) -> 4.369130332e-07 | E134: LSI implementation from TFSP, PerLorica, Inc.
A135: Ion strength correction for HCO3 | B135: feed_hco3_corr | C135: =0.5*(SQRT(feed_ion_strength)/(1+SQRT(feed_ion_strength))-0.3*feed_ion_strength) -> 0.09470294438
A136: Ion strength correction for CO3 | B136: feed_co3_corr | C136: =0.5*4*(SQRT(feed_ion_strength)/(1+SQRT(feed_ion_strength))-0.3*feed_ion_strength) -> 0.3788117775
A137: [Alk] of untreated feed | B137: feed_alkalinity | C137: =C107*10^-feed_hco3_corr/1000+C108*10^-feed_co3_corr/1000+feed_OHminus-H_feed -> 0.002992091608
A138: pAlk of untreated feed | B138: feed_pAlk | C138: =-LOG10(feed_alkalinity) -> 2.524025114
A139: [Ca] of untreated feed | B139: feed_Ca | C139: =C101/2*10^-feed_co3_corr/1000 -> 0.001241108147
A140: pCa of untreated feed | B140: feed_pCa | C140: =-LOG10(feed_Ca) -> 2.906190373
A141: pH_s of untreated feed | B141: feed_pH_s | C141: =pK2_uncorr_feed-pKSo_feed+feed_pAlk+feed_pCa -> 7.457727354
A142: LSI of untreated feed | B142: feed_LSI | C142: =feed_pH-feed_pH_s -> 0.5422726463
A144: SiO2 saturation
A145: SiO2 saturation conc before pH correction | B145: sio2_sat_base | C145: =2*T_feed+75 -> 105 | D145: mg/l | E145: Saturation dependence on temperature and pH from ASTM D4993; method and fit parameters from TFSP, PerLorica, Inc.
A146: pH correction factor | B146: feed_sio2_sat_corr | C146: =IF(feed_pH<7,1.84-0.12*feed_pH,IF(feed_pH>7.75,((0.3102*feed_pH-7.7173)*feed_pH+64.611)*feed_pH-180.63,1)) -> 1.1732
A147: SiO2 saturation concentration | B147: feed_sio2_sat | C147: =sio2_sat_base*feed_sio2_sat_corr -> 123.186 | D147: mg/l
A148: SiO2 saturation percentage | B148: feed_sio2_sat_pct | C148: =C127/feed_sio2_sat -> 0.1623561119
A150: CaSO4 saturation
A151: KSP for CaSO4 | B151: feed_caso4_ksp | C151: =(((1.1802*feed_ion_strength-6.6149)*feed_ion_strength+22.163)*feed_ion_strength+0.6981)*0.0001 -> 0.0002246324078 | E151: Ksp dependence on ion strength from ASTM D4692, Figure 1; method and fit parameters from TFSP, PerLorica, Inc.
A152: Ion product [Ca]*[SO4] | B152: feed_caso4_ip | C152: =C116/(ion_ca ion_mol_wt)/1000*C125/(ion_so4 ion_mol_wt)/1000 -> 1.607237326e-05
A153: CaSO4 saturation percentage | B153: feed_caso4_sat_pct | C153: =feed_caso4_ip/feed_caso4_ksp -> 0.07154966384
A155: CaF2 saturation
A156: van't Hoff temperature correction for Ksp | B156: caf2_vanthoff_corr | C156: =-4.69/0.00198719*(1/(T_feed+zeroC_in_K)-1/(25+zeroC_in_K)) -> -0.2747135063 | E156: ln(K2/K1) is equal to this factor; based on enthalpy of 4.69 kcal
A157: pKsp for CaF2 at 25 deg C | B157: caf2_pksp_base | C157: 10.6 | E157: Data from PHREEQC; method from TFSP, PerLorica, Inc.
A158: Ksp for CaF2 at 25 deg C | B158: caf2_ksp_base | C158: =10^(-caf2_pksp_base) -> 2.511886432e-11
A159: Ksp for CaF2 at feed temperature | B159: caf2_ksp | C159: =caf2_ksp_base*EXP(caf2_vanthoff_corr) -> 1.908505607e-11
A160: Ionic strength correction for Ca | B160: feed_ca_corr | C160: =10 ^-(0.5*4*SQRT(feed_ion_strength) / (1+1.4*SQRT(feed_ion_strength)-0.2*feed_ion_strength)) -> 0.4046520996
A161: Ionic strength correction for F | B161: feed_f_corr | C161: =10 ^ -(0.5*SQRT(feed_ion_strength) / (1+SQRT(feed_ion_strength))-0.2*feed_ion_strength) -> 0.8107087991
A162: Ca, mol/L, corrected | B162: feed_ca_molL | C162: =C116/(ion_ca ion_mol_wt)/1000*feed_ca_corr -> 0.001201443085 | D162: mol/L
A163: F, mol/L, corrected | B163: feed_f_molL | C163: =C126/(ion_f ion_mol_wt)/1000*feed_f_corr -> 8.533734477e-05 | D163: mol/L
A164: Ion product [Ca]*[F]^2 | B164: feed_caf2_ip | C164: =feed_ca_molL*feed_f_molL*feed_f_molL -> 8.749464109e-12
A165: CaF2 saturation percentage | B165: feed_caf2_sat_pct | C165: =feed_caf2_ip/caf2_ksp -> 0.4584458164
A167: BaSO4 saturation
A168: KSP for BaSO4 | B168: feed_baso4_ksp | C168: =((((3.872*feed_ion_strength-5.4453)*feed_ion_strength+0.6729)*feed_ion_strength+8.263)*feed_ion_strength+0.1374)*0.000000001 -> 7.285679531e-10 | E168: Ksp dependence on ion strength from ASTM D4692, Figure 3; method and fit parameters from TFSP, PerLorica, Inc.
A169: Ion product [Ba]*[SO4] | B169: feed_baso4_ip | C169: =C120/(ion_ba ion_mol_wt)/1000*C125/(ion_so4 ion_mol_wt)/1000 -> 4.926899815e-09
A170: BaSO4 saturation percentage | B170: feed_baso4_sat_pct | C170: =feed_baso4_ip/feed_baso4_ksp -> 6.762443769
A172: SrSO4 saturation
A173: KSP for SrSO4 | B173: feed_srso4_ksp | C173: =IF(feed_ion_strength<=0.3,((((152941*feed_ion_strength-51018)*feed_ion_strength+3871.8)*feed_ion_strength+2216.3)*feed_ion_strength + 25.318)*0.00000001,(((507.35*feed_ion_strength-2516.8)*feed_ion_strength+4396.6)*feed_ion_strength-177.1)*0.00000001) -> 1.886087114e-06 | E173: Ksp dependence on ion strength from ASTM D4692, Figure 2; method and fit parameters from TFSP, PerLorica, Inc.
A174: Ion product [Sr]*[SO4] | B174: feed_srso4_ip | C174: =C121/(ion_sr ion_mol_wt)/1000*C125/(ion_so4 ion_mol_wt)/1000 -> 6.178136686e-07
A175: SrSO4 saturation percentage | B175: feed_srso4_sat_pct | C175: =feed_srso4_ip/feed_srso4_ksp -> 0.3275636973
A177: Treated Feed
A178: Acid for pretreatment | B178: pretreat_acid | C178: =IF(LEN(pretreat_acid_I)=0,0,VLOOKUP(pretreat_acid_I,pretreat_acid_table,2,FALSE)) -> 2 | E178: 1 for HCl, 2 for H2SO4, 0 for no acid pretreatment
A179: [H+] after acid pretreatment | B179: H_tfeed | C179: =IF(pretreat_acid=0,H_feed,10^-(treated_feed_pH)) -> 3.16227766e-07
A180: Mole fraction HCO3 in treated feed | B180: frac_HCO3_tfeed | C180: =IF(pretreat_acid=0,"n/a",1 / (H_tfeed / K1_feed + 1 + K2_feed / H_tfeed)) -> 0.5959010269 | E180: Assumes that acid dosing has little effect on the ion strength; therefore K1 and K2 need not be adjusted.
A181: Mole fraction CO3 in treated feed | B181: frac_CO3_tfeed | C181: =IF(pretreat_acid=0,"n/a",1 / (H_tfeed ^ 2 / (K1_feed * K2_feed) + H_tfeed / K2_feed + 1)) -> 0.0001608148482
A182: Mole fraction CO2 in treated feed | B182: frac_CO2_tfeed | C182: =IF(pretreat_acid=0,"n/a", 1 / (1 + K1_feed / H_tfeed + (K1_feed * K2_feed) / H_tfeed ^ 2)) -> 0.4039381583
A183: HCO3 in treated feed, meq/l | B183: HCO3_tfeed_meq | C183: =IF(pretreat_acid=0,C107,carbon_feed_mol*frac_HCO3_tfeed*1000) -> 2.263498101 | D183: meq/l
A184: CO3 in treated feed, meq/l | B184: CO3_tfeed_meq | C184: =IF(pretreat_acid=0,C108,carbon_feed_mol*frac_CO3_tfeed*1000*2) -> 0.001221693157 | D184: meq/l
A185: CO2 in treated feed, meq/l | B185: CO2_tfeed_meq | C185: =IF(pretreat_acid=0,C113,carbon_feed_mol*frac_CO2_tfeed*1000*2) -> 3.068674873 | D185: meq/l
A186: Alkalinity change in treated feed, meq/l | B186: alk_delta_tfeed | C186: =IF(pretreat_acid=0,0,HCO3_tfeed_meq+CO3_tfeed_meq-C107-C108) -> -1.48612693 | D186: meq/l
A187: Cl addition for treated feed, meq/l | B187: Cl_delta_tfeed | C187: =IF(pretreat_acid=1,-alk_delta_tfeed,0) -> 0 | D187: meq/l
A188: SO4 addition for treated feed, meq/l | B188: SO4_delta_tfeed | C188: =IF(pretreat_acid=2,-alk_delta_tfeed,0) -> 1.48612693 | D188: meq/l
A189: Cl addition for treated feed, mg/l | B189: Cl_delta_tfeed_ppm | C189: =Cl_delta_tfeed*(ion_cl ion_meq_weights) -> 0 | D189: mg/l
A190: SO4 addition for treated feed, mg/l | B190: SO4_delta_tfeed_ppm | C190: =SO4_delta_tfeed*(ion_so4 ion_meq_weights) -> 71.37867647 | D190: mg/l
A191: HCl addition for treated feed, mg/l | B191: HCl_feed_conc | C191: =IF(pretreat_acid=1,(Cl_delta_tfeed_ppm+1),0) -> 0 | D191: mg/l | E191: For 100% HCl.
A192: H2SO4 addition for treated feed, mg/l | B192: H2SO4_feed_conc | C192: =IF(pretreat_acid=2,(SO4_delta_tfeed_ppm+2),0) -> 73.37867647 | D192: mg/l | E192: For 100% H2SO4.
A194: Treated feed concentrations, meq/l
A195: Ca | B195: tfeed_meq_bal | C195: =C101 -> 5.938153225 | D195: meq/l
A196: Mg | C196: 8.228800357 | D196: meq/l
A197: Na | C197: 43.49738857 | D197: meq/l
A198: K | C198: 0.5115376558 | D198: meq/l
A199: Ba | C199: 0.00182030902 | D199: meq/l
A200: Sr | C200: 0.2282595214 | D200: meq/l
A201: HCO3 | C201: =HCO3_tfeed_meq -> 2.263498101 | D201: meq/l
A202: CO3 | C202: =CO3_tfeed_meq -> 0.001221693157 | D202: meq/l
A203: Cl | C203: =C109+Cl_delta_tfeed -> 43.72333729 | D203: meq/l
A204: SO4 | C204: =C110+SO4_delta_tfeed -> 12.31263992 | D204: meq/l
A205: F | C205: =C111 -> 0.1052626354 | D205: meq/l
A206: SiO2 | C206: =C112 -> 0.3703703704 | D206: meq/l
A207: CO2 | C207: =CO2_tfeed_meq -> 3.068674873 | D207: meq/l
A209: Treated feed concentrations, ppm, balanced
A210: Ca | B210: tfeed_ppm_bal | C210: =tfeed_meq_bal*ion_meq_weights -> 119.0005906 | D210: ppm
A211: Mg | C211: 100.0004963 | D211: ppm
A212: Na | C212: 1000.004963 | D212: ppm
A213: K | C213: 20.00009927 | D213: ppm
A214: Ba | C214: 0.1250006204 | D214: ppm
A215: Sr | C215: 10.00004963 | D215: ppm
A216: HCO3 | C216: 138.0960191 | D216: ppm
A217: CO3 | C217: 0.03665690318 | D217: ppm
A218: Cl | C218: 1549.992307 | D218: ppm
A219: SO4 | C219: 591.3760956 | D219: ppm
A220: F | C220: 1.999990073 | D220: ppm
A221: SiO2 | C221: 20 | D221: ppm
A222: CO2 | B222: tfeed_gas_bal | C222: 67.57222071 | D222: ppm
A224: TDS of treated feed | B224: treated_feed_tds | C224: =SUM(tfeed_ppm_bal)-SUM(tfeed_gas_bal) -> 3550.632268 | D224: ppm
... 41 more rows

Sheet Train Design
A1: Train Design Calculations
A3: Calculation | B3: Range Name | C3: Value | D3: Units | E3: Guidance
A4: Flux guidance | E4: Used only for guidance on the input sheet.
A5: Min flux for this SDI | B5: flux_min | C5: =CHOOSE(feed_water_type,IF(feed_sdi<1,flux_min_SDI1_GW,IF(feed_sdi<3,flux_min_SDI3_GW,flux_min_SDI5_GW)),IF(feed_sdi<1,flux_min_SDI1_SW,IF(feed_sdi<3,flux_min_SDI3_SW,flux_min_SDI5_SW))) -> 16 | D5: gfd
A6: Max flux for this SDI | B6: flux_max | C6: =CHOOSE(feed_water_type,IF(feed_sdi<1,flux_max_SDI1_GW,IF(feed_sdi<3,flux_max_SDI3_GW,flux_max_SDI5_GW)),IF(feed_sdi<1,flux_max_SDI1_SW,IF(feed_sdi<3,flux_max_SDI3_SW,flux_max_SDI5_SW))) -> 20 | D6: gfd
A8: Full System
A9: Total feed flow | B9: design_Qfeed_full | C9: =design_flow_rate/target_recovery -> 685.1851852 | D9: gpm | E9: Estimated, based on the target recovery
A10: Total permeate flow | B10: design_Qperm_full | C10: =design_flow_rate -> 513.8888889 | D10: gpm
A11: Area required | B11: total_area_req | C11: =design_flow*1000000/design_flux -> 46250 | D11: ft^2 | E11: Based on the design flux
A12: Area per element | C12: =sys_element_area_I -> 400 | D12: ft^2 | E12: For reference only
A13: Number of elements required | B13: total_elements_req | C13: =ROUNDUP(total_area_req/sys_element_area_I,0) -> 116 | D13: elements
A15: Element class | B15: element_class | C15: =IF(sys_element_diam<5, 1, IF(sys_element_diam<9,2,3)) -> 2 | E15: Shorthand for element diameter. 1 -> 4", 2 -> 8", 3 -> 16-18"
A17: Number of stages, vessels, and elements in series
A18: Maximum recovery per element | B18: max_Y_el | C18: =max_recovery -> 0.17
A19: Average recovery per element, absolute | B19: avg_Y_el_targ | C19: =avg_Y_el_targ_frac*max_Y_el -> 0.119
A20: Number of elements in series | B20: n_el_series | C20: =LN(1-target_recovery)/LN(1-avg_Y_el_targ) -> 10.94175249
A21: Maximum number of elements per vessel | B21: el_per_vess_max | C21: =CHOOSE(element_class,el_per_vess_max_8,el_per_vess_max_8,el_per_vess_max_16) -> 8 | E21: 16-18" elements use fewer elements per vessel than 8" or 4" elements
A22: Minimum number of elements per vessel | B22: el_per_vess_std | C22: =CHOOSE(element_class,el_per_vess_std_8,el_per_vess_std_8,el_per_vess_std_16) -> 6
A23: Number of stages | B23: n_stages | C23: =ROUNDUP(n_el_series/el_per_vess_max,0) -> 2
A24: Elements per vessel | B24: el_per_vess | C24: =IF(n_stages>1,MAX(el_per_vess_std,ROUNDUP(n_el_series/n_stages,0)),ROUNDUP(n_el_series,0)) -> 6
A25: Area per vessel | B25: area_per_vess | C25: =el_per_vess*sys_element_area_I -> 2400 | D25: ft^2
A26: Total number of elements in series | B26: el_series | C26: =n_stages*el_per_vess -> 12
A27: Average recovery per element | B27: avg_Y_el | C27: =1-(1-target_recovery)^(1/el_series) -> 0.1091012819
A28: Total number of pressure vessels before train split | B28: n_vessels | C28: =ROUNDUP(total_elements_req/el_per_vess,0) -> 20
A29: Total number of elements before train split | B29: n_elements | C29: =n_vessels*el_per_vess -> 120
A31: Train Design
A32: Maximum permeate flow per rack | B32: max_flow_rack | C32: =CHOOSE(element_class, max_flow_rack_4, max_flow_rack_8, max_flow_rack_16) -> 3 | D32: MGD
A33: Number of operating trains | B33: op_trains | C33: =ROUNDUP(IF(op_trains_I>0,op_trains_I,MAX(min_op_trains,design_flow/max_flow_rack)),0) -> 2 | D33: trains | E33: Computed on the assumption that one rack equals one train.
A34: PVs per operating train | B34: PVs_per_train_prelim | C34: =ROUNDUP(n_vessels/op_trains,0) -> 10 | D34: PVs/train
A35: Elements per operating train | B35: el_per_train_prelim | C35: =PVs_per_train_prelim*el_per_vess -> 60 | D35: elements/train
A37: Feed flow per train | B37: design_Qfeed | C37: =design_Qfeed_full/op_trains -> 342.5925926 | D37: gpm
A38: Permeate flow per train | B38: design_Qperm | C38: =design_Qperm_full/op_trains -> 256.9444444 | D38: gpm
A40: Target staging ratio | B40: target_staging_ratio | C40: =(1-target_recovery)^(-1/n_stages) -> 2
A41: Average recovery per vessel | B41: avg_Y_vess | C41: =1-1/target_staging_ratio -> 0.5
A43: Flow constraints
A44: Per feed flow specification
A45: Maximum feed flow per element specification | B45: max_feed_flow_spec | C45: =max_feed_flow_I -> 75 | D45: gpm
A47: Maximum feed flow per element pressure drop
A48: Maximum pressure drop in element | B48: max_element_dP | C48: =max_deltaP_el_I -> 10 | D48: psi
A49: Maximum average flow based on pressure drop | B49: max_element_Qavg | C49: =(max_deltaP_el_I/(sys_element_dp_coeff_I*SQRT(visc_ratio_feed)))^(1/sys_element_dp_exp) -> 87.11144803 | D49: gpm
A50: Average permeate flow per element | B50: avg_perm_flow | C50: =design_Qperm/el_per_train_prelim -> 4.282407407 | D50: gpm | E50: "average" here is an average over the elements at the design flow
A51: Maximum feed flow based on pressure drop | B51: max_feed_flow_dP_el | C51: =max_element_Qavg+avg_perm_flow/2 -> 89.25265174 | D51: gpm
A53: Maximum feed flow per vessel pressure drop
A54: Maximum pressure drop in vessel | B54: max_vessel_dP | C54: =max_deltaP_ves_I -> 50 | D54: psi
A55: Maximum average flow in vessel, based on pressure drop | B55: max_vessel_Qavg | C55: =IF(max_vessel_dP=0,"n/a",(max_vessel_dP/(sys_element_dp_coeff_I*el_per_vess*SQRT(visc_ratio_feed)))^(1/sys_element_dp_exp)) -> 76.47459754 | D55: gpm
A56: Maximum feed flow in vessel, based on pressure drop | B56: max_feed_flow_dP_ves | C56: =IF(max_vessel_Qavg="n/a","n/a",-max_vessel_Qavg*LN(1-avg_Y_vess)/avg_Y_vess) -> 106.0163033 | D56: gpm | E56: Computed based on average recovery per vessel
A58: Per minimum concentrate flow specification
A59: Minimum concentrate flow per element specification | B59: min_conc_flow_spec | C59: =min_conc_flow_I -> 12 | D59: gpm
A60: Minimum feed flow, for average recovery per vessel | B60: min_feed_flow_conc | C60: =min_conc_flow_spec/(1-avg_Y_vess) -> 24 | D60: gpm
A62: All constraints
A63: Maximum feed flow per vessel | B63: max_feed_flow | C63: =MIN(max_feed_flow_spec,max_feed_flow_dP_el,max_feed_flow_dP_ves) -> 75 | D63: gpm | E63: The strictest of the above maxima
A64: Minimum feed flow per vessel | B64: min_feed_flow | C64: =min_feed_flow_conc -> 24 | D64: gpm
A66: Train assembly
A67: Target number of first-stage vessels | B67: nves_1_targ | C67: =CHOOSE(n_stages,PVs_per_train_prelim,PVs_per_train_prelim/(1+1/target_staging_ratio),PVs_per_train_prelim/(1+1/target_staging_ratio+1/target_staging_ratio/target_staging_ratio)) -> 6.666666667 | D67: vessels
A68: Minimum number of first-stage vessels | B68: nves_1_min | C68: =IF(max_feed_flow=0,"n/a",ROUNDUP(design_Qfeed/max_feed_flow,0)) -> 5 | D68: vessels
A69: Maximum number of first-stage vessels | B69: nves_1_max | C69: =IF(min_feed_flow=0,"n/a",ROUNDDOWN(design_Qfeed/min_feed_flow,0)) -> 14 | D69: vessels
A70: Number of first-stage vessels per train | B70: nves_1 | C70: =MAX(nves_1_min,MIN(nves_1_max,ROUND(nves_1_targ,0))) -> 7 | D70: vessels
A71: Feed flow per first-stage vessel | B71: Qfeed_1_guess | C71: =design_Qfeed/nves_1 -> 48.94179894 | D71: gpm
A72: Estimated concentrate flow per first-stage vessel | B72: Qconc_1_guess | C72: =Qfeed_1_guess*(1-avg_Y_vess) -> 24.47089947 | D72: gpm
A73: Estimated average flow per first-stage vessel | B73: Qavg_1_guess | C73: =(Qfeed_1_guess-Qconc_1_guess)/LN(Qfeed_1_guess/Qconc_1_guess) -> 35.30404531 | D73: gpm
A74: Estimated permeate flow per first-stage vessel | B74: Qperm_1_guess | C74: =Qfeed_1_guess-Qconc_1_guess -> 24.47089947 | D74: gpm
A75: Estimated concentrate flow from first stage | B75: Qconc_1_total_guess | C75: =Qconc_1_guess*nves_1 -> 171.2962963 | D75: gpm
A77: Target number of second-stage vessels | B77: nves_2_targ | C77: =IF(n_stages>=2,nves_1_targ/target_staging_ratio,0) -> 3.333333333 | D77: vessels
A78: Minimum number of second-stage vessels | B78: nves_2_min | C78: =IF(n_stages>=2,IF(max_feed_flow=0,"n/a",ROUNDUP(Qconc_1_total_guess/max_feed_flow,0)),0) -> 3 | D78: vessels
A79: Maximum number of second-stage vessels | B79: nves_2_max | C79: =IF(n_stages>=2,IF(min_feed_flow=0,"n/a",ROUNDDOWN(Qconc_1_total_guess/min_feed_flow,0)),0) -> 7 | D79: vessels
A80: Number of second-stage vessels | B80: nves_2 | C80: =IF(n_stages>=2,MAX(nves_2_min,MIN(nves_2_max,ROUND(nves_2_targ,0))),0) -> 3 | D80: vessels
A81: Estimated feed flow per second-stage vessel | B81: Qfeed_2_guess | C81: =IF(n_stages>=2,Qconc_1_total_guess/nves_2,0) -> 57.09876543 | D81: gpm
A82: Estimated concentrate flow per second-stage vessel | B82: Qconc_2_guess | C82: =IF(n_stages>=2,Qfeed_2_guess*(1-avg_Y_vess),0) -> 28.54938272 | D82: gpm
A83: Estimated average flow per second-stage vessel | B83: Qavg_2_guess | C83: =IF(n_stages>=2,(Qfeed_2_guess-Qconc_2_guess)/LN(Qfeed_2_guess/Qconc_2_guess),0) -> 41.18805286 | D83: gpm
A84: Estimated permeate flow per second-stage vessel | B84: Qperm_2_guess | C84: =Qfeed_2_guess-Qconc_2_guess -> 28.54938272 | D84: gpm
A85: Estimated concentrate flow from second stage | B85: Qconc_2_total_guess | C85: =Qconc_2_guess*nves_2 -> 85.64814815 | D85: gpm
A87: Target number of third-stage vessels | B87: nves_3_targ | C87: =IF(n_stages>=3,nves_2_targ/target_staging_ratio,0) -> 0 | D87: vessels
A88: Minimum number of third-stage vessels | B88: nves_3_min | C88: =IF(n_stages>=3,IF(max_feed_flow=0,"n/a",ROUNDUP(Qconc_2_total_guess/max_feed_flow,0)),0) -> 0 | D88: vessels
A89: Maximum number of third-stage vessels | B89: nves_3_max | C89: =IF(n_stages>=3,IF(min_feed_flow=0,"n/a",ROUNDDOWN(Qconc_2_total_guess/min_feed_flow,0)),0) -> 0 | D89: vessels
A90: Number of third-stage vessels | B90: nves_3 | C90: =IF(n_stages>=3,MAX(nves_3_min,MIN(nves_3_max,ROUND(nves_3_targ,0))),0) -> 0 | D90: vessels
A91: Estimated feed flow per third-stage vessel | B91: Qfeed_3_guess | C91: =IF(n_stages>=3,Qconc_2_total_guess/nves_3,0) -> 0 | D91: gpm
A92: Estimated concentrate flow per third-stage vessel | B92: Qconc_3_guess | C92: =IF(n_stages>=3,Qfeed_3_guess*(1-avg_Y_vess),0) -> 0 | D92: gpm
A93: Estimated average flow per third-stage vessel | B93: Qavg_3_guess | C93: =IF(n_stages>=3,(Qfeed_3_guess-Qconc_3_guess)/LN(Qfeed_3_guess/Qconc_3_guess),0) -> 0 | D93: gpm
A94: Estimated permeate flow per third-stage vessel | B94: Qperm_3_guess | C94: =Qfeed_3_guess-Qconc_3_guess -> 0 | D94: gpm
A95: Estimated concentrate flow from third stage | B95: Qconc_3_total_guess | C95: =Qconc_3_guess*nves_3 -> 0 | D95: gpm
A97: Total number of vessels per train | B97: PVs_per_train | C97: =nves_1+nves_2+nves_3 -> 10 | D97: vessels
A98: Membrane area per train | B98: area_train | C98: =PVs_per_train*el_per_vess*sys_element_area_I -> 24000 | D98: ft^2
A99: Resulting total area, excluding redundancy | B99: total_area_op | C99: =area_train*op_trains -> 48000 | D99: ft^2
A100: Resulting target flux | B100: target_flux | C100: =design_flow*1000000/total_area_op -> 15.41666667 | D100: gfd
A102: Train configuration | B102: train_config | C102: =CHOOSE(n_stages,nves_1 & " vessels",nves_1 & ":" & nves_2, nves_1 & ":" & nves_2 & ":" & nves_3) -> 7:3
A104: Pressure guess
A105: Feed osmotic pressure | B105: pi_feed_sys | C105: =osmpres(tfeed_meq_bal,T_feed,ion_charge)*psi_per_atm -> 34.34387174 | D105: psi
A106: Concentrate osmotic pressure, 100% recovery | B106: pi_conc_guess | C106: =pi_feed_sys/(1-target_recovery) -> 137.375487 | D106: psi
A107: Average osmotic pressure in system | B107: pi_avg_guess | C107: =(pi_conc_guess-pi_feed_sys)/LN(pi_conc_guess/pi_feed_sys) -> 74.32160016 | D107: psi
A108: Estimated pressure drop in stage 1 | B108: dP_1_guess | C108: =el_per_vess*sys_element_dp_coeff_I*Qavg_1_guess^sys_element_dp_exp*SQRT(visc_ratio_feed) -> 16.94338521 | D108: psi
A109: Estimated pressure drop in stage 2 | B109: dP_2_guess | C109: =IF(n_stages>=2,el_per_vess*sys_element_dp_coeff_I*Qavg_2_guess^sys_element_dp_exp)*SQRT(visc_ratio_feed) -> 21.02450068 | D109: psi
A110: Estimated pressure drop in stage 3 | B110: dP_3_guess | C110: =IF(n_stages>=3,el_per_vess*sys_element_dp_coeff_I*Qavg_3_guess^sys_element_dp_exp,0)*SQRT(visc_ratio_feed) -> 0 | D110: psi
A111: Estimated pressure drop in system | B111: dP_tot_guess | C111: =dP_1_guess+dP_2_guess+dP_3_guess -> 37.96788589 | D111: psi
A112: Temperature correction factor for feed temp | B112: A_temp_coeff_pguess | C112: =IF(T_feed<sys_element_ref_temp,sys_element_A_T_coeff_lo,sys_element_A_T_coeff_hi) -> 2900 | D112: Kelvins
A113: Temperature correction factor for A | B113: A_temp_corr_pguess | C113: =EXP(A_temp_coeff_pguess*(1/(sys_element_ref_temp+zeroC_in_K)-1/(temp_K))) -> 0.7135127221
A114: Element A value before feed pressure correction | B114: A_firstguess | C114: =sys_element_A_I*A_temp_corr_pguess*fouling_factor -> 0.08490801393 | D114: gfd/psi
A115: First guess net driving pressure required | B115: ndp_req_firstguess | C115: =target_flux/A_firstguess -> 181.569041 | D115: psi
A116: Estimated feed pressure | B116: Pfeed_firstguess | C116: =ndp_req_firstguess+pi_avg_guess+dP_tot_guess/2 -> 274.8745842 | D116: psi | E116: First guess Pnet + Posm + dP/2
A117: Feed pressure correction factor for A | B117: A_pres_corr_guess | C117: =1-(Pfeed_firstguess/psi_per_atm)*sys_element_A_P_coeff -> 0.999064798
A118: Estimated element A value | B118: A_guess | C118: =A_firstguess*A_pres_corr_guess -> 0.08482860778 | D118: gfd/psi
A119: Estimated net driving pressure required | B119: Pnet_guess | C119: =target_flux/A_guess -> 181.7390037 | D119: psi
A120: Estimated feed pressure | B120: Pfeed_guess | C120: =Pnet_guess+pi_avg_guess+dP_tot_guess/2 -> 275.0445468 | D120: psi | E120: Second guess Pnet + Posm + dP/2

Sheet Pressure Tuning
A1: Pressure Tuning Calculations
A2: Bold gold cells are used by the design macro and should not be adjusted.
A4: Calculation | B4: Range Name | C4: Value | D4: Units | E4: Guidance
A5: Pressure tuning routine in progress? | B5: tune_in_prog | C5: FALSE
A7: Feed flow per pressure vessel | B7: Qfeed_stg1_try | C7: =Qfeed_1_guess -> 48.94179894 | D7: gpm
A8: Stage 1 pressure | B8: P_stg1_try | C8: 262.9410347 | D8: psi
A9: Pressure adjustment, stage 2 | B9: P_adjust_2_try | C9: 0 | D9: psi | E9: May be a throttle on stage 1 or a boost on stage 2
A10: Pressure adjustment, stage 3 | B10: P_adjust_3_try | C10: 0 | D10: psi | E10: May be a throttle on stage 2 or a boost on stage 3
A12: Resulting feed pressure | B12: P_feed_try | C12: =P_stg1_try+IF(P_adj_method_12=0,P_adjust_2_try,0)+IF(P_adj_method_23=0,P_adjust_3_try,0) -> 262.9410347 | D12: psi | E12: Inputs to "Calc System" module
A13: Throttle pressure, stage 1 | B13: P_throttle_1_try | C13: =IF(P_adj_method_12=0,P_adjust_2_try,0)+IF(P_adj_method_23=0,P_adjust_3_try,0) -> 0 | D13: psi
A14: Throttle pressure, stage 2 | B14: P_throttle_2_try | C14: =IF(P_adj_method_23=0,P_adjust_3_try,0) -> 0 | D14: psi
A15: Throttle pressure, stage 3 | B15: P_throttle_3_try | C15: 0 | D15: psi | E15: The pressure tuning routine will never throttle Stage 3.
A16: Boost pressure, stage 2 | B16: P_boost_2_try | C16: =IF(P_adj_method_12=1,P_adjust_2_try,0) -> 0 | D16: psi
A17: Boost pressure, stage 3 | B17: P_boost_3_try | C17: =IF(P_adj_method_23=1,P_adjust_3_try,0) -> 0 | D17: psi
A19: Target flux, stage 1 | B19: flux_targ_1 | C19: =target_flux -> 15.41666667 | D19: gfd | E19: Equal to the target flux for the whole system.
A20: Permeate flux, stage 1 | B20: flux_result_1 | C20: =stg_1 perm_flux_v -> 17.06203045 | D20: gfd
A21: Absolute difference | B21: flux_diff_1 | C21: =flux_result_1-flux_targ_1 -> 1.645363781 | D21: gfd
A22: Percentage difference | B22: flux_pctdiff_1 | C22: =flux_diff_1/flux_targ_1 -> 0.1067262993
A23: Average NDP, stage 1 | B23: ndp_avg_1 | C23: =AVERAGE(P_net_out (el_1_1,el_1_2,el_1_3,el_1_4,el_1_5,el_1_6,el_1_7)) -> 201.4298623 | D23: psi
A25: Flow result, stage 1 | B25: Qperm_1 | C25: =(perm_flow_v stg_1)*nves_1*24*60 -> 286642.1115 | D25: gal/day
A26: Flow needed, stages 2 and 3 | B26: Qperm_need_23 | C26: =IF(nves_2=0,"n/a",design_Qperm*24*60-Qperm_1) -> 83357.88848 | D26: gal/day
A27: Area available, stages 2 and 3 | B27: area_avail_23 | C27: =IF(nves_2=0,"n/a",(nves_2+nves_3)*area_per_vess) -> 7200 | D27: ft^2
A28: Target flux, stages 2 and 3 | B28: flux_targ_23 | C28: =target_flux -> 15.41666667 | D28: gfd
A29: Permeate flux, stage 2 | B29: flux_result_2 | C29: =IF(OR(Qperm_need_23<0,nves_2=0),"n/a",stg_2 perm_flux_v) -> 11.30199176 | D29: gfd
A30: Absolute difference | B30: flux_diff_2 | C30: =IF(OR(Qperm_need_23<0,nves_2=0),"n/a",flux_result_2-flux_targ_23) -> -4.114674904 | D30: gfd
A31: Percentage difference | B31: flux_pctdiff_2 | C31: =IF(OR(Qperm_need_23<0,nves_2=0),"n/a",flux_diff_2/flux_targ_23) -> -0.2668978316
A32: Average NDP, stage 2 | B32: ndp_avg_2 | C32: =IF(nves_2=0,"n/a",AVERAGE(P_net_out (el_2_1,el_2_2,el_2_3,el_2_4,el_2_5,el_2_6,el_2_7))) -> 133.6226887 | D32: psi
A34: Flow result, stages 1 and 2 | B34: Qperm_12 | C34: =((perm_flow_v stg_1)*nves_1+(perm_flow_v stg_2)*nves_2)*24*60 -> 368016.4522 | D34: gal/day
A35: Flow needed, stage 3 | B35: Qperm_need_3 | C35: =IF(nves_3=0,"n/a",design_Qperm*24*60-Qperm_12) -> n/a | D35: gal/day
A36: Area available, stage 3 | B36: area_avail_3 | C36: =IF(nves_3=0,"n/a",nves_3*area_per_vess) -> n/a | D36: ft^2
A37: Target flux, stage 3 | B37: flux_targ_3 | C37: =target_flux -> 15.41666667 | D37: gfd
A38: Permeate flux, stage 3 | B38: flux_result_3 | C38: =IF(OR(Qperm_need_3<0,nves_3=0),"n/a",stg_3 perm_flux_v) -> n/a | D38: gfd
A39: Absolute difference | B39: flux_diff_3 | C39: =IF(OR(Qperm_need_3<0,nves_3=0),"n/a",flux_result_3-flux_targ_3) -> n/a | D39: gfd
A40: Percentage difference | B40: flux_pctdiff_3 | C40: =IF(OR(Qperm_need_3<0,nves_3=0),"n/a",flux_diff_3/flux_targ_3) -> n/a
A41: Average NDP, stage 3 | B41: ndp_avg_3 | C41: =IF(nves_3=0,"n/a",AVERAGE(P_net_out (el_3_1,el_3_2,el_3_3,el_3_4,el_3_5,el_3_6,el_3_7))) -> n/a | D41: psi
A43: Pressure adjustment for next iteration
A45: Adjustments if Stage 1 has errors or is off-spec
A46: Is there an error in stage 1? | B46: error_stg1 | C46: =IF(soln_success,FALSE,(current_element_stage=1)) -> FALSE
A47: Is stage 1 operating within spec? | B47: stg1_in_spec | C47: =AND(NOT(error_stg1),flux_result_1>=flux_targ_1*(1-perm_flow_tol),flux_result_1<=flux_targ_1*(1+flux_tol_hi)) -> TRUE
A48: Stage 1 minimum pressure | B48: stg1_min_pres | D48: psi | E48: Zero indicates no minimum. Filled in by the design macro when Stage 1 hits an error.
A49: Stage 1 maximum pressure | B49: stg1_max_pres | C49: 275.0445468 | D49: psi | E49: Zero indicates no maximum. Filled in by the design macro when Stage 1 hits an error.
A52: Pressure change to counter error | B52: stg1_Pchange_err | C52: =IF(error_stg1,P_change_required,"n/a") -> n/a | D52: psi
A53: Stage 1 NDP adjustment to return to spec, percent | B53: stg1_Pchange_spec_pct | C53: =IF(stg1_in_spec,0,IF(error_stg1,"n/a",-flux_diff_1/flux_result_1)) -> 0
A54: Pressure change to return to spec | B54: stg1_Pchange_spec | C54: =IF(error_stg1,"n/a",stg1_Pchange_spec_pct*ndp_avg_1) -> 0 | D54: psi
A55: Pressure change for Stage 1 | B55: stg1_Pchange | C55: =IF(error_stg1,stg1_Pchange_err,IF(NOT(stg1_in_spec),stg1_Pchange_spec,"n/a")) -> n/a | D55: psi
A57: New minimum pressure for Stage 1 | B57: stg1_min_pres_new | C57: =IF(AND(error_stg1,P_change_required>0),P_stg1_try,stg1_min_pres) -> 0 | D57: psi | E57: Zero indicates no minimum.
A58: New maximum pressure for Stage 1 | B58: stg1_max_pres_new | C58: =IF(AND(error_stg1,P_change_required<0),P_stg1_try,stg1_max_pres) -> 275.0445468 | D58: psi | E58: Zero indicates no maximum.
A60: New pressure for Stage 1 | B60: stg1_newP_fix1 | C60: =P_stg1_try+IF(stg1_Pchange="n/a",0,stg1_Pchange) -> 262.9410347 | D60: psi
A61: New Stage 1 pressure within bounds? | B61: stg1_newP_fix1_OK | C61: =AND(OR(stg1_min_pres=0,stg1_newP_fix1>stg1_min_pres),OR(stg1_max_pres=0,stg1_newP_fix1<stg1_max_pres)) -> TRUE
A62: Adjust Stage 1? | B62: stg1_adjust_1 | C62: =OR(error_stg1,NOT(stg1_in_spec)) -> FALSE
A64: Signal error? | B64: pressure_error_stg1 | C64: =IF(OR(error_stg1,NOT(stg1_in_spec)),NOT(stg1_newP_fix1_OK),FALSE) -> FALSE | E64: We signal an error if Stage 1 is off spec and the new pressure is out of bounds.
A66: Adjustments if Stage 2 has errors or is off-spec
A67: Is there an error in stage 2? | B67: error_stg2 | C67: =IF(soln_success,FALSE,(current_element_stage=2)) -> FALSE
A68: Is stage 2 operating within spec? | B68: stg2_in_spec | C68: =IF(nves_2=0,TRUE,AND(NOT(error_stg2),flux_result_2>=flux_targ_23*(1-flux_tol_lo),flux_result_2<=flux_targ_23*(1+flux_tol_hi))) -> TRUE
A69: Stage 2 beginning pressure | B69: stg2_Pstart | C69: =IF(error_stg1,"n/a",el_2_1 P_feed_out-el_2_1 P_throttle_out) -> 246.6045965 | D69: psi
A70: Stage 2 minimum pressure | B70: stg2_min_pres | D70: psi | E70: Filled in by the design macro when Stage 2 hits an error.
A71: Stage 2 maximum pressure | B71: stg2_max_pres | D71: psi | E71: Filled in by the design macro when Stage 2 hits an error.
A73: Pressure change to counter error | B73: stg2_Pchange_err | C73: =IF(error_stg2,P_change_required,"n/a") -> n/a | D73: psi
A74: Stage 2 NDP adjustment to return to spec, percent | B74: stg2_Pchange_spec_pct | C74: =IF(stg2_in_spec,0,IF(error_stg2,"n/a",-flux_diff_2/flux_result_2)) -> 0
A75: Pressure change to return to spec | B75: stg2_Pchange_spec | C75: =IF(nves_2=0,0,IF(error_stg2,"n/a",stg2_Pchange_spec_pct*ndp_avg_2)) -> 0 | D75: psi
A76: Pressure change for Stage 2 | B76: stg2_Pchange | C76: =IF(error_stg2,stg2_Pchange_err,IF(NOT(stg2_in_spec),stg2_Pchange_spec,"n/a")) -> n/a | D76: psi
A78: New minimum pressure for Stage 2 | B78: stg2_min_pres_new | C78: =IF(AND(error_stg2,P_change_required>0),stg2_Pstart,stg2_min_pres) -> 0 | D78: psi | E78: Zero indicates no minimum.
A79: New maximum pressure for Stage 2 | B79: stg2_max_pres_new | C79: =IF(AND(error_stg2,P_change_required<0),stg2_Pstart,stg2_max_pres) -> 0 | D79: psi | E79: Zero indicates no maximum.
A81: New pressure for Stage 1 | B81: stg1_newP_fix2 | C81: =P_stg1_try+IF(stg2_Pchange="n/a",0,stg2_Pchange) -> 262.9410347 | D81: psi
A82: New Stage 1 pressure within bounds? | B82: stg1_newP_fix2_OK | C82: =AND(OR(stg1_min_pres=0,stg1_newP_fix2>stg1_min_pres),OR(stg1_max_pres=0,stg1_newP_fix2<stg1_max_pres)) -> TRUE
A83: Adjust Stage 1 if no adjustment so far? | B83: stg1_adjust_2 | C83: =IF(stg1_adjust_1,FALSE,AND(OR(error_stg2,NOT(stg2_in_spec)),stg1_newP_fix2_OK)) -> FALSE
A85: New starting pressure for Stage 2 | B85: stg2_newP_fix2 | C85: =stg2_Pstart+IF(stg2_Pchange="n/a",0,stg2_Pchange) -> 246.6045965 | D85: psi
A86: New Stage 2 pressure within bounds? | B86: stg2_newP_fix2_OK | C86: =AND(OR(stg2_min_pres=0,stg2_newP_fix2>stg2_min_pres),OR(stg2_max_pres=0,stg2_newP_fix2<stg2_max_pres)) -> TRUE
A87: Adjust Stage 2 if no adjustment so far? | B87: stg2_adjust_2 | C87: =IF(OR(stg1_adjust_1,stg1_adjust_2),FALSE,AND(OR(error_stg2,NOT(stg2_in_spec)),stg2_newP_fix2_OK)) -> FALSE
A89: Signal error? | B89: pressure_error_stg2 | C89: =IF(OR(error_stg2,NOT(stg2_in_spec)),NOT(OR(stg1_newP_fix2_OK,stg2_newP_fix2_OK)),FALSE) -> FALSE | E89: We signal an error if Stage 2 is off spec and we can't find an in-bounds pressure for Stage 1 or 2.
A91: Adjustments if Stage 3 has errors or is off-spec
A92: Is there an error in stage 3? | B92: error_stg3 | C92: =IF(soln_success,FALSE,(current_element_stage=3)) -> FALSE
A93: Is stage 3 operating within spec? | B93: stg3_in_spec | C93: =IF(nves_3=0,TRUE,AND(NOT(error_stg3),flux_result_3>=flux_targ_3*(1-flux_tol_lo),flux_result_3<=flux_targ_3*(1+flux_tol_hi))) -> TRUE
A94: Stage 3 beginning pressure | B94: stg3_Pstart | C94: =IF(error_stg2,"n/a",el_3_1 P_feed_out-el_3_1 P_throttle_out) -> 0 | D94: psi
A95: Stage 3 minimum pressure | B95: stg3_min_pres | D95: psi | E95: Filled in by the design macro when Stage 3 hits an error.
A96: Stage 3 maximum pressure | B96: stg3_max_pres | D96: psi | E96: Filled in by the design macro when Stage 3 hits an error.
A98: Pressure change to counter error | B98: stg3_Pchange_err | C98: =IF(error_stg3,P_change_required,"n/a") -> n/a | D98: psi
A99: Stage 3 NDP adjustment to return to spec, percent | B99: stg3_Pchange_spec_pct | C99: =IF(stg3_in_spec,0,IF(error_stg3,"n/a",-flux_diff_3/flux_result_3)) -> 0
A100: Pressure change to return to spec | B100: stg3_Pchange_spec | C100: =IF(nves_3=0,0,IF(error_stg3,"n/a",stg3_Pchange_spec_pct*ndp_avg_3)) -> 0 | D100: psi
A101: Pressure change for Stage 3 | B101: stg3_Pchange | C101: =IF(error_stg3,stg3_Pchange_err,IF(NOT(stg3_in_spec),stg3_Pchange_spec,"n/a")) -> n/a | D101: psi
A103: New minimum pressure for Stage 3 | B103: stg3_min_pres_new | C103: =IF(AND(error_stg3,P_change_required>0),stg3_Pstart,stg3_min_pres) -> 0 | D103: psi | E103: Zero indicates no minimum.
A104: New maximum pressure for Stage 3 | B104: stg3_max_pres_new | C104: =IF(AND(error_stg3,P_change_required<0),stg3_Pstart,stg3_max_pres) -> 0 | D104: psi | E104: Zero indicates no maximum.
A106: New pressure for Stage 1 | B106: stg1_newP_fix3 | C106: =P_stg1_try+IF(stg3_Pchange="n/a",0,stg3_Pchange) -> 262.9410347 | D106: psi
A107: New Stage 1 pressure within bounds? | B107: stg1_newP_fix3_OK | C107: =AND(OR(stg1_min_pres=0,stg1_newP_fix3>stg1_min_pres),OR(stg1_max_pres=0,stg1_newP_fix3<stg1_max_pres)) -> TRUE
A108: Adjust Stage 1 if no adjustment so far? | B108: stg1_adjust_3 | C108: =IF(OR(stg1_adjust_1,stg1_adjust_2,stg2_adjust_2),FALSE,AND(OR(error_stg3,NOT(stg3_in_spec)),stg1_newP_fix3_OK)) -> FALSE
A110: New starting pressure for Stage 3 | B110: stg3_newP_fix3 | C110: =stg3_Pstart+IF(stg3_Pchange="n/a",0,stg3_Pchange) -> 0 | D110: psi
A111: New Stage 3 pressure within bounds? | B111: stg3_newP_fix3_OK | C111: =AND(OR(stg3_min_pres=0,stg3_newP_fix3>stg3_min_pres),OR(stg3_max_pres=0,stg3_newP_fix3<stg3_max_pres)) -> TRUE
A112: Adjust Stage 3 if no adjustment so far? | B112: stg3_adjust_3 | C112: =IF(OR(stg1_adjust_1,stg1_adjust_2,stg2_adjust_2,stg1_adjust_3),FALSE,AND(OR(error_stg3,NOT(stg3_in_spec)),stg3_newP_fix3_OK)) -> FALSE
A114: New starting pressure for Stage 2 | B114: stg2_newP_fix3 | C114: =stg2_Pstart+IF(stg3_Pchange="n/a",0,stg3_Pchange) -> 246.6045965 | D114: psi
A115: New Stage 2 pressure within bounds? | B115: stg2_newP_fix3_OK | C115: =AND(OR(stg3_min_pres=0,stg2_newP_fix3>stg3_min_pres),OR(stg3_max_pres=0,stg2_newP_fix3<stg3_max_pres)) -> TRUE
A116: Adjust Stage 2 if no adjustment so far? | B116: stg2_adjust_3 | C116: =IF(OR(stg1_adjust_1,stg1_adjust_2,stg2_adjust_2,stg1_adjust_3,stg3_adjust_3),FALSE,AND(OR(error_stg3,NOT(stg3_in_spec)),stg2_newP_fix3_OK)) -> FALSE
A118: Signal error? | B118: pressure_error_stg3 | C118: =IF(OR(error_stg3,NOT(stg3_in_spec)),NOT(OR(stg1_newP_fix3_OK,stg3_newP_fix3_OK,stg2_newP_fix3_OK)),FALSE) -> FALSE | E118: We signal an error if Stage 3 is off spec and we can't find an in-bounds pressure for any stage.
A120: Adjustments for overall permeate flow
A121: Resulting permeate flow | B121: Qperm_result | C121: =perm_flow_sys*24*60 -> 368016.4522 | D121: gal/day
A122: Absolute difference from target flow | B122: Qperm_diff | C122: =Qperm_result-design_Qperm*24*60 -> -1983.547783 | D122: gal/day
A123: Percentage difference from target flow | B123: Qperm_pctdiff | C123: =Qperm_diff/(design_Qperm*24*60) -> -0.005360939954
A124: Is permeate flow equal to target, within tolerance? | B124: perm_flow_ok | C124: =OR(ABS(Qperm_diff)<=perm_flow_abs_tol,ABS(Qperm_pctdiff)<=perm_flow_tol) -> TRUE | E124: Tolerance is set in the CDAs.
A126: Required percentage adjustment to NDP | B126: Pchange_flow_pct | C126: =-Qperm_pctdiff -> 0.005360939954
A127: Overall average NDP | B127: ndp_avg | C127: =AVERAGE(ndp_avg_1,ndp_avg_2,ndp_avg_3) -> 167.5262755 | D127: psi
A128: Pressure change to correct permeate flow | B128: Pchange_flow | C128: =IF(perm_flow_ok,"n/a",Pchange_flow_pct*ndp_avg) -> n/a | D128: psi
A130: New pressure for Stage 1 | B130: stg1_newP_flow | C130: =P_stg1_try+IF(Pchange_flow="n/a",0,Pchange_flow) -> 262.9410347 | D130: psi
A131: New Stage 1 pressure within bounds? | B131: stg1_newP_flow_OK | C131: =AND(OR(stg1_min_pres=0,stg1_newP_flow>stg1_min_pres),OR(stg1_max_pres=0,stg1_newP_flow<stg1_max_pres)) -> TRUE
A132: Adjust Stage 1 if no adjustment so far? | B132: stg1_adjust_flow | C132: =IF(OR(stg1_adjust_1,stg1_adjust_2,stg2_adjust_2,stg1_adjust_3,stg3_adjust_3,stg2_adjust_3,perm_flow_ok),FALSE,stg1_newP_flow_OK) -> FALSE
A134: New starting pressure for Stage 2 | B134: stg2_newP_flow | C134: =stg2_Pstart+IF(Pchange_flow="n/a",0,Pchange_flow) -> 246.6045965 | D134: psi
A135: New Stage 2 pressure within bounds? | B135: stg2_newP_flow_OK | C135: =AND(OR(stg3_min_pres=0,stg2_newP_flow>stg3_min_pres),OR(stg3_max_pres=0,stg2_newP_flow<stg3_max_pres)) -> TRUE
A136: Adjust Stage 2 if no adjustment so far? | B136: stg2_adjust_flow | C136: =IF(OR(stg1_adjust_1,stg1_adjust_2,stg2_adjust_2,stg1_adjust_3,stg3_adjust_3,stg2_adjust_3,perm_flow_ok,stg1_adjust_flow),FALSE,stg2_newP_flow_OK) -> FALSE
A138: New starting pressure for Stage 3 | B138: stg3_newP_flow | C138: =stg3_Pstart+IF(Pchange_flow="n/a",0,Pchange_flow) -> 0 | D138: psi
A139: New Stage 3 pressure within bounds? | B139: stg3_newP_flow_OK | C139: =AND(OR(stg3_min_pres=0,stg3_newP_flow>stg3_min_pres),OR(stg3_max_pres=0,stg3_newP_flow<stg3_max_pres)) -> TRUE
A140: Adjust Stage 3 if no adjustment so far? | B140: stg3_adjust_flow | C140: =IF(OR(stg1_adjust_1,stg1_adjust_2,stg2_adjust_2,stg1_adjust_3,stg3_adjust_3,stg2_adjust_3,perm_flow_ok,stg1_adjust_flow,stg2_adjust_flow),FALSE,stg3_newP_flow_OK) -> FALSE
A142: Signal error? | B142: pressure_error_flow | C142: =IF(NOT(perm_flow_ok),NOT(OR(stg1_newP_flow_OK,stg3_newP_flow_OK,stg2_newP_flow_OK)),FALSE) -> FALSE | E142: We signal an error if the flow is off spec and we can't find an in-bounds pressure for any stage.
A144: Chosen adjustments
A145: Stage to adjust | B145: stage_adjust | C145: =IF(OR(stg1_adjust_1,stg1_adjust_2,stg1_adjust_3,stg1_adjust_flow),1,IF(OR(stg2_adjust_2,stg2_adjust_3,stg2_adjust_flow),2,IF(OR(stg3_adjust_3,stg3_adjust_flow),3,"none"))) -> none | F145: Cells below and to the right for internal use by the design macro
A146: New Stage 1 pressure | B146: P_stg1_new | C146: =IF(stg1_adjust_1,stg1_newP_fix1,IF(stg1_adjust_2,stg1_newP_fix2,IF(stg1_adjust_3,stg1_newP_fix3,IF(stg1_adjust_flow,stg1_newP_flow,P_stg1_try)))) -> 262.9410347 | D146: psi | G146: 260.4967322 | H146: 262.9410347 | I146: 262.9410347 | J146: 109.7640316 | K146: 107.0286171 | L146: 121.1135417 | M146: 137.9432959 | N146: 140.6660265 | O146: 134.1006322 | P146: 122.2903879 | Q146: 103.0000366 | R146: 104.5470725 | S146: 125.4220191 | T146: 144.7426091 | U146: 123.0049574 | V146: 123.0049574 | W146: 126.4892784 | X146: 123.9086731 | Y146: 123.9086731 | Z146: 125.9279906 | AA146: 124.420198 | AB146: 124.420198 | AC146: 125.574607 | AD146: 106.0979276 | AE146: 107.0933783 | AF146: 106.1646897 | AG146: 107.0886018 | AH146: 106.1709988 | AI146: 107.0881452 | AJ146: 106.1716017 | AK146: 107.0881015 | AL146: 106.1716594 | AM146: 107.0880973 | AN146: 106.1716649 | AO146: 107.0880969 | AP146: 106.1716655 | AQ146: 107.0880969 | AR146: 106.1716655 | AS146: 107.0880969 | AT146: 106.1716655 | AU146: 107.0880969 | AV146: 106.1716655 | AW146: 107.0880969 | AX146: 106.1716655 | AY146: 107.0880969 | AZ146: 106.1716655 | BA146: 107.0880969 | BB146: 106.1716655 | BC146: 106.1716655 | BD146: 106.1716655 | BE146: 20.06271902 | BF146: 0 | BG146: 15.89460024 | BH146: 20.06271902 | BI146: 0 | BJ146: 15.89460024 | BK146: 20.06271902 | BL146: 0 | BM146: 15.89460024 | BN146: 20.06271902 | BO146: 0 | BP146: 15.89460024 | BQ146: 20.06271902 | BR146: 0 | BS146: 15.89460024 | BT146: 20.06271902 | BU146: 0 | BV146: 15.89460024 | BW146: 20.06271902 | BX146: 0 | BY146: 15.89460024 | BZ146: 20.06271902 | CA146: 0 | CB146: 15.89460024 | CC146: 20.06271902 | CD146: 0 | CE146: 15.89460024 | CF146: 20.06271902 | CG146: 0 | CH146: 15.89460024
A147: New Stage 2 pressure adjustment | B147: P_adjust_2_new | C147: =IF(stg2_adjust_2,stg2_Pchange,IF(stg2_adjust_3,stg3_Pchange,IF(stg2_adjust_flow,Pchange_flow,0)))+P_adjust_2_try -> 0 | D147: psi | G147: 0 | H147: 0 | I147: 0 | J147: 5.760542259 | K147: 5.760542259 | L147: 5.760542259 | M147: 5.760542259 | N147: 5.760542259 | O147: 5.760542259 | P147: 5.760542259 | Q147: 5.760542259 | R147: 5.760542259 | S147: 5.760542259 | T147: 5.760542259 | U147: 10.38220736 | V147: 14.81171569 | W147: 14.81171569 | X147: 14.81171569 | Y147: 17.42573802 | Z147: 17.42573802 | AA147: 17.42573802 | AB147: 18.93620039 | AC147: 18.93620039 | AD147: 7.792100716 | AE147: 7.792100716 | AF147: 7.792100716 | AG147: 7.792100716 | AH147: 7.792100716 | AI147: 7.792100716 | AJ147: 7.792100716 | AK147: 7.792100716 | AL147: 7.792100716 | AM147: 7.792100716 | AN147: 7.792100716 | AO147: 7.792100716 | AP147: 7.792100716 | AQ147: 7.792100716 | AR147: 7.792100716 | AS147: 7.792100716 | AT147: 7.792100716 | AU147: 7.792100716 | AV147: 7.792100716 | AW147: 7.792100716 | AX147: 7.792100716 | AY147: 7.792100716 | AZ147: 7.792100716 | BA147: 7.792100716 | BB147: 7.792100716 | BC147: 8.708532077 | BD147: 8.708532077 | BE147: 0 | BF147: 0 | BG147: 0 | BH147: 0 | BI147: 0 | BJ147: 0 | BK147: 0 | BL147: 0 | BM147: 0 | BN147: 0 | BO147: 0 | BP147: 0 | BQ147: 0 | BR147: 0 | BS147: 0 | BT147: 0 | BU147: 0 | BV147: 0 | BW147: 0 | BX147: 0 | BY147: 0 | BZ147: 0 | CA147: 0 | CB147: 0 | CC147: 0 | CD147: 0 | CE147: 0 | CF147: 0 | CG147: 0 | CH147: 0
A148: New Stage 3 pressure adjustment | B148: P_adjust_3_new | C148: =IF(stg3_adjust_3,stg3_Pchange,IF(stg3_adjust_flow,Pchange_flow,0))+P_adjust_3_try -> 0 | D148: psi | G148: 0 | H148: 0 | I148: 0 | J148: 0 | K148: 0 | L148: 0 | M148: 0 | N148: 0 | O148: 0 | P148: 0 | Q148: 0 | R148: 0 | S148: 0 | T148: 0 | U148: 0 | V148: 0 | W148: 0 | X148: 0 | Y148: 0 | Z148: 0 | AA148: 0 | AB148: 0 | AC148: 0 | AD148: 0 | AE148: 0 | AF148: 0 | AG148: 0 | AH148: 0 | AI148: 0 | AJ148: 0 | AK148: 0 | AL148: 0 | AM148: 0 | AN148: 0 | AO148: 0 | AP148: 0 | AQ148: 0 | AR148: 0 | AS148: 0 | AT148: 0 | AU148: 0 | AV148: 0 | AW148: 0 | AX148: 0 | AY148: 0 | AZ148: 0 | BA148: 0 | BB148: 0 | BC148: 0 | BD148: 0 | BE148: 0 | BF148: 0 | BG148: 0 | BH148: 0 | BI148: 0 | BJ148: 0 | BK148: 0 | BL148: 0 | BM148: 0 | BN148: 0 | BO148: 0 | BP148: 0 | BQ148: 0 | BR148: 0 | BS148: 0 | BT148: 0 | BU148: 0 | BV148: 0 | BW148: 0 | BX148: 0 | BY148: 0 | BZ148: 0 | CA148: 0 | CB148: 0 | CC148: 0 | CD148: 0 | CE148: 0 | CF148: 0 | CG148: 0 | CH148: 0
F149: Stage 1, element 6: Warning: Recovery is too large in this element. Try decreasing feed pressure or applying throttle pressure to the vessel. | G149: Could not reach target recovery. | H149: Calculation completed OK. | I149: Stage 1, element 6: Warning: Recovery is too large in this element. Try decreasing feed pressure or applying throttle pressure to the vessel. | J149: Stage 1, element 6: Warning: Recovery is too large in this element. Try decreasing feed pressure or applying throttle pressure to the vessel. | K149: Could not reach target recovery. | L149: Could not reach target recovery. | M149: Could not reach target recovery. | N149: Stage 1, element 5: Warning: Recovery is too large in this element. Try decreasing feed pressure or applying throttle pressure to the vessel. | O149: Stage 1, element 5: Warning: Recovery is too large in this element. Try decreasing feed pressure or applying throttle pressure to the vessel. | P149: Stage 1, element 6: Warning: Recovery is too large in this element. Try decreasing feed pressure or applying throttle pressure to the vessel. | Q149: Could not reach target recovery. | R149: Could not reach target recovery. | S149: Could not reach target recovery. | T149: Stage 1, element 6: Warning: Recovery is too large in this element. Try decreasing feed pressure or applying throttle pressure to the vessel. | U149: Could not reach target recovery. | V149: Could not reach target recovery. | W149: Stage 1, element 6: Warning: Recovery is too large in this element. Try decreasing feed pressure or applying throttle pressure to the vessel. | X149: Could not reach target recovery. | Y149: Could not reach target recovery. | Z149: Stage 1, element 6: Warning: Recovery is too large in this element. Try decreasing feed pressure or applying throttle pressure to the vessel. | AA149: Could not reach target recovery. | AB149: Could not reach target recovery. | AC149: Stage 1, element 8: Warning: Recovery is too large in this element. Try decreasing feed pressure or applying throttle pressure to the vessel. | AD149: Could not reach target recovery. | AE149: Stage 1, element 8: Warning: Recovery is too large in this element. Try decreasing feed pressure or applying throttle pressure to the vessel. | AF149: Could not reach target recovery. | AG149: Stage 1, element 8: Warning: Recovery is too large in this element. Try decreasing feed pressure or applying throttle pressure to the vessel. | AH149: Could not reach target recovery. | AI149: Stage 1, element 8: Warning: Recovery is too large in this element. Try decreasing feed pressure or applying throttle pressure to the vessel. | AJ149: Could not reach target recovery. | AK149: Stage 1, element 8: Warning: Recovery is too large in this element. Try decreasing feed pressure or applying throttle pressure to the vessel. | AL149: Could not reach target recovery. | AM149: Stage 1, element 8: Warning: Recovery is too large in this element. Try decreasing feed pressure or applying throttle pressure to the vessel. | AN149: Could not reach target recovery. | AO149: Stage 1, element 8: Warning: Recovery is too large in this element. Try decreasing feed pressure or applying throttle pressure to the vessel. | AP149: Could not reach target recovery. | AQ149: Stage 1, element 8: Warning: Recovery is too large in this element. Try decreasing feed pressure or applying throttle pressure to the vessel. | AR149: Could not reach target recovery. | AS149: Stage 1, element 8: Warning: Recovery is too large in this element. Try decreasing feed pressure or applying throttle pressure to the vessel. | AT149: Could not reach target recovery. | AU149: Stage 1, element 8: Warning: Recovery is too large in this element. Try decreasing feed pressure or applying throttle pressure to the vessel. | AV149: Could not reach target recovery. | AW149: Stage 1, element 8: Warning: Recovery is too large in this element. Try decreasing feed pressure or applying throttle pressure to the vessel. | AX149: Could not reach target recovery. | AY149: Stage 1, element 8: Warning: Recovery is too large in this element. Try decreasing feed pressure or applying throttle pressure to the vessel. | AZ149: Could not reach target recovery. | BA149: Stage 1, element 8: Warning: Recovery is too large in this element. Try decreasing feed pressure or applying throttle pressure to the vessel. | BB149: Could not reach target recovery. | BC149: Calculation completed OK. | BD149: Stage 1, element 2: | BE149: Stage 1, element 1: Warning: Calculation did not converge. | BF149: Stage 1, element 1: Warning: Driving pressure is zero or negative. Try increasing feed pressure or using a booster pump. | BG149: Stage 1, element 2: | BH149: Stage 1, element 1: Warning: Calculation did not converge. | BI149: Stage 1, element 1: Warning: Driving pressure is zero or negative. Try increasing feed pressure or using a booster pump. | BJ149: Stage 1, element 2: | BK149: Stage 1, element 1: Warning: Calculation did not converge. | BL149: Stage 1, element 1: Warning: Driving pressure is zero or negative. Try increasing feed pressure or using a booster pump. | BM149: Stage 1, element 2: | BN149: Stage 1, element 1: Warning: Calculation did not converge. | BO149: Stage 1, element 1: Warning: Driving pressure is zero or negative. Try increasing feed pressure or using a booster pump. | BP149: Stage 1, element 2: | BQ149: Stage 1, element 1: Warning: Calculation did not converge. | BR149: Stage 1, element 1: Warning: Driving pressure is zero or negative. Try increasing feed pressure or using a booster pump. | BS149: Stage 1, element 2: | BT149: Stage 1, element 1: Warning: Calculation did not converge. | BU149: Stage 1, element 1: Warning: Driving pressure is zero or negative. Try increasing feed pressure or using a booster pump. | BV149: Stage 1, element 2: | BW149: Stage 1, element 1: Warning: Calculation did not converge. | BX149: Stage 1, element 1: Warning: Driving pressure is zero or negative. Try increasing feed pressure or using a booster pump. | BY149: Stage 1, element 2: | BZ149: Stage 1, element 1: Warning: Calculation did not converge. | CA149: Stage 1, element 1: Warning: Driving pressure is zero or negative. Try increasing feed pressure or using a booster pump. | CB149: Stage 1, element 2: | CC149: Stage 1, element 1: Warning: Calculation did not converge. | CD149: Stage 1, element 1: Warning: Driving pressure is zero or negative. Try increasing feed pressure or using a booster pump. | CE149: Stage 1, element 2: | CF149: Stage 1, element 1: Warning: Calculation did not converge. | CG149: Stage 1, element 1: Warning: Driving pressure is zero or negative. Try increasing feed pressure or using a booster pump.
A150: Signal error? | B150: pressure_error | C150: =OR(pressure_error_stg1,pressure_error_stg2,pressure_error_stg3,pressure_error_flow) -> FALSE
A151: Error message | B151: pressure_err_msg | C151: =IF(pressure_error,IF(pressure_error_stg1,"Can't find suitable pressure in Stage 1.",IF(pressure_error_stg2,"Can't find suitable pressure in Stage 2",IF(pressure_error_stg3,"Can't find suitable pressure in Stage 3","Can't find suitable pressures for the requested product flow"))),"") -> 
A152: Tuning complete? | B152: tuning_complete | C152: =AND(NOT(pressure_error),stage_adjust="none") -> TRUE
A154: Iteration count | B154: num_iterations_pressure | C154: 3 | E154: Filled in by the design macro.

Sheet Calc System
A1: Calc System: Train Design Detail Calculations
A3: Input Source | B3: Calculation | C3: Range Name | D3: Value | E3: Units | F3: Guidance
B4: Inputs
B5: Element Data - looked up from element table
B6: Selected element index | C6: element_index | D6: =MATCH(element_I,element_names,0) -> 8 | F6: index into the element data table; linked to dropdown on the input sheet
A7: element | B7: Name | C7: sys_element_name | D7: =VLOOKUP("name",element_table,element_index+1,FALSE) -> 8 inch Brackish Water RO
A8: element | B8: Length | C8: sys_element_length | D8: =VLOOKUP("length",element_table,element_index+1,FALSE) -> 40 | E8: in
A9: element | B9: Diameter | C9: sys_element_diam | D9: =VLOOKUP("diameter",element_table,element_index+1,FALSE) -> 8 | E9: in
A10: element | B10: Area | C10: sys_element_area_I | D10: =VLOOKUP("area",element_table,element_index+1,FALSE) -> 400 | E10: ft^2
A11: element | B11: A value | C11: sys_element_A_I | D11: =VLOOKUP("A_I",element_table,element_index+1,FALSE) -> 0.14 | E11: gfd/psi | F11: at zero pressure and osmotic pressure, and reference temperature; obtained from fit to manufacturer's programs run at a range of pressures and salinities
A12: element | B12: B minimum value | C12: sys_element_B_min_I | D12: =VLOOKUP("B_min_I",element_table,element_index+1,FALSE) -> 0.1 | E12: gfd | F12: at reference temperature, and minimum-B TDS; obtained from manufacturer's programs run at a range of salinities
A13: element | B13: B maximum value | C13: sys_element_B_max_I | D13: =VLOOKUP("B_max_I",element_table,element_index+1,FALSE) -> 0.18 | E13: gfd | F13: at reference temperature, and very large TDS; B will not be permitted to exceed this value before temp correction. Obtained from manufacturer's programs run at a range of salinities.
A14: element | B14: Delta-P coefficient | C14: sys_element_dp_coeff_I | D14: =VLOOKUP("dp_coeff_I",element_table,element_index+1,FALSE) -> 0.017 | E14: psi/gpm^exp | F14: deltaP = coeff * (avg flow)^exponent * sqrt(viscosity/ref. viscosity)
A15: element | B15: Delta-P exponent | C15: sys_element_dp_exp | D15: =VLOOKUP("dp_exp",element_table,element_index+1,FALSE) -> 1.4
A16: element | B16: A correction coeff for temperature below ref temp | C16: sys_element_A_T_coeff_lo | D16: =VLOOKUP("A_T_coeff_lo",element_table,element_index+1,FALSE) -> 2900 | E16: Kelvins | F16: correction factor is exp(coeff*(1/Tref-1/T)) [T in Kelvins]
A17: element | B17: A correction coeff for temperature above ref temp | C17: sys_element_A_T_coeff_hi | D17: =VLOOKUP("A_T_coeff_hi",element_table,element_index+1,FALSE) -> 2900 | E17: Kelvins
A18: element | B18: A correction coeff for applied pressure | C18: sys_element_A_P_coeff | D18: =VLOOKUP("A_P_coeff_I",element_table,element_index+1,FALSE) -> 5e-05 | E18: /atm | F18: correction factor is 1-coeff*pressure; ranges from 0.004 for seawater type elements to 0.007 for low-pressure elements
A19: element | B19: A correction coeff for osmotic pressure | C19: sys_element_A_S_coeff_I | D19: =VLOOKUP("A_S_coeff_I",element_table,element_index+1,FALSE) -> 3e-05 | E19: /psi | F19: correction factor is 1-coeff*PI_avg
A20: element | B20: B correction coeff for temperature | C20: sys_element_B_T_coeff | D20: =VLOOKUP("B_T_coeff",element_table,element_index+1,FALSE) -> 2700 | E20: Kelvins | F20: correction factor is exp(coeff*(1/Tref-1/T)) [T in Kelvins]
A21: element | B21: Salinity for minimum B | C21: sys_element_sal_min_B | D21: =VLOOKUP("sal_minB",element_table,element_index+1,FALSE) -> 500 | E21: ppm | F21: obtain from manufacturer's programs
A22: element | B22: B correction coeff for salinity below min | C22: sys_element_B_S_coeff_lo | D22: =VLOOKUP("B_S_coeff_lo",element_table,element_index+1,FALSE) -> 0.0008 | E22: /ppm | F22: correction factor is 1-coeff*(TDS-TDSminB)
A23: element | B23: B correction coeff for salinity above min | C23: sys_element_B_S_coeff_hi | D23: =VLOOKUP("B_S_coeff_hi",element_table,element_index+1,FALSE) -> 1.6e-05 | E23: /ppm | F23: correction factor is 1+coeff*(TDS-TDSminB)
A24: element | B24: Reference temperature | C24: sys_element_ref_temp | D24: =VLOOKUP("ref_temp_I",element_table,element_index+1,FALSE) -> 25 | E24: deg C | F24: temperature where A and B are determined
A25: element | B25: Reference feed TDS | C25: sys_element_ref_TDS | D25: =VLOOKUP("ref_tds",element_table,element_index+1,FALSE) -> 2000 | E25: ppm | F25: from element spec sheet
A26: element | B26: Concentration polarization coefficient | C26: sys_element_beta_coeff | D26: =VLOOKUP("beta_coeff",element_table,element_index+1,FALSE) -> 0.9 | F26: obtain from manufacturer's programs
A27: element | B27: Membrane type | C27: sys_element_type | D27: =VLOOKUP("type",element_table,element_index+1,FALSE) -> RO | F27: RO or NF
A28: CDA | B28: Min system recovery | C28: min_sys_recovery | D28: =IF(sys_element_type="RO",recov_min_ro,recov_min_nf) -> 0.5
A29: CDA | B29: Max system recovery | C29: max_sys_recovery | D29: =IF(sys_element_type="RO",recov_max_ro,recov_max_nf) -> 0.85
B31: Operating limits
A32: element | B32: Maximum feed pressure | C32: max_P_feed_I | D32: =VLOOKUP("max_P_feed_I",element_table,element_index+1,FALSE) -> 600 | E32: psi
A33: element | B33: Maximum recovery | C33: max_recovery | D33: =VLOOKUP("max_recovery",element_table,element_index+1,FALSE) -> 0.17
A34: element | B34: Maximum feed flow | C34: max_feed_flow_I | D34: =VLOOKUP("max_feed_flow_I",element_table,element_index+1,FALSE) -> 75 | E34: gpm
A35: element | B35: Minimum concentrate flow | C35: min_conc_flow_I | D35: =VLOOKUP("min_conc_flow_I",element_table,element_index+1,FALSE) -> 12 | E35: gpm
A36: element | B36: Maximum feed SDI | C36: max_feed_SDI | D36: =VLOOKUP("max_feed_SDI",element_table,element_index+1,FALSE) -> 5 | E36: (15 min)
A37: element | B37: Minimum feed pH for continuous operation | C37: min_feed_pH | D37: =VLOOKUP("min_feed_pH",element_table,element_index+1,FALSE) -> 3 | E37: s.u.
A38: element | B38: Maximum temperature | C38: max_temp | D38: =VLOOKUP("max_temp",element_table,element_index+1,FALSE) -> 45 | E38: deg C
A39: element | B39: Maximum pressure drop per element | C39: max_deltaP_el_I | D39: =VLOOKUP("max_deltaP_el_I",element_table,element_index+1,FALSE) -> 10 | E39: psi
A40: element | B40: Maximum pressure drop per vessel | C40: max_deltaP_ves_I | D40: =VLOOKUP("max_deltaP_ves_I",element_table,element_index+1,FALSE) -> 50 | E40: psi
B42: Ion passage coefficients | F42: based on element type (NF or RO)
B43: Ca | C43: ion_passage_coeffs | D43: =IF(sys_element_type="RO",ion_conc_pol_coeffs_ro,IF(sys_element_type="NF",ion_conc_pol_coeffs_nf,1)) -> 0.25
B44: Mg | D44: 0.25
B45: Na | D45: 1
B46: K | D46: 1.3
B47: Ba | D47: 0.25
B48: Sr | D48: 0.25
B49: HCO3 | D49: 1
B50: CO3 | D50: 0.25
B51: Cl | D51: 1
B52: SO4 | D52: 0.25
B53: F | D53: 0.7
B54: SiO2 | D54: 0.75
B55: CO2 | D55: 0
B57: Feed Water
B58: Feed concentrations
A59: water | B59: Ca | C59: sys_feed_ppm | D59: =tfeed_ppm_bal -> 119.0005906 | E59: ppm
A60: water | B60: Mg | D60: 100.0004963 | E60: ppm
A61: water | B61: Na | D61: 1000.004963 | E61: ppm
A62: water | B62: K | D62: 20.00009927 | E62: ppm
A63: water | B63: Ba | D63: 0.1250006204 | E63: ppm
A64: water | B64: Sr | D64: 10.00004963 | E64: ppm
A65: water | B65: HCO3 | D65: 138.0960191 | E65: ppm
A66: water | B66: CO3 | D66: 0.03665690318 | E66: ppm
A67: water | B67: Cl | D67: 1549.992307 | E67: ppm
A68: water | B68: SO4 | D68: 591.3760956 | E68: ppm
A69: water | B69: F | D69: 1.999990073 | E69: ppm
A70: water | B70: SiO2 | D70: 20 | E70: ppm
A71: water | B71: CO2 | C71: sys_feed_gas_ppm | D71: 67.57222071 | E71: ppm
B73: System
B74: Maximum feed flow based on head loss | C74: sys_max_dP_flow | D74: =(max_deltaP_el_I/sys_element_dp_coeff_I)^(1/sys_element_dp_exp) -> 95.11538507 | E74: gpm | F74: At this feed flow, the element will experience its maximum head loss.
B76: Computation
B77: Factor to apply to delta P_net | C77: sys_step_factor | D77: 0.7
B78: Precision for iteration | C78: sys_iter_precision | D78: 0.0001 | F78: The tolerance permitted during iteration on P_net for a given element.
B80: Outputs, whole system
B81: Computation in progress? | C81: comp_in_prog | D81: FALSE
B82: Result of calculation | C82: calc_result | D82: Calculation completed OK.
B83: Number of stages | C83: num_stages_out | D83: 2
B84: Stage 1:2 ratio | C84: stage_1_2_ratio | D84: 7:3
B85: Stage 2:3 ratio | C85: stage_2_3_ratio
B86: Vessels in stage 1 | C86: num_vess_1_out | D86: 7
B87: Vessels in stage 2 | C87: num_vess_2_out | D87: 3
B88: Vessels in stage 3 | C88: num_vess_3_out
B89: Feed flow | C89: feed_flow_sys | D89: =stg_1 feed_flow_v * num_vess_1_out -> 342.5925926 | E89: gpm
B90: Concentrate flow | C90: conc_flow_sys | D90: =stg_2 conc_flow_v * num_vess_2_out -> 87.02561189 | E90: gpm
B91: Permeate flow | C91: perm_flow_sys | D91: =feed_flow_sys-conc_flow_sys -> 255.5669807 | E91: gpm
B92: Recovery | C92: recovery_rate | D92: =perm_flow_sys/feed_flow_sys -> 0.745979295
B93: Feed TDS | C93: feed_tds_sys | D93: =stg_1 feed_tds_v -> 3550.632268 | E93: ppm
B94: Permeate TDS | C94: perm_tds_sys | D94: =(feed_tds_sys*feed_flow_sys-conc_tds_sys*conc_flow_sys)/perm_flow_sys -> 32.71422577 | E94: ppm
B95: Permeate TDS at 180 degrees C | C95: perm_tds_sys_180c | D95: =perm_tds_sys-D120/2 -> 31.95305643 | E95: ppm
B96: Concentrate TDS | C96: conc_tds_sys | D96: =stg_2 conc_tds_v -> 13881.65635 | E96: ppm
B97: Salt rejection | C97: salt_rej_sys | D97: =1-perm_tds_sys/feed_tds_sys -> 0.9907863661
B98: Train configuration | C98: train_configuration | D98: =CHOOSE(num_stages_out,"1 stage",stage_1_2_ratio,num_vess_1_out&":"&num_vess_2_out&":"&num_vess_3_out) -> 7:3
B99: Pressure vessels per train | C99: PVs_per_train_calc | D99: =CHOOSE(num_stages_out,num_vess_1_out,num_vess_1_out+num_vess_2_out,num_vess_1_out+num_vess_2_out+num_vess_3_out) -> 10
B100: Elements per train | C100: elements_per_train_calc | D100: =PVs_per_train_calc*el_per_vess -> 60
B101: Total membrane area per train | C101: area_per_train_calc | D101: =elements_per_train_calc*sys_element_area_I -> 24000 | E101: ft^2
B103: Total iterations, all elements | C103: total_iterations_sys | D103: =SUM(num_iterations_out) -> 69
B105: Concentrate LSI | C105: conc_LSI_sys | D105: =el_2_6 conc_LSI_out -> 0.3664740565
B106: Concentrate CaSO4 saturation | C106: conc_CaSO4_sat_sys | D106: =el_2_6 conc_CaSO4_sat_out -> 0.4371323387
B107: Concentrate BaSO4 saturation | C107: conc_BaSO4_sat_sys | D107: =el_2_6 conc_BaSO4_sat_out -> 35.65342464
B108: Concentrate SrSO4 saturation | C108: conc_SrSO4_sat_sys | D108: =el_2_6 conc_SrSO4_sat_out -> 1.385207803
B109: Concentrate CaF2 saturation | C109: conc_CaF2_sat_sys | D109: =el_2_6 conc_CaF2_sat_out -> 14.19579526
B110: Concentrate SiO2 concentration | C110: conc_SiO2_conc_sys | D110: =OFFSET((el_2_6 conc_conc_out),(ion_sio2 ion_offset),0,1,1) -> 78.24077496 | E110: ppm
B111: Concentrate SiO2 saturation | C111: conc_SiO2_sat_sys | D111: =el_2_6 conc_SiO2_sat_out -> 0.7029719224
B113: Permeate ion concentrations
B114: Ca | C114: perm_ion_concs | D114: =(sys_feed_ppm*feed_flow_sys-(el_2_6 conc_conc_out)*conc_flow_sys)/perm_flow_sys -> 0.3383865257 | E114: ppm | F114: =perm_ion_concs/sys_feed_ppm -> 0.002843570136
B115: Mg | D115: 0.284358425 | E115: ppm | F115: 0.002843570136
B116: Na | D116: 11.34136696 | E116: ppm | F116: 0.01134131067
B117: K | D117: 0.2945334924 | E117: ppm | F117: 0.01472660153
B118: Ba | D118: 0.0003554480312 | E118: ppm | F118: 0.002843570136
B119: Sr | D119: 0.0284358425 | E119: ppm | F119: 0.002843570136
B120: HCO3 | D120: 1.522338675 | E120: ppm | F120: 0.01102376944
B121: CO3 | D121: 3.953452769e-06 | E121: ppm | F121: 0.0001078501572
B122: Cl | D122: 17.08673117 | E122: ppm | F122: 0.01102375224
B123: SO4 | D123: 1.63440052 | E123: ppm | F123: 0.002763724358
B124: F | D124: 0.01545059995 | E124: ppm | F124: 0.007725338318
B125: SiO2 | D125: 0.1678641606 | E125: ppm | F125: 0.008393208031
B126: CO2 | C126: perm_gas_concs | D126: 67.57226511 | E126: ppm | F126: 1.000000657
B128: Ion concentrations in blended product
B129: Ca | C129: blend_ion_concs | D129: =(perm_ion_concs*design_flow_rate+feed_ppm_bal*bp_flow_rate)/(design_flow_rate+bp_flow_rate) -> 0.3383865257 | E129: ppm
B130: Mg | D130: 0.284358425 | E130: ppm
B131: Na | D131: 11.34136696 | E131: ppm
B132: K | D132: 0.2945334924 | E132: ppm
B133: Ba | D133: 0.0003554480312 | E133: ppm
B134: Sr | D134: 0.0284358425 | E134: ppm
B135: HCO3 | D135: 1.522338675 | E135: ppm
B136: CO3 | D136: 3.953452769e-06 | E136: ppm
B137: Cl | D137: 17.08673117 | E137: ppm
B138: SO4 | D138: 1.63440052 | E138: ppm
B139: F | D139: 0.01545059995 | E139: ppm
B140: SiO2 | D140: 0.1678641606 | E140: ppm
B141: CO2 | C141: blend_gas_concs | D141: 67.57226511 | E141: ppm
B143: TDS of blended product | C143: blend_TDS | D143: =SUM(blend_ion_concs)-SUM(blend_gas_concs) -> 32.71422577 | E143: ppm
B144: TDS of blended product at 180 degrees C | C144: blend_TDS_180c | D144: =blend_TDS-D135/2 -> 31.95305643 | E144: ppm
A147: Output calculations below this line are used internally and vary in table structure as required by the design macros
D148: Stage 1 | E148: Stage 2 | F148: Stage 3
B149: Outputs, per stage | D149: stg_1 | E149: stg_2 | F149: stg_3
B150: Feed flow per vessel | C150: feed_flow_v | D150: =el_1_1 feed_flow_out -> 48.94179894 | E150: =el_2_1 feed_flow_out -> 47.84519023 | G150: gpm
B151: Permeate flow per vessel | C151: perm_flow_v | D151: =el_1_6 c_perm_flow_out -> 28.43671741 | E151: =el_2_6 c_perm_flow_out -> 18.83665294 | G151: gpm
B152: Concentrate flow per vessel | C152: conc_flow_v | D152: =el_1_6 conc_flow_out -> 20.50508153 | E152: =el_2_6 conc_flow_out -> 29.0085373 | G152: gpm
B153: Permeate flux | C153: perm_flux_v | D153: =(stg_1 perm_flow_v)*24*60/area_per_vess -> 17.06203045 | E153: =(stg_2 perm_flow_v)*24*60/area_per_vess -> 11.30199176 | G153: gfd
B154: Vessel ratio, this stage | C154: ratio_curr_v | D154: 7
B155: Vessel ratio, next stage | C155: ratio_next_v | D155: 3
B156: Recovery within stage | C156: recovery_v | D156: =el_1_6 c_recovery_out -> 0.5810313071 | E156: =el_2_6 c_recovery_out -> 0.3937000323
B157: Cumulative recovery | C157: c_recovery_v | D157: =(stg_1 perm_flow_v)/(stg_1 feed_flow_v) -> 0.5810313071 | E157: =1-(stg_2 conc_flow_v)/((stg_1 feed_flow_v)*(stg_1 ratio_curr_v)/(stg_1 ratio_next_v)) -> 0.745979295
B158: Feed pressure | C158: P_feed_v | D158: =el_1_1 P_feed_out -> 262.9410347 | E158: =el_2_1 P_feed_out -> 246.6045965 | G158: psi
B159: Pressure drop for vessel | C159: deltaP_v | D159: =el_1_6 c_dP_out -> 16.33643816 | E159: =el_2_6 c_dP_out -> 18.73312239 | G159: psi
B160: Feed TDS | C160: feed_tds_v | D160: =el_1_1 feed_tds_out -> 3550.632268 | E160: =el_2_1 feed_tds_out -> 8444.209173 | G160: ppm
B161: Permeate TDS | C161: perm_tds_v | D161: =el_1_6 c_perm_tds_out -> 21.98330621 | E161: =el_2_6 c_perm_tds_out -> 70.51402132 | G161: ppm
B162: Concentrate TDS | C162: conc_tds_v | D162: =el_1_6 conc_tds_out -> 8444.209173 | E162: =el_2_6 conc_tds_out -> 13881.65635 | G162: ppm
B163: Salt rejection | C163: salt_rej_v | D163: =el_1_6 c_salt_rej_out -> 0.9938086221 | E163: =el_2_6 c_salt_rej_out -> 0.9916494227
A165: Format of the output calculations below:
A166: Outputs are computed on the element computation sheet. Some are copied to this sheet (with unit conversion). These are
A167: indicated by the code "copied" in column D here. Other outputs are computed on this sheet, via the template formulas in
A168: column D--those are used for computation, not just for reference! In these formulas, the code CURR indicates the current
A169: element, PREV indicates the previous element, and FIRST indicates the first element in the stage. Cumulative quantities
A170: are computed within each stage; per-stage outputs are elsewhere. Some template formulas refer to the previous element
A171: in a stage. Since these formulas will not be meaningful for the first element in a stage, they include a second version,
A172: which is used for the first element in a stage. The two versions are separated by a colon.
E173: Stage 1 | N173: Stage 2 | W173: Stage 3
E174: Element 1 | F174: Element 2 | G174: Element 3 | H174: Element 4 | I174: Element 5 | J174: Element 6 | K174: Element 7 | L174: Element 8 | N174: Element 1 | O174: Element 2 | P174: Element 3 | Q174: Element 4 | R174: Element 5 | S174: Element 6 | T174: Element 7 | U174: Element 8 | W174: Element 1 | X174: Element 2 | Y174: Element 3 | Z174: Element 4 | AA174: Element 5 | AB174: Element 6 | AC174: Element 7 | AD174: Element 8
B175: Outputs, per element | D175: elem_out_template | E175: el_1_1 | F175: el_1_2 | G175: el_1_3 | H175: el_1_4 | I175: el_1_5 | J175: el_1_6 | K175: el_1_7 | L175: el_1_8 | N175: el_2_1 | O175: el_2_2 | P175: el_2_3 | Q175: el_2_4 | R175: el_2_5 | S175: el_2_6 | T175: el_2_7 | U175: el_2_8 | W175: el_3_1 | X175: el_3_2 | Y175: el_3_3 | Z175: el_3_4 | AA175: el_3_5 | AB175: el_3_6 | AC175: el_3_7 | AD175: el_3_8
B176: Feed flow, gpm | C176: feed_flow_out | D176: copied | E176: =gpm_per_m3s*0.00308777169636969 -> 48.94179894 | F176: =gpm_per_m3s*0.00275409304616267 -> 43.6529256 | G176: =gpm_per_m3s*0.00243273569457595 -> 38.55934731 | H176: =gpm_per_m3s*0.00212432568514459 -> 33.67098697 | I176: =gpm_per_m3s*0.00183012268354665 -> 29.00781056 | J176: =gpm_per_m3s*0.00155217256119951 -> 24.60224553 | N176: =gpm_per_m3s*0.00301858590007937 -> 47.84519023 | O176: =gpm_per_m3s*0.0027790679778446 -> 44.04878326 | P176: =gpm_per_m3s*0.0025556452098884 -> 40.50748771 | Q176: =gpm_per_m3s*0.00234864919604089 -> 37.22655949 | R176: =gpm_per_m3s*0.00215847911396158 -> 34.21232565 | S176: =gpm_per_m3s*0.00198554151508708 -> 31.47123012
B177: Permeate flow, gpm | C177: perm_flow_out | D177: copied | E177: =gpm_per_m3s*0.000333678650207024 -> 5.288873342 | F177: =gpm_per_m3s*0.000321357351586716 -> 5.093578294 | G177: =gpm_per_m3s*0.000308410009431357 -> 4.888360331 | H177: =gpm_per_m3s*0.000294203001597945 -> 4.663176416 | I177: =gpm_per_m3s*0.000277950122347135 -> 4.405565029 | J177: =gpm_per_m3s*0.000258492889736917 -> 4.097164001 | N177: =gpm_per_m3s*0.000239517922234777 -> 3.796406971 | O177: =gpm_per_m3s*0.000223422767956199 -> 3.541295557 | P177: =gpm_per_m3s*0.000206996013847511 -> 3.280928219 | Q177: =gpm_per_m3s*0.000190170082079315 -> 3.014233835 | R177: =gpm_per_m3s*0.000172937598874498 -> 2.74109553 | S177: =gpm_per_m3s*0.000155372981222389 -> 2.462692827
B178: Concentrate flow, gpm | C178: conc_flow_out | D178: copied | E178: =gpm_per_m3s*0.00275409304616267 -> 43.6529256 | F178: =gpm_per_m3s*0.00243273569457595 -> 38.55934731 | G178: =gpm_per_m3s*0.00212432568514459 -> 33.67098697 | H178: =gpm_per_m3s*0.00183012268354665 -> 29.00781056 | I178: =gpm_per_m3s*0.00155217256119951 -> 24.60224553 | J178: =gpm_per_m3s*0.00129367967146259 -> 20.50508153 | N178: =gpm_per_m3s*0.0027790679778446 -> 44.04878326 | O178: =gpm_per_m3s*0.0025556452098884 -> 40.50748771 | P178: =gpm_per_m3s*0.00234864919604089 -> 37.22655949 | Q178: =gpm_per_m3s*0.00215847911396158 -> 34.21232565 | R178: =gpm_per_m3s*0.00198554151508708 -> 31.47123012 | S178: =gpm_per_m3s*0.00183016853386469 -> 29.0085373
